Service Heads (T),Executive (T),Director (T),Service Managers (T),Cost centre,Cost centre (T),Account,Account (T),Transaction number,Transaction Date,Period,Amount,Customer/supplier ID,Customer/supplier Name
Adult Services,Revenue Budgets,Adult Services,Adult Social Care,A0764,Assisted Living Centre,A40080,Health & Safety Equipment,30038780,05/07/2022,202206,378.84,109432,Northgate Vehicle Hire Ltd
Adult Services,Revenue Budgets,Adult Services,Adult Social Care,A0764,Assisted Living Centre,A40080,Health & Safety Equipment,30041507,06/07/2022,202206,794.4,101715,Nottingham Rehab Limited
Adult Services,Revenue Budgets,Adult Services,Adult Social Care,A0764,Assisted Living Centre,A40080,Health & Safety Equipment,30041507,06/07/2022,202206,"2,699.70",101715,Nottingham Rehab Limited
Adult Services,Revenue Budgets,Adult Services,Adult Social Care,A0764,Assisted Living Centre,A40920,Purchase of Equipment,30043764,19/07/2022,202206,"3,623.51",139184,Ambre-Stone Ltd
Adult Services,Revenue Budgets,Adult Services,Adult Social Care,A0764,Assisted Living Centre,A40920,Purchase of Equipment,30032925,10/08/2022,202206,469.5,101792,Viking Hardware Ltd
Adult Services,Revenue Budgets,Adult Services,Adult Social Care,A0764,Assisted Living Centre,A40920,Purchase of Equipment,30034356,16/08/2022,202206,399.96,139266,Frontier Therapeutics
Adult Services,Revenue Budgets,Adult Services,Adult Social Care,A0764,Assisted Living Centre,A40920,Purchase of Equipment,30034356,16/08/2022,202206,"1,095.60",139266,Frontier Therapeutics
Adult Services,Revenue Budgets,Adult Services,Adult Social Care,A0764,Assisted Living Centre,A40920,Purchase of Equipment,30034400,16/08/2022,202206,517.5,120822,Simplymed Ltd
Adult Services,Revenue Budgets,Adult Services,Adult Social Care,A0764,Assisted Living Centre,A40920,Purchase of Equipment,30034403,16/08/2022,202206,258.75,120822,Simplymed Ltd
Adult Services,Revenue Budgets,Adult Services,Adult Social Care,A0764,Assisted Living Centre,A40920,Purchase of Equipment,30034403,16/08/2022,202206,258.75,120822,Simplymed Ltd
Adult Services,Revenue Budgets,Adult Services,Adult Social Care,A0764,Assisted Living Centre,A40920,Purchase of Equipment,30034413,16/08/2022,202206,862.5,120822,Simplymed Ltd
Adult Services,Revenue Budgets,Adult Services,Adult Social Care,A0764,Assisted Living Centre,A40920,Purchase of Equipment,30035585,19/08/2022,202206,598.8,126914,Joerns Healthcare Ltd
Adult Services,Revenue Budgets,Adult Services,Adult Social Care,A0764,Assisted Living Centre,A40920,Purchase of Equipment,30035585,19/08/2022,202206,"1,350.60",126914,Joerns Healthcare Ltd
Adult Services,Revenue Budgets,Adult Services,Adult Social Care,A0764,Assisted Living Centre,A40920,Purchase of Equipment,30035585,19/08/2022,202206,"4,884.00",126914,Joerns Healthcare Ltd
Adult Services,Revenue Budgets,Adult Services,Adult Social Care,A0764,Assisted Living Centre,A40920,Purchase of Equipment,30036510,23/08/2022,202206,871.73,110463,Specialised Orthotic Services Ltd
Adult Services,Revenue Budgets,Adult Services,Adult Social Care,A0764,Assisted Living Centre,A40920,Purchase of Equipment,30036995,23/08/2022,202206,"1,554.20",101134,The Helping Hand Company (Ledbury) Ltd
Adult Services,Revenue Budgets,Adult Services,Adult Social Care,A0764,Assisted Living Centre,A40920,Purchase of Equipment,30036300,25/08/2022,202206,"2,361.00",101710,Etac Limited
Adult Services,Revenue Budgets,Adult Services,Adult Social Care,A0764,Assisted Living Centre,A40920,Purchase of Equipment,30036999,31/08/2022,202206,"1,107.79",135470,Herida Healthcare Ltd
Adult Services,Revenue Budgets,Adult Services,Adult Social Care,A0764,Assisted Living Centre,A40920,Purchase of Equipment,30037009,31/08/2022,202206,721.28,101070,Smitcare Ltd
Adult Services,Revenue Budgets,Adult Services,Director Of Adult Services,A1445,Director Of Adult Services,A11005,Agency Supply Staff,30037166,31/08/2022,202206,"17,550.00",100785,Solace In Business
Adult Services,Revenue Budgets,Adult Services,Adult Social Care,A0764,Assisted Living Centre,A40920,Purchase of Equipment,30037687,05/09/2022,202206,286.43,139184,Ambre-Stone Ltd
Adult Services,Revenue Budgets,Adult Services,Adult Social Care,A0764,Assisted Living Centre,A40080,Health & Safety Equipment,30038748,06/09/2022,202206,819,101710,Etac Limited
Adult Services,Revenue Budgets,Adult Services,Adult Social Care,A0764,Assisted Living Centre,A40920,Purchase of Equipment,30038933,06/09/2022,202206,358.5,1002773,Fingersafe Worldwide Limited
Adult Services,Revenue Budgets,Adult Services,Adult Social Care,A0764,Assisted Living Centre,A40080,Health & Safety Equipment,30040918,06/09/2022,202206,454.5,104008,Performance Health
Adult Services,Revenue Budgets,Adult Services,Adult Social Care,A0764,Assisted Living Centre,A40080,Health & Safety Equipment,30040923,06/09/2022,202206,540,139289,Sumed International Uk Ltd
Adult Services,Revenue Budgets,Adult Services,Adult Social Care,A0764,Assisted Living Centre,A40080,Health & Safety Equipment,30040923,06/09/2022,202206,"1,140.00",139289,Sumed International Uk Ltd
Adult Services,Revenue Budgets,Adult Services,Adult Social Care,A0764,Assisted Living Centre,A40080,Health & Safety Equipment,30039885,07/09/2022,202206,"1,705.38",139266,Frontier Therapeutics
Adult Services,Revenue Budgets,Adult Services,Adult Social Care,A0764,Assisted Living Centre,A40080,Health & Safety Equipment,30041180,09/09/2022,202206,347.4,101008,Invacare (Uk) Ltd
Adult Services,Revenue Budgets,Adult Services,Prevention And Wellbeing,A1857,Ukraine Scheme,A56000,Other Establishments,30041038,12/09/2022,202206,440,1001576,Gary Smith
Adult Services,Revenue Budgets,Adult Services,Adult Social Care,A0764,Assisted Living Centre,A40080,Health & Safety Equipment,30041040,14/09/2022,202206,-454.5,104008,Performance Health
Adult Services,Revenue Budgets,Adult Services,Adult Social Care,A0764,Assisted Living Centre,A40080,Health & Safety Equipment,30043694,15/09/2022,202206,454.5,104008,Performance Health
Adult Services,Revenue Budgets,Adult Services,Adult Social Care,A0764,Assisted Living Centre,A40080,Health & Safety Equipment,30045689,15/09/2022,202206,"1,000.00",139289,Sumed International Uk Ltd
Adult Services,Revenue Budgets,Adult Services,Adult Social Care,A0764,Assisted Living Centre,A40080,Health & Safety Equipment,30045689,15/09/2022,202206,"1,170.00",139289,Sumed International Uk Ltd
Adult Services,Revenue Budgets,Adult Services,Adult Social Care,A0764,Assisted Living Centre,A40080,Health & Safety Equipment,30042303,20/09/2022,202206,746,123517,Seating Matters Ltd
Adult Services,Revenue Budgets,Adult Services,Adult Social Care,A0764,Assisted Living Centre,A40080,Health & Safety Equipment,30043801,23/09/2022,202206,"1,021.00",104008,Performance Health
Adult Services,Revenue Budgets,Adult Services,Adult Social Care,A0764,Assisted Living Centre,A40080,Health & Safety Equipment,30044849,27/09/2022,202206,"3,580.00",146221,Katnic Ltd
Asc - Care Trust Plus,Revenue Budgets,Asc - Care Trust Plus,Ld Direct Payment Scheme,A0115,Dps Learning Disability,A57215,Domicilary Care Direct Payment,30040109,26/07/2022,202206,"1,111.74",Redacted Personal Information,Redacted Personal Information
Asc - Care Trust Plus,Revenue Budgets,Asc - Care Trust Plus,Home Care,A0056,Dps Older People,A57215,Domicilary Care Direct Payment,30037284,01/09/2022,202206,379.4,Redacted Personal Information,Redacted Personal Information
Asc - Care Trust Plus,Revenue Budgets,Asc - Care Trust Plus,Mh Social Care,A0148,Dps Mental Health,A57215,Domicilary Care Direct Payment,30037294,01/09/2022,202206,"1,187.08",Redacted Personal Information,Redacted Personal Information
Asc - Care Trust Plus,Revenue Budgets,Asc - Care Trust Plus,Op Res & Nursing Care,A0077,Older People Res Care,A57140,Residential Care Long Term,30037688,01/09/2022,202206,314.13,Redacted Personal Information,Redacted Personal Information
Asc - Care Trust Plus,Revenue Budgets,Asc - Care Trust Plus,Home Care,A0057,Intensive Home Care Clients,A93060,Home Care Income,30042652,21/09/2022,202206,289.94,Redacted Personal Information,Redacted Personal Information
Asc - Care Trust Plus,Revenue Budgets,Asc - Care Trust Plus,Home Care,A0057,Intensive Home Care Clients,A93060,Home Care Income,30043802,21/09/2022,202206,289.94,Redacted Personal Information,Redacted Personal Information
Assistant Chief Executive,Revenue Budgets,Resources,Registrars & Civic Services,A0230,Registrars,A49105,Other Supplies & Services,30045417,18/05/2022,202206,"1,567.50",1003047,Pay360 Limited
Assistant Chief Executive,Revenue Budgets,Resources,Assistant Chief Executive,A1849,Community Renewals Fund (CRF),A47005,"Grants, Contributions & Donations",30045678,31/07/2022,202206,"23,000.00",1001971,Age UK North East Lincolnshire
Assistant Chief Executive,Revenue Budgets,Resources,Elections Team,A0219,Elections,A47010,Subscriptions (non staff),30044701,01/08/2022,202206,314,110059,Thomson Reuters
Assistant Chief Executive,Revenue Budgets,Resources,Elections Team,A0218,Electoral Registration,A45015,Postages,30044579,29/08/2022,202206,"1,367.04",101082,Royal Mail Group Plc
Assistant Chief Executive,Revenue Budgets,Resources,Elections Team,A0218,Electoral Registration,A43010,Printing,30044584,30/08/2022,202206,"3,486.36",103724,Print Image Network Ltd
Assistant Chief Executive,Revenue Budgets,Resources,Assistant Chief Executive,A1439,Assistant Chief Executive,A45040,IT Software Purchase,30037162,31/08/2022,202206,265.32,101275,Trustmarque Solutions Ltd
Assistant Chief Executive,Revenue Budgets,Resources,Emergency Planning,A1845,Household Support Fund,A55005,Payments to Voluntary Organisations,30037544,02/09/2022,202206,"10,000.00",102869,Foresight Nel Ltd
Assistant Chief Executive,Revenue Budgets,Resources,Elections Team,A0218,Electoral Registration,A16015,Staff Training Expenses,30044700,08/09/2022,202206,400.5,107770,The Association Of Electoral Administrators
Assistant Chief Executive,Revenue Budgets,Resources,Emergency Planning,A1845,Household Support Fund,A55005,Payments to Voluntary Organisations,30041682,09/09/2022,202206,"4,000.00",105846,West Marsh Development Trust
Assistant Chief Executive,Revenue Budgets,Resources,Emergency Planning,A1842,Asst Chief Exec-COMF Projects,A55005,Payments to Voluntary Organisations,30040602,13/09/2022,202206,"20,172.00",101728,Community Press Office Ltd
Assistant Chief Executive,Revenue Budgets,Resources,Emergency Planning,A1845,Household Support Fund,A55005,Payments to Voluntary Organisations,30041664,14/09/2022,202206,"1,000.00",101728,Community Press Office Ltd
Assistant Chief Executive,Revenue Budgets,Resources,Emergency Planning,A1845,Household Support Fund,A55005,Payments to Voluntary Organisations,30041560,15/09/2022,202206,"10,000.00",1001956,Rock Foundation
Assistant Chief Executive,Revenue Budgets,Resources,Emergency Planning,A1845,Household Support Fund,A55005,Payments to Voluntary Organisations,30041874,16/09/2022,202206,"19,000.00",1002891,Oasis Community Hub Wintringham
Assistant Chief Executive,Revenue Budgets,Resources,Emergency Planning,A1845,Household Support Fund,A55005,Payments to Voluntary Organisations,30041884,16/09/2022,202206,"10,000.00",1000115,Grimsby Cleethorpes and Humber Region YMCA - Trading as YMCA Humber
Assistant Chief Executive,Revenue Budgets,Resources,Registrars & Civic Services,A0222,Civic & Caretaking,A49075,Licences - General,30041928,16/09/2022,202206,830.2,1002599,PPL PRS Ltd
Assistant Chief Executive,Revenue Budgets,Resources,Emergency Planning,A1845,Household Support Fund,A55005,Payments to Voluntary Organisations,30043088,22/09/2022,202206,"10,000.00",100310,Doorstep
Assistant Chief Executive,Revenue Budgets,Resources,Registrars & Civic Services,A0222,Civic & Caretaking,A44942,Promotions and Events,30044851,23/09/2022,202206,694.55,106041,Hampshire Flag Company
Assistant Chief Executive,Revenue Budgets,Resources,Emergency Planning,A1845,Household Support Fund,A55005,Payments to Voluntary Organisations,30045591,23/09/2022,202206,"20,000.00",120031,North Bank Forum
Assistant Chief Executive,Revenue Budgets,Resources,Elections Team,A0219,Elections,A16015,Staff Training Expenses,30044621,26/09/2022,202206,267,107770,The Association Of Electoral Administrators
Assistant Chief Executive,Revenue Budgets,Resources,Elections Team,A0218,Electoral Registration,A16015,Staff Training Expenses,30044695,27/09/2022,202206,333,107770,The Association Of Electoral Administrators
Assistant Chief Executive,Revenue Budgets,Resources,Emergency Planning,A1845,Household Support Fund,A55005,Payments to Voluntary Organisations,30045391,30/09/2022,202206,"10,000.00",126893,Centre4 Limited
Assistant Chief Executive,Revenue Budgets,Resources,Assistant Chief Executive,A0770,Dem Improvement And Engagement,A56000,Other Establishments,30045593,30/09/2022,202206,"40,000.00",101013,Gy/Clee & Dist Citizens
Assistant Chief Executive,Revenue Budgets,Resources,Emergency Planning,A1845,Household Support Fund,A55005,Payments to Voluntary Organisations,30045677,30/09/2022,202206,"10,000.00",1000105,Lincolnshire Housing Partnership
Deputy s151,Revenue Budgets,Resources,Local Taxation & Benefits - Shared,A0187,Debt Collection,A49053,Debt Recovery Costs,30040046,31/07/2022,202206,"1,350.56",101373,Rossendales Ltd
Deputy s151,Revenue Budgets,Resources,Local Taxation & Benefits - Shared,A0190,Nndr,A49105,Other Supplies & Services,30032462,04/08/2022,202206,300,124803,Inform Cpi Ltd
Deputy s151,Revenue Budgets,Resources,Local Taxation & Benefits - Shared,A0187,Debt Collection,A49053,Debt Recovery Costs,30040640,27/08/2022,202206,"-16,152.42",123422,Newlyn
Deputy s151,Revenue Budgets,Resources,Local Taxation & Benefits - Shared,A0187,Debt Collection,A49053,Debt Recovery Costs,30040640,27/08/2022,202206,"16,637.80",123422,Newlyn
Deputy s151,Revenue Budgets,Resources,Local Taxation & Benefits - Shared,A0187,Debt Collection,A49053,Debt Recovery Costs,30040693,27/08/2022,202206,287.82,123422,Newlyn
Deputy s151,Revenue Budgets,Resources,Local Taxation & Benefits - Shared,A0187,Debt Collection,A49053,Debt Recovery Costs,30040559,30/08/2022,202206,"2,509.39",101788,Jacobs Certified Bailiffs
Deputy s151,Revenue Budgets,Resources,Local Taxation & Benefits - Shared,A0184,Control & Monitoring,A45015,Postages,30038183,31/08/2022,202206,"2,151.41",102314,Capita Business Services Ltd
Deputy s151,Revenue Budgets,Resources,Accountancy,A1837,Humber Freeport,A44065,Consultancy Services,30041977,31/08/2022,202206,"-10,980.00",100785,Solace In Business
Deputy s151,Revenue Budgets,Resources,Accountancy,A1837,Humber Freeport,A44065,Consultancy Services,30041977,31/08/2022,202206,"10,980.00",100785,Solace In Business
Deputy s151,Revenue Budgets,Resources,Accountancy,A1837,Humber Freeport,A44065,Consultancy Services,30041977,31/08/2022,202206,"10,980.00",100785,Solace In Business
Deputy s151,Revenue Budgets,Resources,Local Taxation & Benefits - Shared,A0184,Control & Monitoring,A45045,IT Software Maintenance,30043077,20/09/2022,202206,251.47,103029,Civica Uk Limited
Deputy s151,Revenue Budgets,Resources,Local Taxation & Benefits - Shared,A0187,Debt Collection,A49053,Debt Recovery Costs,30044829,20/09/2022,202206,"1,092.00",110675,Wilkin Chapman Llp
Deputy s151,Revenue Budgets,Resources,Accountancy,A0176,Accountancy Section,A43020,General Office Expenses,30044328,22/09/2022,202206,"1,074.00",1002442,Osmosis Promotional Products Ltd
Director Childrens Services,Revenue Budgets,Childrens Services,Director Children & Fam Serv,A0284,Director Children / Fam Serv,A56000,Other Establishments,30039873,07/09/2022,202206,271.14,1002734,Tripod Partners
Director Childrens Services,Revenue Budgets,Childrens Services,Director Children & Fam Serv,A0284,Director Children / Fam Serv,A56000,Other Establishments,30040017,07/09/2022,202206,610.32,1002734,Tripod Partners
Director Childrens Services,Revenue Budgets,Childrens Services,Director Children & Fam Serv,A0284,Director Children / Fam Serv,A56000,Other Establishments,30040019,07/09/2022,202206,296.52,1002734,Tripod Partners
Director Childrens Services,Revenue Budgets,Childrens Services,Director Children & Fam Serv,A0284,Director Children / Fam Serv,A56000,Other Establishments,30040022,07/09/2022,202206,291.27,1002734,Tripod Partners
Director Childrens Services,Revenue Budgets,Childrens Services,Director Children & Fam Serv,A0284,Director Children / Fam Serv,A56000,Other Establishments,30040028,07/09/2022,202206,494.85,1002734,Tripod Partners
Director Childrens Services,Revenue Budgets,Childrens Services,Director Children & Fam Serv,A0284,Director Children / Fam Serv,A56000,Other Establishments,30040029,07/09/2022,202206,451.78,1002734,Tripod Partners
Director Childrens Services,Revenue Budgets,Childrens Services,Director Children & Fam Serv,A0284,Director Children / Fam Serv,A56000,Other Establishments,30040031,07/09/2022,202206,"1,060.56",1002734,Tripod Partners
Director Childrens Services,Revenue Budgets,Childrens Services,Director Children & Fam Serv,A0284,Director Children / Fam Serv,A56000,Other Establishments,30040035,07/09/2022,202206,796.09,1002734,Tripod Partners
Director Childrens Services,Revenue Budgets,Childrens Services,Director Children & Fam Serv,A0284,Director Children / Fam Serv,A56000,Other Establishments,30040037,07/09/2022,202206,778.02,1002734,Tripod Partners
Director Childrens Services,Revenue Budgets,Childrens Services,Director Children & Fam Serv,A0284,Director Children / Fam Serv,A56000,Other Establishments,30040039,07/09/2022,202206,874.81,1002734,Tripod Partners
Director Childrens Services,Revenue Budgets,Childrens Services,Director Children & Fam Serv,A0284,Director Children / Fam Serv,A56000,Other Establishments,30040047,07/09/2022,202206,635.73,1002734,Tripod Partners
Director Childrens Services,Revenue Budgets,Childrens Services,Director Children & Fam Serv,A0284,Director Children / Fam Serv,A56000,Other Establishments,30040054,07/09/2022,202206,718.19,1002734,Tripod Partners
Director Childrens Services,Revenue Budgets,Childrens Services,Director Children & Fam Serv,A0284,Director Children / Fam Serv,A56000,Other Establishments,30040055,07/09/2022,202206,586.13,1002734,Tripod Partners
Director Childrens Services,Revenue Budgets,Childrens Services,Director Children & Fam Serv,A0284,Director Children / Fam Serv,A56000,Other Establishments,30040082,07/09/2022,202206,886.16,1002734,Tripod Partners
Director Childrens Services,Revenue Budgets,Childrens Services,Director Children & Fam Serv,A0284,Director Children / Fam Serv,A56000,Other Establishments,30040085,07/09/2022,202206,366.25,1002734,Tripod Partners
Director Childrens Services,Revenue Budgets,Childrens Services,Director Children & Fam Serv,A0284,Director Children / Fam Serv,A56000,Other Establishments,30040099,07/09/2022,202206,809.46,1002734,Tripod Partners
Director Childrens Services,Revenue Budgets,Childrens Services,Director Children & Fam Serv,A0284,Director Children / Fam Serv,A56000,Other Establishments,30040101,07/09/2022,202206,271.2,1002734,Tripod Partners
Director Childrens Services,Revenue Budgets,Childrens Services,Director Children & Fam Serv,A0284,Director Children / Fam Serv,A56000,Other Establishments,30040103,07/09/2022,202206,580.48,1002734,Tripod Partners
Director Childrens Services,Revenue Budgets,Childrens Services,Director Children & Fam Serv,A0284,Director Children / Fam Serv,A56000,Other Establishments,30042886,22/09/2022,202206,528.9,1002734,Tripod Partners
Director Childrens Services,Revenue Budgets,Childrens Services,Director Children & Fam Serv,A0284,Director Children / Fam Serv,A56000,Other Establishments,30042918,22/09/2022,202206,252.24,1002734,Tripod Partners
Director Childrens Services,Revenue Budgets,Childrens Services,Director Children & Fam Serv,A0284,Director Children / Fam Serv,A56000,Other Establishments,30043752,22/09/2022,202206,264.54,1002734,Tripod Partners
Director Childrens Services,Revenue Budgets,Childrens Services,Director Children & Fam Serv,A0284,Director Children / Fam Serv,A56000,Other Establishments,30043756,22/09/2022,202206,518.96,1002734,Tripod Partners
Director Childrens Services,Revenue Budgets,Childrens Services,Director Children & Fam Serv,A0284,Director Children / Fam Serv,A56000,Other Establishments,30043757,22/09/2022,202206,250.84,1002734,Tripod Partners
Director Childrens Services,Revenue Budgets,Childrens Services,Director Children & Fam Serv,A0284,Director Children / Fam Serv,A56000,Other Establishments,30043759,22/09/2022,202206,268.2,1002734,Tripod Partners
Director Childrens Services,Revenue Budgets,Childrens Services,Director Children & Fam Serv,A0284,Director Children / Fam Serv,A56000,Other Establishments,30043819,22/09/2022,202206,273.23,1002734,Tripod Partners
Director Childrens Services,Revenue Budgets,Childrens Services,Director Children & Fam Serv,A0284,Director Children / Fam Serv,A56000,Other Establishments,30043820,22/09/2022,202206,268.11,1002734,Tripod Partners
Director Childrens Services,Revenue Budgets,Childrens Services,Director Children & Fam Serv,A0284,Director Children / Fam Serv,A56000,Other Establishments,30043821,22/09/2022,202206,454.8,1002734,Tripod Partners
Director Childrens Services,Revenue Budgets,Childrens Services,Director Children & Fam Serv,A0284,Director Children / Fam Serv,A56000,Other Establishments,30043828,22/09/2022,202206,543.14,1002734,Tripod Partners
Director Childrens Services,Revenue Budgets,Childrens Services,Director Children & Fam Serv,A0284,Director Children / Fam Serv,A56000,Other Establishments,30043829,22/09/2022,202206,286.29,1002734,Tripod Partners
Education and Inclusion,Revenue Budgets,Childrens Services,Sen/Inclusion,A1858,Education Other than After Schools,A49105,Other Supplies & Services,30045050,10/02/2022,202206,"1,593.00",124467,Outdoor Learning Schools Cic
Education and Inclusion,Revenue Budgets,Childrens Services,Sen/Inclusion,A1565,Top Up Funding Academies & Fre,A49105,Other Supplies & Services,30039871,15/02/2022,202206,"7,687.00",107911,Humberston Park Special School
Education and Inclusion,Revenue Budgets,Childrens Services,Sen/Inclusion,A1565,Top Up Funding Academies & Fre,A49105,Other Supplies & Services,30039896,06/06/2022,202206,"5,491.00",107911,Humberston Park Special School
Education and Inclusion,Revenue Budgets,Childrens Services,Sen/Inclusion,A1858,Education Other than After Schools,A49105,Other Supplies & Services,30040237,13/06/2022,202206,750,1002037,Now choose You
Education and Inclusion,Revenue Budgets,Childrens Services,Education Transport,A0253,Home To Sch Transport Sec-Gy,A32020,Home to School Transport,30041384,25/06/2022,202206,"1,027.68",101404,Stagecoach Services
Education and Inclusion,Revenue Budgets,Childrens Services,Education Transport,A0249,Excluded And Ap Transport,A32020,Home to School Transport,30041384,25/06/2022,202206,"1,333.20",101404,Stagecoach Services
Education and Inclusion,Revenue Budgets,Childrens Services,Sen/Inclusion,A1783,Top-Up Non-Maintained & Indepe,A52005,Payments to Other Local Authorities,30039931,27/06/2022,202206,"3,109.35",Redacted Personal Information,Redacted Personal Information
Education and Inclusion,Revenue Budgets,Childrens Services,Sen/Inclusion,A1783,Top-Up Non-Maintained & Indepe,A52005,Payments to Other Local Authorities,30039933,27/06/2022,202206,"3,109.35",Redacted Personal Information,Redacted Personal Information
Education and Inclusion,Revenue Budgets,Childrens Services,Sen/Inclusion,A0621,Resource Based Provision,A01002,Pay - Teachers Supply Cover,30038690,15/07/2022,202206,599.5,142253,Reed Specialist Recruitment Ltd
Education and Inclusion,Revenue Budgets,Childrens Services,Sen/Inclusion,A0410,Ed Psychology Service,A40005,Equipment & Materials Learning,30042205,20/07/2022,202206,393.64,111377,Taylor & Francis Group
Education and Inclusion,Revenue Budgets,Childrens Services,Sen/Inclusion,A0621,Resource Based Provision,A01002,Pay - Teachers Supply Cover,30038712,22/07/2022,202206,359.7,142253,Reed Specialist Recruitment Ltd
Education and Inclusion,Revenue Budgets,Childrens Services,Sen/Inclusion,A0621,Resource Based Provision,A01002,Pay - Teachers Supply Cover,30039728,22/07/2022,202206,599.5,142253,Reed Specialist Recruitment Ltd
Education and Inclusion,Revenue Budgets,Childrens Services,Sen/Inclusion,A0621,Resource Based Provision,A01002,Pay - Teachers Supply Cover,30038716,29/07/2022,202206,551.6,142253,Reed Specialist Recruitment Ltd
Education and Inclusion,Revenue Budgets,Childrens Services,Sen/Inclusion,A0621,Resource Based Provision,A40105,Non-Teaching Materials,30039724,31/07/2022,202206,282.82,102454,Office Friends Ltd
Education and Inclusion,Revenue Budgets,Childrens Services,Education Transport,A0254,Home To School Transport Sen,A32020,Home to School Transport,30041561,31/07/2022,202206,510,101222,Aa Radio Cars Ltd
Education and Inclusion,Revenue Budgets,Childrens Services,Education Transport,A0254,Home To School Transport Sen,A32020,Home to School Transport,30041567,31/07/2022,202206,885,101222,Aa Radio Cars Ltd
Education and Inclusion,Revenue Budgets,Childrens Services,Pupil Support Safeguard/Wellbeing,A0245,Schools Services,A49105,Other Supplies & Services,30039948,01/08/2022,202206,"1,919.31",144120,Learning4life-Gy-Cic
Education and Inclusion,Revenue Budgets,Childrens Services,Sen/Inclusion,A1563,Top Up Funding Post 16,A56000,Other Establishments,30042862,02/08/2022,202206,"5,528.00",101728,Community Press Office Ltd
Education and Inclusion,Capital Spend,Childrens Services,Sufficiency Of School Places,Y1807,Beacon Academy,C01009,"New Construction, conversion & renovation",30044601,05/08/2022,202206,"49,376.50",100632,E S Rudkin Ltd
Education and Inclusion,Capital Spend,Childrens Services,Sufficiency Of School Places,Y1806,Willows Academy,C01009,"New Construction, conversion & renovation",30040481,08/08/2022,202206,"2,481.96",144162,Topcon Building Ltd
Education and Inclusion,Capital Spend,Childrens Services,Sufficiency Of School Places,Y1098,Enfield Primary,C01009,"New Construction, conversion & renovation",30043264,12/08/2022,202206,"37,905.00",100632,E S Rudkin Ltd
Education and Inclusion,Revenue Budgets,Childrens Services,Attainment and Progress,A0295,Flexible Fund Entitle Early Yr,A56000,Other Establishments,30037966,15/08/2022,202206,"1,188.00",120365,Scartho Infants School
Education and Inclusion,Revenue Budgets,Childrens Services,Sen/Inclusion,A1783,Top-Up Non-Maintained & Indepe,A52005,Payments to Other Local Authorities,30043485,15/08/2022,202206,"1,800.00",Redacted Personal Information,Redacted Personal Information
Education and Inclusion,Revenue Budgets,Childrens Services,Sen/Inclusion,A1783,Top-Up Non-Maintained & Indepe,A52005,Payments to Other Local Authorities,30043511,15/08/2022,202206,"1,800.00",Redacted Personal Information,Redacted Personal Information
Education and Inclusion,Revenue Budgets,Childrens Services,Sen/Inclusion,A1783,Top-Up Non-Maintained & Indepe,A52005,Payments to Other Local Authorities,30044261,15/08/2022,202206,"9,962.63",Redacted Personal Information,Redacted Personal Information
Education and Inclusion,Revenue Budgets,Childrens Services,Sen/Inclusion,A1783,Top-Up Non-Maintained & Indepe,A52005,Payments to Other Local Authorities,30044262,15/08/2022,202206,"10,858.48",Redacted Personal Information,Redacted Personal Information
Education and Inclusion,Capital Spend,Childrens Services,Sufficiency Of School Places,Y1807,Beacon Academy,C01009,"New Construction, conversion & renovation",30040483,22/08/2022,202206,"1,224.24",144162,Topcon Building Ltd
Education and Inclusion,Revenue Budgets,Childrens Services,Education Transport,A0254,Home To School Transport Sen,A32020,Home to School Transport,30036787,23/08/2022,202206,258.33,INCARSAFET,Frithgate Ltd T/A In Car Safety Centre
Education and Inclusion,Revenue Budgets,Childrens Services,Education Transport,A0254,Home To School Transport Sen,A32020,Home to School Transport,30039842,23/08/2022,202206,630,141297,Smt (Lincs) Enterprises Ltd
Education and Inclusion,Revenue Budgets,Childrens Services,Education Transport,A0254,Home To School Transport Sen,A32020,Home to School Transport,30039899,23/08/2022,202206,"1,440.00",141297,Smt (Lincs) Enterprises Ltd
Education and Inclusion,Revenue Budgets,Childrens Services,Sen/Inclusion,A1783,Top-Up Non-Maintained & Indepe,A52005,Payments to Other Local Authorities,30036199,24/08/2022,202206,"2,242.49",Redacted Personal Information,Redacted Personal Information
Education and Inclusion,Revenue Budgets,Childrens Services,Sen/Inclusion,A1783,Top-Up Non-Maintained & Indepe,A52005,Payments to Other Local Authorities,30036199,24/08/2022,202206,"2,242.50",Redacted Personal Information,Redacted Personal Information
Education and Inclusion,Revenue Budgets,Childrens Services,Sen/Inclusion,A1783,Top-Up Non-Maintained & Indepe,A52005,Payments to Other Local Authorities,30036199,24/08/2022,202206,"3,622.51",Redacted Personal Information,Redacted Personal Information
Education and Inclusion,Revenue Budgets,Childrens Services,Sen/Inclusion,A1783,Top-Up Non-Maintained & Indepe,A52005,Payments to Other Local Authorities,30036199,24/08/2022,202206,"3,622.51",Redacted Personal Information,Redacted Personal Information
Education and Inclusion,Revenue Budgets,Childrens Services,Sen/Inclusion,A1783,Top-Up Non-Maintained & Indepe,A52005,Payments to Other Local Authorities,30036199,24/08/2022,202206,"15,287.99",Redacted Personal Information,Redacted Personal Information
Education and Inclusion,Revenue Budgets,Childrens Services,Sen/Inclusion,A1783,Top-Up Non-Maintained & Indepe,A52005,Payments to Other Local Authorities,30036202,24/08/2022,202206,"23,190.00",Redacted Personal Information,Redacted Personal Information
Education and Inclusion,Revenue Budgets,Childrens Services,Sen/Inclusion,A1783,Top-Up Non-Maintained & Indepe,A52005,Payments to Other Local Authorities,30036218,24/08/2022,202206,"27,018.00",Redacted Personal Information,Redacted Personal Information
Education and Inclusion,Revenue Budgets,Childrens Services,Sen/Inclusion,A1783,Top-Up Non-Maintained & Indepe,A52005,Payments to Other Local Authorities,30036219,24/08/2022,202206,"27,018.00",Redacted Personal Information,Redacted Personal Information
Education and Inclusion,Revenue Budgets,Childrens Services,Sen/Inclusion,A1783,Top-Up Non-Maintained & Indepe,A52005,Payments to Other Local Authorities,30036222,24/08/2022,202206,"27,018.00",Redacted Personal Information,Redacted Personal Information
Education and Inclusion,Revenue Budgets,Childrens Services,Sen/Inclusion,A1783,Top-Up Non-Maintained & Indepe,A52005,Payments to Other Local Authorities,30036228,24/08/2022,202206,"27,018.00",Redacted Personal Information,Redacted Personal Information
Education and Inclusion,Revenue Budgets,Childrens Services,Sen/Inclusion,A1783,Top-Up Non-Maintained & Indepe,A52005,Payments to Other Local Authorities,30036229,24/08/2022,202206,"27,018.00",Redacted Personal Information,Redacted Personal Information
Education and Inclusion,Revenue Budgets,Childrens Services,Sen/Inclusion,A1783,Top-Up Non-Maintained & Indepe,A52005,Payments to Other Local Authorities,30036232,24/08/2022,202206,"27,018.00",Redacted Personal Information,Redacted Personal Information
Education and Inclusion,Revenue Budgets,Childrens Services,Education Transport,A0254,Home To School Transport Sen,A32020,Home to School Transport,30038904,24/08/2022,202206,"4,165.00",130777,Amvale Medical Transport Ltd
Education and Inclusion,Revenue Budgets,Childrens Services,Education Transport,A0254,Home To School Transport Sen,A32020,Home to School Transport,30038908,24/08/2022,202206,"4,165.00",130777,Amvale Medical Transport Ltd
Education and Inclusion,Revenue Budgets,Childrens Services,Education Transport,A0254,Home To School Transport Sen,A32020,Home to School Transport,30038909,24/08/2022,202206,"4,165.00",130777,Amvale Medical Transport Ltd
Education and Inclusion,Revenue Budgets,Childrens Services,Education Transport,A0254,Home To School Transport Sen,A32020,Home to School Transport,30038913,24/08/2022,202206,"4,165.00",130777,Amvale Medical Transport Ltd
Education and Inclusion,Revenue Budgets,Childrens Services,Education Transport,A0254,Home To School Transport Sen,A32020,Home to School Transport,30038915,24/08/2022,202206,"4,165.00",130777,Amvale Medical Transport Ltd
Education and Inclusion,Revenue Budgets,Childrens Services,Sen/Inclusion,A1858,Education Other than After Schools,A49105,Other Supplies & Services,30040002,27/08/2022,202206,718.38,1000900,Currys Group Limited   T/a Currys Business
Education and Inclusion,Revenue Budgets,Childrens Services,Education Transport,A0248,Exceptional Circumstances,A32020,Home to School Transport,30037246,28/08/2022,202206,265.54,100546,Links Taxis
Education and Inclusion,Revenue Budgets,Childrens Services,Education Transport,A0253,Home To Sch Transport Sec-Gy,A32020,Home to School Transport,30037246,28/08/2022,202206,354.06,100546,Links Taxis
Education and Inclusion,Revenue Budgets,Childrens Services,Education Transport,A0249,Excluded And Ap Transport,A32020,Home to School Transport,30037246,28/08/2022,202206,442.57,100546,Links Taxis
Education and Inclusion,Revenue Budgets,Childrens Services,Education Transport,A0254,Home To School Transport Sen,A32020,Home to School Transport,30037246,28/08/2022,202206,"2,212.85",100546,Links Taxis
Education and Inclusion,Revenue Budgets,Childrens Services,Education Transport,A0247,Post 16 Sen,A32020,Home to School Transport,30037246,28/08/2022,202206,"5,576.38",100546,Links Taxis
Education and Inclusion,Revenue Budgets,Childrens Services,Education Transport,A0254,Home To School Transport Sen,A32020,Home to School Transport,30037245,30/08/2022,202206,"1,662.60",121524,Grimsby Minibuses Ltd
Education and Inclusion,Revenue Budgets,Childrens Services,Education Transport,A0254,Home To School Transport Sen,A32020,Home to School Transport,30038847,30/08/2022,202206,"1,190.00",102124,Minicabs Cleethorpes (Lincs) Ltd
Education and Inclusion,Revenue Budgets,Childrens Services,Education Transport,A0254,Home To School Transport Sen,A32020,Home to School Transport,30038995,31/08/2022,202206,"3,570.00",102879,Pc Coaches Ltd
Education and Inclusion,Revenue Budgets,Childrens Services,Sen/Inclusion,A1858,Education Other than After Schools,A49105,Other Supplies & Services,30039920,31/08/2022,202206,656.25,143856,Nunnys Farm Cic
Education and Inclusion,Capital Spend,Childrens Services,Sufficiency Of School Places,Y1098,Enfield Primary,C01011,External Professional Fees,30041209,01/09/2022,202206,"2,000.00",133267,Equans Services Ltd
Education and Inclusion,Capital Spend,Childrens Services,Send Special Prov Fund,Y1675,Send Special Prov Fund,C01011,External Professional Fees,30041228,01/09/2022,202206,500,133267,Equans Services Ltd
Education and Inclusion,Capital Spend,Childrens Services,Backlog Maintenance Schools,Y0957,Western Primary School,C01011,External Professional Fees,30041237,01/09/2022,202206,"1,000.00",133267,Equans Services Ltd
Education and Inclusion,Capital Spend,Childrens Services,Sufficiency Of School Places,Y1869,Waltham Provision,C01011,External Professional Fees,30041245,01/09/2022,202206,"2,000.00",133267,Equans Services Ltd
Education and Inclusion,Capital Spend,Childrens Services,Sufficiency Of School Places,Y1867,Scartho Provision,C01011,External Professional Fees,30041257,01/09/2022,202206,"2,000.00",133267,Equans Services Ltd
Education and Inclusion,Revenue Budgets,Childrens Services,Sen/Inclusion,A1565,Top Up Funding Academies & Fre,A52005,Payments to Other Local Authorities,30045657,01/09/2022,202206,"1,623.23",Redacted Personal Information,Redacted Personal Information
Education and Inclusion,Revenue Budgets,Childrens Services,Sen/Inclusion,A1715,Early Years Inclusion Fund,A47008,Contributions - Other,30038103,05/09/2022,202206,"1,235.00",Redacted Personal Information,Redacted Personal Information
Education and Inclusion,Revenue Budgets,Childrens Services,Sen/Inclusion,A1715,Early Years Inclusion Fund,A47008,Contributions - Other,30038103,05/09/2022,202206,"1,976.00",Redacted Personal Information,Redacted Personal Information
Education and Inclusion,Revenue Budgets,Childrens Services,Sen/Inclusion,A1715,Early Years Inclusion Fund,A47008,Contributions - Other,30038126,05/09/2022,202206,"1,235.00",Redacted Personal Information,Redacted Personal Information
Education and Inclusion,Revenue Budgets,Childrens Services,Sen/Inclusion,A1715,Early Years Inclusion Fund,A47008,Contributions - Other,30038126,05/09/2022,202206,"1,235.00",Redacted Personal Information,Redacted Personal Information
Education and Inclusion,Revenue Budgets,Childrens Services,Attainment and Progress,A1640,School Improvement,A93000,Fees & Charges,30040119,05/09/2022,202206,"1,400.00",101566,Humberston C Of E Primary School
Education and Inclusion,Capital Spend,Childrens Services,Backlog Maintenance Schools,Y0957,Western Primary School,C01009,"New Construction, conversion & renovation",30040417,05/09/2022,202206,"43,555.02",100786,Kes Building Maintenance Limited
Education and Inclusion,Revenue Budgets,Childrens Services,Sen/Inclusion,A1783,Top-Up Non-Maintained & Indepe,A52005,Payments to Other Local Authorities,30040649,06/09/2022,202206,"85,381.08",Redacted Personal Information,Redacted Personal Information
Education and Inclusion,Revenue Budgets,Childrens Services,Sen/Inclusion,A1783,Top-Up Non-Maintained & Indepe,A52005,Payments to Other Local Authorities,30040676,06/09/2022,202206,"2,928.00",Redacted Personal Information,Redacted Personal Information
Education and Inclusion,Revenue Budgets,Childrens Services,Sen/Inclusion,A1563,Top Up Funding Post 16,A56000,Other Establishments,30040735,08/09/2022,202206,"5,528.00",101728,Community Press Office Ltd
Education and Inclusion,Revenue Budgets,Childrens Services,Employability and Skills,A1723,"Youth Careers, Info & Guidance",A45005,IT Hardware Purchase,30042817,08/09/2022,202206,339.74,101489,First Media Solutions Ltd
Education and Inclusion,Revenue Budgets,Childrens Services,Sen/Inclusion,A1858,Education Other than After Schools,A52005,Payments to Other Local Authorities,30039674,12/09/2022,202206,400,Redacted Personal Information,Redacted Personal Information
Education and Inclusion,Revenue Budgets,Childrens Services,Sen/Inclusion,A1565,Top Up Funding Academies & Fre,A52005,Payments to Other Local Authorities,30045046,12/09/2022,202206,"2,312.50",Redacted Personal Information,Redacted Personal Information
Education and Inclusion,Revenue Budgets,Childrens Services,Sen/Inclusion,A1858,Education Other than After Schools,A52005,Payments to Other Local Authorities,30042816,14/09/2022,202206,"5,250.00",Redacted Personal Information,Redacted Personal Information
Education and Inclusion,Revenue Budgets,Childrens Services,Sen/Inclusion,A1565,Top Up Funding Academies & Fre,A47007,Contributions - Third Sector,42166921,15/09/2022,202206,"2,091.01",Redacted Personal Information,Redacted Personal Information
Education and Inclusion,Revenue Budgets,Childrens Services,Sen/Inclusion,A1783,Top-Up Non-Maintained & Indepe,A52005,Payments to Other Local Authorities,30043491,16/09/2022,202206,"10,508.21",Redacted Personal Information,Redacted Personal Information
Education and Inclusion,Revenue Budgets,Childrens Services,Sen/Inclusion,A1783,Top-Up Non-Maintained & Indepe,A52005,Payments to Other Local Authorities,30043492,16/09/2022,202206,"9,641.26",Redacted Personal Information,Redacted Personal Information
Education and Inclusion,Revenue Budgets,Childrens Services,Sen/Inclusion,A1783,Top-Up Non-Maintained & Indepe,A52005,Payments to Other Local Authorities,30043499,16/09/2022,202206,"8,066.63",Redacted Personal Information,Redacted Personal Information
Education and Inclusion,Revenue Budgets,Childrens Services,Sen/Inclusion,A0621,Resource Based Provision,A45005,IT Hardware Purchase,30042677,17/09/2022,202206,"1,028.00",119571,Technology Support Solutions Ltd
Education and Inclusion,Revenue Budgets,Childrens Services,Pupil Support Safeguard/Wellbeing,A0245,Schools Services,A49105,Other Supplies & Services,30043139,21/09/2022,202206,"1,919.31",144120,Learning4life-Gy-Cic
Education and Inclusion,Revenue Budgets,Childrens Services,Attainment and Progress,A0595,Reynolds Cc Daycare,A42005,Clothing & Uniforms & Laundry,30044678,21/09/2022,202206,255.7,100513,Banaman
Education and Inclusion,Revenue Budgets,Childrens Services,Sen/Inclusion,A1565,Top Up Funding Academies & Fre,A47007,Contributions - Third Sector,42168568,22/09/2022,202206,935,Redacted Personal Information,Redacted Personal Information
Education and Inclusion,Revenue Budgets,Childrens Services,Sen/Inclusion,A1715,Early Years Inclusion Fund,A47008,Contributions - Other,30043149,23/09/2022,202206,988,Redacted Personal Information,Redacted Personal Information
Education and Inclusion,Revenue Budgets,Childrens Services,Attainment and Progress,A1830,Holiday Activity and Food,A45005,IT Hardware Purchase,30044173,23/09/2022,202206,721.44,101011,Insight Direct (Uk) Ltd
Education and Inclusion,Revenue Budgets,Childrens Services,Sen/Inclusion,A1783,Top-Up Non-Maintained & Indepe,A52005,Payments to Other Local Authorities,30044526,26/09/2022,202206,"4,114.00",Redacted Personal Information,Redacted Personal Information
Education and Inclusion,Revenue Budgets,Childrens Services,Sen/Inclusion,A1563,Top Up Funding Post 16,A52005,Payments to Other Local Authorities,30045372,27/09/2022,202206,"2,811.00",101728,Community Press Office Ltd
Education and Inclusion,Revenue Budgets,Childrens Services,Sen/Inclusion,A1565,Top Up Funding Academies & Fre,A48900,Contingency Reserve,30044898,28/09/2022,202206,"12,557.57",107472,The Cambridge Park Academy
Education and Inclusion,Revenue Budgets,Childrens Services,Sen/Inclusion,A1565,Top Up Funding Academies & Fre,A48900,Contingency Reserve,30044898,28/09/2022,202206,"26,246.32",107472,The Cambridge Park Academy
Environment,Revenue Budgets,Environment,Grounds & Bereavement Services,A0646,Grimsby Crematorium,A11005,Agency Supply Staff,30038495,28/03/2022,202206,"1,151.60",147051,Ethical Recruitment Agency (Grimsby) Ltd
Environment,Revenue Budgets,Environment,Waste Services,A0683,Refuse - Domestic / Recycling,A11005,Agency Supply Staff,30037762,28/04/2022,202206,984.56,147051,Ethical Recruitment Agency (Grimsby) Ltd
Environment,Revenue Budgets,Environment,Grounds & Bereavement Services,A0661,Grounds Maint And Parks,A40920,Purchase of Equipment,30037211,05/05/2022,202206,631.8,100623,Rainer Security Products Ltd
Environment,Capital Spend,Environment,Depot Rationalisation,Y1812,Depot Rationalisation,C01005,Purchase of Land & Buildings,30040361,17/05/2022,202206,"8,821.87",133267,Equans Services Ltd
Environment,Revenue Budgets,Environment,Waste Services,A0683,Refuse - Domestic / Recycling,A11005,Agency Supply Staff,30037778,20/05/2022,202206,791.78,147051,Ethical Recruitment Agency (Grimsby) Ltd
Environment,Revenue Budgets,Environment,Waste Services,A0683,Refuse - Domestic / Recycling,A11005,Agency Supply Staff,30037773,28/06/2022,202206,399.33,147051,Ethical Recruitment Agency (Grimsby) Ltd
Environment,Revenue Budgets,Environment,Grounds & Bereavement Services,A0646,Grimsby Crematorium,A11015,Other Agency Staff,30038448,28/06/2022,202206,"1,527.79",147051,Ethical Recruitment Agency (Grimsby) Ltd
Environment,Capital Spend,Environment,Enhancement Bereavement Serv,Y1761,Tearoom / Flower Shop,C01009,"New Construction, conversion & renovation",30036261,05/07/2022,202206,"143,252.77",144162,Topcon Building Ltd
Environment,Revenue Budgets,Environment,Grounds & Bereavement Services,A1839,Reflections,A40920,Purchase of Equipment,10015743,11/07/2022,202206,-789.09,100593,Sylvester-Keal Ltd
Environment,Capital Spend,Environment,Enhancement Bereavement Serv,Y1761,Tearoom / Flower Shop,C01009,"New Construction, conversion & renovation",30036639,11/07/2022,202206,"2,468.77",100593,Sylvester-Keal Ltd
Environment,Capital Spend,Environment,Enhancement Bereavement Serv,Y1761,Tearoom / Flower Shop,C01009,"New Construction, conversion & renovation",30038095,11/07/2022,202206,642.36,100593,Sylvester-Keal Ltd
Environment,Revenue Budgets,Environment,Grounds & Bereavement Services,A1839,Reflections,A40920,Purchase of Equipment,30038144,11/07/2022,202206,789.09,100593,Sylvester-Keal Ltd
Environment,Revenue Budgets,Environment,Regulatory Services,A0653,Commercial Regulatory Team,A20005,"Property Repairs, Maintenance & Alterations",30040653,18/07/2022,202206,"12,804.78",136453,Jc Pomfret Construction Ltd
Environment,Capital Spend,Environment,Enhancement Bereavement Serv,Y1761,Tearoom / Flower Shop,C01009,"New Construction, conversion & renovation",30043810,21/07/2022,202206,286.96,100590,Office Depot (Intl) Ltd
Environment,Capital Spend,Environment,Enhancement Bereavement Serv,Y1761,Tearoom / Flower Shop,C01009,"New Construction, conversion & renovation",30036620,25/07/2022,202206,"2,047.84",100593,Sylvester-Keal Ltd
Environment,Capital Spend,Environment,Fleet Replacement Programme,Y1419,Fleet Vehicle Purchase,C01006,Purchase of Vehicles & Plant,30036494,27/07/2022,202206,"104,562.21",1002526,NTM GB LTD
Environment,Revenue Budgets,Environment,Waste Services,A0683,Refuse - Domestic / Recycling,A11005,Agency Supply Staff,30037767,27/07/2022,202206,369.72,147051,Ethical Recruitment Agency (Grimsby) Ltd
Environment,Revenue Budgets,Environment,Grounds & Bereavement Services,A0646,Grimsby Crematorium,A11005,Agency Supply Staff,30039551,27/07/2022,202206,"1,002.43",147051,Ethical Recruitment Agency (Grimsby) Ltd
Environment,Capital Spend,Environment,Fleet Replacement Programme,Y1419,Fleet Vehicle Purchase,C01006,Purchase of Vehicles & Plant,30030096,29/07/2022,202206,500,100752,F G Adamson & Son
Environment,Capital Spend,Environment,Fleet Replacement Programme,Y1419,Fleet Vehicle Purchase,C01006,Purchase of Vehicles & Plant,30030096,29/07/2022,202206,640,100752,F G Adamson & Son
Environment,Capital Spend,Environment,Fleet Replacement Programme,Y1419,Fleet Vehicle Purchase,C01006,Purchase of Vehicles & Plant,30030096,29/07/2022,202206,"21,895.00",100752,F G Adamson & Son
Environment,Revenue Budgets,Environment,Grounds & Bereavement Services,A0646,Grimsby Crematorium,A27015,Refuse Collection,30032479,31/07/2022,202206,386.89,101433,Ellgia Limited
Environment,Revenue Budgets,Environment,Grounds & Bereavement Services,A0646,Grimsby Crematorium,A40920,Purchase of Equipment,30044930,31/07/2022,202206,"2,403.00",147281,Vivedia Ltd
Environment,Revenue Budgets,Environment,Garage & Fleet Strategy,A0665,Garage - Lab Holding,A45020,Telephones,30044686,01/08/2022,202206,"1,302.75",1000343,Ctrack Ltd
Environment,Revenue Budgets,Environment,Garage & Fleet Strategy,A0665,Garage - Lab Holding,A45020,Telephones,30044799,01/08/2022,202206,507,1000343,Ctrack Ltd
Environment,Capital Spend,Environment,Enhancement Bereavement Serv,Y1761,Tearoom / Flower Shop,C01009,"New Construction, conversion & renovation",30036259,02/08/2022,202206,"22,001.19",144162,Topcon Building Ltd
Environment,Capital Spend,Environment,Regulatory Services Mgt System,Y1844,Regulatory Serv Mgt System,C01006,Purchase of Vehicles & Plant,30032336,05/08/2022,202206,"5,940.00",111799,Arcus Global Limited
Environment,Capital Spend,Environment,Enhancement Bereavement Serv,Y1761,Tearoom / Flower Shop,C01009,"New Construction, conversion & renovation",30038496,05/08/2022,202206,900,102314,Capita Business Services Ltd
Environment,Revenue Budgets,Environment,Garage & Fleet Strategy,A0665,Garage - Lab Holding,A30010,Vehicles Repairs,10016880,12/08/2022,202206,-432.25,104090,E Bacon & Co Ltd
Environment,Revenue Budgets,Environment,Garage & Fleet Strategy,A0665,Garage - Lab Holding,A30010,Vehicles Repairs,30040484,12/08/2022,202206,432.25,104090,E Bacon & Co Ltd
Environment,Revenue Budgets,Environment,Garage & Fleet Strategy,A0665,Garage - Lab Holding,A30010,Vehicles Repairs,30041279,12/08/2022,202206,432.25,104090,E Bacon & Co Ltd
Environment,Revenue Budgets,Environment,Regulatory Services,A0653,Commercial Regulatory Team,A20005,"Property Repairs, Maintenance & Alterations",30039548,18/08/2022,202206,"1,252.00",102044,Lincs Electrical Services Ltd
Environment,Revenue Budgets,Environment,Grounds & Bereavement Services,A1839,Reflections,A40920,Purchase of Equipment,30041206,18/08/2022,202206,800.63,100593,Sylvester-Keal Ltd
Environment,Revenue Budgets,Environment,Garage & Fleet Strategy,A0665,Garage - Lab Holding,A30010,Vehicles Repairs,30037906,19/08/2022,202206,"6,001.68",100886,Fleet Factors Ltd
Environment,Revenue Budgets,Environment,Garage & Fleet Strategy,A0665,Garage - Lab Holding,A30010,Vehicles Repairs,30037912,19/08/2022,202206,"2,293.18",100886,Fleet Factors Ltd
Environment,Revenue Budgets,Environment,Garage & Fleet Strategy,A0665,Garage - Lab Holding,A30010,Vehicles Repairs,30037914,19/08/2022,202206,395.39,100886,Fleet Factors Ltd
Environment,Revenue Budgets,Environment,Garage & Fleet Strategy,A0665,Garage - Lab Holding,A30010,Vehicles Repairs,30037917,19/08/2022,202206,909.32,100886,Fleet Factors Ltd
Environment,Revenue Budgets,Environment,Garage & Fleet Strategy,A0665,Garage - Lab Holding,A30010,Vehicles Repairs,30037921,19/08/2022,202206,"2,950.37",100886,Fleet Factors Ltd
Environment,Revenue Budgets,Environment,Waste Services,A0683,Refuse - Domestic / Recycling,A11005,Agency Supply Staff,30037095,21/08/2022,202206,"1,057.01",144850,On Line People Ltd
Environment,Revenue Budgets,Environment,Garage & Fleet Strategy,A0665,Garage - Lab Holding,A42005,Clothing & Uniforms & Laundry,30040405,21/08/2022,202206,463.55,100810,Johnsons Apparelmaster
Environment,Capital Spend,Environment,Enhancement Bereavement Serv,Y1761,Tearoom / Flower Shop,C01009,"New Construction, conversion & renovation",30036497,23/08/2022,202206,262.84,1002196,E-Tech Solutions
Environment,Capital Spend,Environment,Enhancement Bereavement Serv,Y1761,Tearoom / Flower Shop,C01009,"New Construction, conversion & renovation",30036497,23/08/2022,202206,364.44,1002196,E-Tech Solutions
Environment,Capital Spend,Environment,Enhancement Bereavement Serv,Y1761,Tearoom / Flower Shop,C01009,"New Construction, conversion & renovation",30036497,23/08/2022,202206,600,1002196,E-Tech Solutions
Environment,Revenue Budgets,Environment,Grounds & Bereavement Services,A0679,Resort,A20005,"Property Repairs, Maintenance & Alterations",30036996,23/08/2022,202206,368.5,100587,Rentokil Pest Control
Environment,Revenue Budgets,Environment,Garage & Fleet Strategy,A0665,Garage - Lab Holding,A30010,Vehicles Repairs,30039924,23/08/2022,202206,290,101828,B A Bush & Son Ltd
Environment,Revenue Budgets,Environment,Grounds & Bereavement Services,A0680,Foreshore,A20005,"Property Repairs, Maintenance & Alterations",30040737,23/08/2022,202206,410.85,100587,Rentokil Pest Control
Environment,Revenue Budgets,Environment,Grounds & Bereavement Services,A0681,Boating Lake Area,A20005,"Property Repairs, Maintenance & Alterations",30042159,23/08/2022,202206,351.1,100587,Rentokil Pest Control
Environment,Revenue Budgets,Environment,Grounds & Bereavement Services,A1839,Reflections,A40920,Purchase of Equipment,30038094,24/08/2022,202206,511.24,100593,Sylvester-Keal Ltd
Environment,Revenue Budgets,Environment,Garage & Fleet Strategy,A0665,Garage - Lab Holding,A30010,Vehicles Repairs,30039880,24/08/2022,202206,326.31,101828,B A Bush & Son Ltd
Environment,Revenue Budgets,Environment,Grounds & Bereavement Services,A0661,Grounds Maint And Parks,A56000,Other Establishments,30036314,25/08/2022,202206,663,103412,Harroquip Pump Systems
Environment,Revenue Budgets,Environment,Garage & Fleet Strategy,A0665,Garage - Lab Holding,A30010,Vehicles Repairs,30039863,25/08/2022,202206,315.99,101828,B A Bush & Son Ltd
Environment,Revenue Budgets,Environment,Grounds & Bereavement Services,A0661,Grounds Maint And Parks,A49105,Other Supplies & Services,30042229,25/08/2022,202206,"3,000.00",1002844,R T H Haxby & Sons
Environment,Revenue Budgets,Environment,Garage & Fleet Strategy,A0665,Garage - Lab Holding,A30010,Vehicles Repairs,30037920,26/08/2022,202206,"3,490.43",100886,Fleet Factors Ltd
Environment,Revenue Budgets,Environment,Garage & Fleet Strategy,A0665,Garage - Lab Holding,A30010,Vehicles Repairs,30037936,26/08/2022,202206,"1,639.75",100886,Fleet Factors Ltd
Environment,Revenue Budgets,Environment,Regulatory Services,A0653,Commercial Regulatory Team,A11005,Agency Supply Staff,30038266,26/08/2022,202206,424.65,143357,The Best Connection
Environment,Revenue Budgets,Environment,Regulatory Services,A0653,Commercial Regulatory Team,A49105,Other Supplies & Services,30038275,26/08/2022,202206,675,140144,Public Analyst Scientific Services Limited
Environment,Revenue Budgets,Environment,Waste Services,A0683,Refuse - Domestic / Recycling,A11005,Agency Supply Staff,30039655,28/08/2022,202206,277.78,144850,On Line People Ltd
Environment,Revenue Budgets,Environment,Grounds & Bereavement Services,A0661,Grounds Maint And Parks,A40920,Purchase of Equipment,30036772,30/08/2022,202206,"1,430.00",100595,Fleet Line Markers Limited
Environment,Revenue Budgets,Environment,Waste Services,A0683,Refuse - Domestic / Recycling,A11005,Agency Supply Staff,30037761,30/08/2022,202206,355.5,147051,Ethical Recruitment Agency (Grimsby) Ltd
Environment,Revenue Budgets,Environment,Waste Services,A0683,Refuse - Domestic / Recycling,A56000,Other Establishments,30040358,30/08/2022,202206,526.8,100635,Vending Enterprises
Environment,Revenue Budgets,Environment,Garage & Fleet Strategy,A0665,Garage - Lab Holding,A30010,Vehicles Repairs,30040494,30/08/2022,202206,261.27,101828,B A Bush & Son Ltd
Environment,Revenue Budgets,Environment,Grounds & Bereavement Services,A0646,Grimsby Crematorium,A11015,Other Agency Staff,30044006,30/08/2022,202206,"1,894.77",147051,Ethical Recruitment Agency (Grimsby) Ltd
Environment,Revenue Budgets,Environment,Grounds & Bereavement Services,A0661,Grounds Maint And Parks,A56000,Other Establishments,30036771,31/08/2022,202206,"1,037.00",103412,Harroquip Pump Systems
Environment,Revenue Budgets,Environment,Grounds & Bereavement Services,A0661,Grounds Maint And Parks,A56000,Other Establishments,30036775,31/08/2022,202206,368,103412,Harroquip Pump Systems
Environment,Revenue Budgets,Environment,Grounds & Bereavement Services,A0661,Grounds Maint And Parks,A20005,"Property Repairs, Maintenance & Alterations",30036780,31/08/2022,202206,"16,369.00",103412,Harroquip Pump Systems
Environment,Revenue Budgets,Environment,Grounds & Bereavement Services,A1839,Reflections,A41905,Catering,30037111,31/08/2022,202206,356.12,121021,Holdsworth Ltd
Environment,Revenue Budgets,Environment,Regulatory Services,A1721,Environmental Enforcement,A56000,Other Establishments,30037593,31/08/2022,202206,-330,103270,Sangreat Kennels
Environment,Revenue Budgets,Environment,Regulatory Services,A1721,Environmental Enforcement,A56000,Other Establishments,30037593,31/08/2022,202206,"3,015.00",103270,Sangreat Kennels
Environment,Revenue Budgets,Environment,Regulatory Services,A0653,Commercial Regulatory Team,A47010,Subscriptions (non staff),30037769,31/08/2022,202206,421.86,145373,Maritime Cargo Processing Plc
Environment,Revenue Budgets,Environment,Regulatory Services,A0653,Commercial Regulatory Team,A49105,Other Supplies & Services,30037807,31/08/2022,202206,524.1,139602,Eurofins Water Hygiene Testing Uk Ltd
Environment,Capital Spend,Environment,Depot Rationalisation,Y1812,Depot Rationalisation,C01005,Purchase of Land & Buildings,30038176,31/08/2022,202206,324.86,149901,Cleveland Containers Ltd
Environment,Capital Spend,Environment,Depot Rationalisation,Y1812,Depot Rationalisation,C01005,Purchase of Land & Buildings,30038177,31/08/2022,202206,324.86,149901,Cleveland Containers Ltd
Environment,Capital Spend,Environment,Depot Rationalisation,Y1812,Depot Rationalisation,C01005,Purchase of Land & Buildings,30038180,31/08/2022,202206,324.86,149901,Cleveland Containers Ltd
Environment,Capital Spend,Environment,Environmental Services Mgt System,Y1843,Environmental Serv Mgt System,C01008,Purchase of Software & Licences,30038277,31/08/2022,202206,"24,565.00",1000319,Yotta Limited
Environment,Revenue Budgets,Environment,Grounds & Bereavement Services,A0646,Grimsby Crematorium,A40920,Purchase of Equipment,30038852,31/08/2022,202206,"1,781.00",147281,Vivedia Ltd
Environment,Revenue Budgets,Environment,Grounds & Bereavement Services,A0661,Grounds Maint And Parks,A32005,Hire of Transport - Non Staff,30039077,31/08/2022,202206,780,1000180,Vale Engineering (York) Ltd
Environment,Revenue Budgets,Environment,Grounds & Bereavement Services,A0646,Grimsby Crematorium,A27015,Refuse Collection,30039786,31/08/2022,202206,393.97,101433,Ellgia Limited
Environment,Revenue Budgets,Environment,Grounds & Bereavement Services,A0661,Grounds Maint And Parks,A56000,Other Establishments,30040580,31/08/2022,202206,633.4,101116,Paprec Energies Grimsby Operations Ltd
Environment,Revenue Budgets,Environment,Grounds & Bereavement Services,A0661,Grounds Maint And Parks,A30017,Other Vehicle Costs,30040643,31/08/2022,202206,"1,423.99",108278,Allstar Business Solutions Ltd
Environment,Revenue Budgets,Environment,Street Cleansing,A0673,Street Cleansing,A56000,Other Establishments,30041369,31/08/2022,202206,"1,309.22",102009,Srcl Ltd
Environment,Revenue Budgets,Environment,Grounds & Bereavement Services,A0661,Grounds Maint And Parks,A42005,Clothing & Uniforms & Laundry,30037759,01/09/2022,202206,"1,431.84",147941,Pws (Protective Wear Supplies) Ltd
Environment,Revenue Budgets,Environment,Garage & Fleet Strategy,A0665,Garage - Lab Holding,A47010,Subscriptions (non staff),30037916,01/09/2022,202206,"1,600.00",101027,Freight Transport Association Ltd
Environment,Revenue Budgets,Environment,Grounds & Bereavement Services,A0646,Grimsby Crematorium,A40920,Purchase of Equipment,30037938,01/09/2022,202206,669.25,100621,The Columbaria Company
Environment,Capital Spend,Environment,Scartho Cem Lodge/Waiting Rooms,Y1827,Scartho Cem Lodge/Waiting Rm,C01009,"New Construction, conversion & renovation",30038861,01/09/2022,202206,"3,000.00",133267,Equans Services Ltd
Environment,Revenue Budgets,Environment,Grounds & Bereavement Services,A0661,Grounds Maint And Parks,A27505,Grounds Maintenance,30041211,01/09/2022,202206,495,112224,Bcj Construction Ltd
Environment,Revenue Budgets,Environment,Regulatory Services,A0653,Commercial Regulatory Team,A20005,"Property Repairs, Maintenance & Alterations",30041255,01/09/2022,202206,"1,892.12",133267,Equans Services Ltd
Environment,Revenue Budgets,Environment,Grounds & Bereavement Services,A0680,Foreshore,A20005,"Property Repairs, Maintenance & Alterations",30041283,01/09/2022,202206,830,112224,Bcj Construction Ltd
Environment,Revenue Budgets,Environment,Grounds & Bereavement Services,A0680,Foreshore,A20005,"Property Repairs, Maintenance & Alterations",30041283,01/09/2022,202206,"1,014.00",112224,Bcj Construction Ltd
Environment,Capital Spend,Environment,Depot Rationalisation,Y1812,Depot Rationalisation,C01005,Purchase of Land & Buildings,30041360,01/09/2022,202206,"7,500.00",133267,Equans Services Ltd
Environment,Revenue Budgets,Environment,Garage & Fleet Strategy,A0665,Garage - Lab Holding,A45020,Telephones,30044795,01/09/2022,202206,507,1000343,Ctrack Ltd
Environment,Revenue Budgets,Environment,Garage & Fleet Strategy,A0665,Garage - Lab Holding,A45020,Telephones,30044800,01/09/2022,202206,"1,302.75",1000343,Ctrack Ltd
Environment,Capital Spend,Environment,Regulatory Services Mgt System,Y1844,Regulatory Serv Mgt System,C01006,Purchase of Vehicles & Plant,30037596,02/09/2022,202206,"19,200.00",111799,Arcus Global Limited
Environment,Revenue Budgets,Environment,Regulatory Services,A0653,Commercial Regulatory Team,A11005,Agency Supply Staff,30038291,02/09/2022,202206,394.85,143357,The Best Connection
Environment,Revenue Budgets,Environment,Garage & Fleet Strategy,A0665,Garage - Lab Holding,A30010,Vehicles Repairs,30040407,02/09/2022,202206,539.79,100886,Fleet Factors Ltd
Environment,Revenue Budgets,Environment,Garage & Fleet Strategy,A0665,Garage - Lab Holding,A30010,Vehicles Repairs,30040413,02/09/2022,202206,"2,283.12",100886,Fleet Factors Ltd
Environment,Revenue Budgets,Environment,Garage & Fleet Strategy,A0665,Garage - Lab Holding,A30010,Vehicles Repairs,30040418,02/09/2022,202206,"2,188.23",100886,Fleet Factors Ltd
Environment,Revenue Budgets,Environment,Energy Project,A1664,Energy Project,A44065,Consultancy Services,30037689,04/09/2022,202206,"4,964.00",1002376,Eco50 Limited
Environment,Revenue Budgets,Environment,Waste Services,A0683,Refuse - Domestic / Recycling,A11005,Agency Supply Staff,30041680,04/09/2022,202206,667.39,144850,On Line People Ltd
Environment,Capital Spend,Environment,Scartho Cem Lodge/Waiting Rooms,Y1827,Scartho Cem Lodge/Waiting Rm,C01009,"New Construction, conversion & renovation",10018553,05/09/2022,202206,"-4,358.00",1002919,K & I Scaffolding & Access Limited
Environment,Revenue Budgets,Environment,Street Cleansing,A0673,Street Cleansing,A40920,Purchase of Equipment,30038849,05/09/2022,202206,719.6,100509,Arco Ltd
Environment,Revenue Budgets,Environment,Grounds & Bereavement Services,A0681,Boating Lake Area,A20005,"Property Repairs, Maintenance & Alterations",30040592,05/09/2022,202206,950,1002784,Olsten Trout Ltd
Environment,Revenue Budgets,Environment,Garage & Fleet Strategy,A0665,Garage - Lab Holding,A30010,Vehicles Repairs,30040684,05/09/2022,202206,296.28,101828,B A Bush & Son Ltd
Environment,Revenue Budgets,Environment,Garage & Fleet Strategy,A0665,Garage - Lab Holding,A30010,Vehicles Repairs,30040718,05/09/2022,202206,"1,069.42",101828,B A Bush & Son Ltd
Environment,Revenue Budgets,Environment,Garage & Fleet Strategy,A0665,Garage - Lab Holding,A30010,Vehicles Repairs,30040738,05/09/2022,202206,290,101828,B A Bush & Son Ltd
Environment,Capital Spend,Environment,Scartho Cem Lodge/Waiting Rooms,Y1827,Scartho Cem Lodge/Waiting Rm,C01009,"New Construction, conversion & renovation",30044365,05/09/2022,202206,"4,358.00",1002919,K & I Scaffolding & Access Limited
Environment,Capital Spend,Environment,Scartho Cem Lodge/Waiting Rooms,Y1827,Scartho Cem Lodge/Waiting Rm,C01009,"New Construction, conversion & renovation",30044994,05/09/2022,202206,"4,358.00",1002919,K & I Scaffolding & Access Limited
Environment,Revenue Budgets,Environment,Grounds & Bereavement Services,A0646,Grimsby Crematorium,A40920,Purchase of Equipment,30040902,07/09/2022,202206,725.25,100621,The Columbaria Company
Environment,Revenue Budgets,Environment,Garage & Fleet Strategy,A0665,Garage - Lab Holding,A30010,Vehicles Repairs,30042211,07/09/2022,202206,991.05,108065,Northside Truck And Van Ltd
Environment,Capital Spend,Environment,Depot Rationalisation,Y1812,Depot Rationalisation,C01005,Purchase of Land & Buildings,30043836,07/09/2022,202206,427.49,1000372,GBM Demolition
Environment,Capital Spend,Environment,Depot Rationalisation,Y1812,Depot Rationalisation,C01005,Purchase of Land & Buildings,30043838,07/09/2022,202206,341.99,1000372,GBM Demolition
Environment,Capital Spend,Environment,Depot Rationalisation,Y1812,Depot Rationalisation,C01005,Purchase of Land & Buildings,30044125,07/09/2022,202206,"14,573.00",1000372,GBM Demolition
Environment,Revenue Budgets,Environment,Regulatory Services,A0653,Commercial Regulatory Team,A49105,Other Supplies & Services,30040650,08/09/2022,202206,325.1,139602,Eurofins Water Hygiene Testing Uk Ltd
Environment,Capital Spend,Environment,Resort Management,Y1835,Resort Management,C01009,"New Construction, conversion & renovation",30040219,09/09/2022,202206,587.88,105081,Mobile Mini Uk Ltd
Environment,Revenue Budgets,Environment,Grounds & Bereavement Services,A1839,Reflections,A41905,Catering,30040410,09/09/2022,202206,465.11,121021,Holdsworth Ltd
Environment,Revenue Budgets,Environment,Grounds & Bereavement Services,A0646,Grimsby Crematorium,A27505,Grounds Maintenance,30040545,09/09/2022,202206,"2,465.00",119179,Stone Technical Services Ltd
Environment,Revenue Budgets,Environment,Regulatory Services,A0653,Commercial Regulatory Team,A11005,Agency Supply Staff,30040654,09/09/2022,202206,402.3,143357,The Best Connection
Environment,Revenue Budgets,Environment,Garage & Fleet Strategy,A0665,Garage - Lab Holding,A30010,Vehicles Repairs,30040687,09/09/2022,202206,378.87,100886,Fleet Factors Ltd
Environment,Revenue Budgets,Environment,Garage & Fleet Strategy,A0665,Garage - Lab Holding,A30010,Vehicles Repairs,30040711,09/09/2022,202206,"1,512.98",100886,Fleet Factors Ltd
Environment,Revenue Budgets,Environment,Garage & Fleet Strategy,A0665,Garage - Lab Holding,A30010,Vehicles Repairs,30040732,09/09/2022,202206,"2,576.46",100886,Fleet Factors Ltd
Environment,Revenue Budgets,Environment,Garage & Fleet Strategy,A0665,Garage - Lab Holding,A30010,Vehicles Repairs,30040734,09/09/2022,202206,460.58,100886,Fleet Factors Ltd
Environment,Capital Spend,Environment,Play Areas,Y1852,Play Areas,C01006,Purchase of Vehicles & Plant,30041371,09/09/2022,202206,"3,516.80",1000155,Kompan Ltd
Environment,Capital Spend,Environment,Depot Rationalisation,Y1812,Depot Rationalisation,C01005,Purchase of Land & Buildings,30043137,09/09/2022,202206,"2,540.00",147380,Network Archaeology
Environment,Revenue Budgets,Environment,Waste Services,A0683,Refuse - Domestic / Recycling,A11005,Agency Supply Staff,30043188,11/09/2022,202206,779.23,144850,On Line People Ltd
Environment,Revenue Budgets,Environment,Grounds & Bereavement Services,A0646,Grimsby Crematorium,A40920,Purchase of Equipment,30041139,12/09/2022,202206,437.27,100549,F G Marshall Ltd
Environment,Revenue Budgets,Environment,Grounds & Bereavement Services,A0679,Resort,A40920,Purchase of Equipment,30040682,13/09/2022,202206,"1,150.95",100604,Harris & Garrod Ltd
Environment,Revenue Budgets,Environment,Grounds & Bereavement Services,A0661,Grounds Maint And Parks,A40920,Purchase of Equipment,30040776,13/09/2022,202206,499.95,138362,Tudor (Uk) Ltd T/A Tudor Environment
Environment,Revenue Budgets,Environment,Grounds & Bereavement Services,A0681,Boating Lake Area,A20005,"Property Repairs, Maintenance & Alterations",30041865,13/09/2022,202206,"7,710.00",1002784,Olsten Trout Ltd
Environment,Revenue Budgets,Environment,Garage & Fleet Strategy,A0665,Garage - Lab Holding,A30010,Vehicles Repairs,30042202,13/09/2022,202206,733.8,100604,Harris & Garrod Ltd
Environment,Revenue Budgets,Environment,Grounds & Bereavement Services,A0661,Grounds Maint And Parks,A27505,Grounds Maintenance,30042418,13/09/2022,202206,"1,310.00",112224,Bcj Construction Ltd
Environment,Revenue Budgets,Environment,Regulatory Services,A0653,Commercial Regulatory Team,A49105,Other Supplies & Services,30041077,14/09/2022,202206,"1,229.00",119802,Chartered Institute Of Environmental Health
Environment,Capital Spend,Environment,Enhancement Bereavement Serv,Y1761,Tearoom / Flower Shop,C01007,Purchase of Furniture & Equipment,30041175,15/09/2022,202206,320.83,100535,Grimsby Sunblinds
Environment,Capital Spend,Environment,Enhancement Bereavement Serv,Y1761,Tearoom / Flower Shop,C01007,Purchase of Furniture & Equipment,30041175,15/09/2022,202206,371.67,100535,Grimsby Sunblinds
Environment,Revenue Budgets,Environment,Grounds & Bereavement Services,A0661,Grounds Maint And Parks,A42005,Clothing & Uniforms & Laundry,30041930,15/09/2022,202206,257.82,147941,Pws (Protective Wear Supplies) Ltd
Environment,Revenue Budgets,Environment,Garage & Fleet Strategy,A0665,Garage - Lab Holding,A30010,Vehicles Repairs,30042301,16/09/2022,202206,"4,557.59",100886,Fleet Factors Ltd
Environment,Revenue Budgets,Environment,Garage & Fleet Strategy,A0665,Garage - Lab Holding,A30010,Vehicles Repairs,30042305,16/09/2022,202206,495.73,100886,Fleet Factors Ltd
Environment,Revenue Budgets,Environment,Garage & Fleet Strategy,A0665,Garage - Lab Holding,A30010,Vehicles Repairs,30043538,16/09/2022,202206,"3,341.53",100886,Fleet Factors Ltd
Environment,Revenue Budgets,Environment,Regulatory Services,A0653,Commercial Regulatory Team,A11005,Agency Supply Staff,30043615,16/09/2022,202206,514.05,143357,The Best Connection
Environment,Revenue Budgets,Environment,Grounds & Bereavement Services,A0661,Grounds Maint And Parks,A40920,Purchase of Equipment,30042276,20/09/2022,202206,299.7,138362,Tudor (Uk) Ltd T/A Tudor Environment
Environment,Revenue Budgets,Environment,Grounds & Bereavement Services,A0661,Grounds Maint And Parks,A40920,Purchase of Equipment,30042276,20/09/2022,202206,"1,434.57",138362,Tudor (Uk) Ltd T/A Tudor Environment
Environment,Revenue Budgets,Environment,Regulatory Services,A0653,Commercial Regulatory Team,A49105,Other Supplies & Services,30043060,20/09/2022,202206,835,131671,Fera Science Ltd
Environment,Revenue Budgets,Environment,Grounds & Bereavement Services,A0646,Grimsby Crematorium,A40920,Purchase of Equipment,30043481,21/09/2022,202206,947.25,100621,The Columbaria Company
Environment,Revenue Budgets,Environment,Grounds & Bereavement Services,A0646,Grimsby Crematorium,A40920,Purchase of Equipment,30043510,21/09/2022,202206,751.25,100621,The Columbaria Company
Environment,Revenue Budgets,Environment,Regulatory Services,A1574,Environmental Protection,A49105,Other Supplies & Services,30043951,21/09/2022,202206,400,143071,Fresh Pharma
Environment,Revenue Budgets,Environment,Regulatory Services,A0653,Commercial Regulatory Team,A49105,Other Supplies & Services,30045037,21/09/2022,202206,569.28,139602,Eurofins Water Hygiene Testing Uk Ltd
Environment,Revenue Budgets,Environment,Grounds & Bereavement Services,A0661,Grounds Maint And Parks,A24005,Water Services,42169146,21/09/2022,202206,-324.7,125923,Anglian Water Services Ltd
Environment,Revenue Budgets,Environment,Grounds & Bereavement Services,A0661,Grounds Maint And Parks,A24005,Water Services,42169146,21/09/2022,202206,-320.12,125923,Anglian Water Services Ltd
Environment,Revenue Budgets,Environment,Grounds & Bereavement Services,A0661,Grounds Maint And Parks,A24005,Water Services,42169146,21/09/2022,202206,-315.54,125923,Anglian Water Services Ltd
Environment,Revenue Budgets,Environment,Grounds & Bereavement Services,A0680,Foreshore,A24005,Water Services,42169146,21/09/2022,202206,336.26,125923,Anglian Water Services Ltd
Environment,Revenue Budgets,Environment,Countryside Management,A0647,Parks & Open Spaces,A27505,Grounds Maintenance,30043093,22/09/2022,202206,636.5,145790,Gb Sport & Leisure Uk Ltd
Environment,Revenue Budgets,Environment,Waste Services,A0683,Refuse - Domestic / Recycling,A42005,Clothing & Uniforms & Laundry,30043954,22/09/2022,202206,"2,122.30",147941,Pws (Protective Wear Supplies) Ltd
Environment,Revenue Budgets,Environment,Garage & Fleet Strategy,A0665,Garage - Lab Holding,A30010,Vehicles Repairs,30044612,23/09/2022,202206,"1,875.87",100886,Fleet Factors Ltd
Environment,Revenue Budgets,Environment,Garage & Fleet Strategy,A0665,Garage - Lab Holding,A30010,Vehicles Repairs,30044622,23/09/2022,202206,394.66,100886,Fleet Factors Ltd
Environment,Revenue Budgets,Environment,Garage & Fleet Strategy,A0665,Garage - Lab Holding,A30010,Vehicles Repairs,30044623,23/09/2022,202206,"2,152.92",100886,Fleet Factors Ltd
Environment,Revenue Budgets,Environment,Regulatory Services,A0653,Commercial Regulatory Team,A11005,Agency Supply Staff,30045651,23/09/2022,202206,528.95,143357,The Best Connection
Environment,Revenue Budgets,Environment,Energy Project,A1664,Energy Project,A44065,Consultancy Services,30044257,26/09/2022,202206,"3,500.00",1001609,Fire Investigation (UK) LLP
Environment,Revenue Budgets,Environment,Grounds & Bereavement Services,A0646,Grimsby Crematorium,A11005,Agency Supply Staff,30044603,27/09/2022,202206,"1,194.48",147051,Ethical Recruitment Agency (Grimsby) Ltd
Environment,Revenue Budgets,Environment,Grounds & Bereavement Services,A0681,Boating Lake Area,A21005,Electricity,42169145,27/09/2022,202206,300.13,103611,Total Energies Gas & Power Ltd
Environment,Revenue Budgets,Environment,Grounds & Bereavement Services,A0646,Grimsby Crematorium,A21005,Electricity,42169145,27/09/2022,202206,"1,687.83",103611,Total Energies Gas & Power Ltd
Environment,Revenue Budgets,Environment,Grounds & Bereavement Services,A0646,Grimsby Crematorium,A21005,Electricity,42169145,27/09/2022,202206,"2,496.29",103611,Total Energies Gas & Power Ltd
Environment,Revenue Budgets,Environment,Grounds & Bereavement Services,A0646,Grimsby Crematorium,A21010,Gas,42169367,27/09/2022,202206,"2,814.34",103611,Total Energies Gas & Power Ltd
Environment,Revenue Budgets,Environment,Regulatory Services,A0653,Commercial Regulatory Team,A22005,Building Rents,30044466,28/09/2022,202206,"2,361.67",128437,Great Grimsby Seafood Village Ltd
"Housing, Highways and Transport",Capital Spend,Economy And Growth,Grimsby - Immingham Ext Cycleway,Y1832,Grimsby-Immingham Ext Cycleway,C01009,"New Construction, conversion & renovation",30028384,21/03/2022,202206,"24,001.00",128602,Oneway Tm Limited
"Housing, Highways and Transport",Capital Spend,Economy And Growth,Grimsby - Immingham Ext Cycleway,Y1832,Grimsby-Immingham Ext Cycleway,C01009,"New Construction, conversion & renovation",30028370,01/04/2022,202206,"21,218.00",128602,Oneway Tm Limited
"Housing, Highways and Transport",Revenue Budgets,Economy And Growth,Transport Policy,A1803,DfT Active Travel Fund,A44942,Promotions and Events,30031493,24/04/2022,202206,-395,141974,Reach Publishing Services Limited
"Housing, Highways and Transport",Revenue Budgets,Economy And Growth,Facilities Management,A0981,Facilities Management,A27010,Contract Cleaning,30043466,30/04/2022,202206,"2,147.30",149644,Kingdom Cleaning Limited
"Housing, Highways and Transport",Revenue Budgets,Economy And Growth,Facilities Management,A0981,Facilities Management,A27010,Contract Cleaning,30043466,30/04/2022,202206,"43,608.00",149644,Kingdom Cleaning Limited
"Housing, Highways and Transport",Capital Spend,Economy And Growth,Grimsby - Immingham Ext Cycleway,Y1832,Grimsby-Immingham Ext Cycleway,C01009,"New Construction, conversion & renovation",30027899,11/05/2022,202206,"17,591.43",128602,Oneway Tm Limited
"Housing, Highways and Transport",Revenue Budgets,Economy And Growth,Home Options & Hous Rel Supp,A0956,Bed & Breakfast,A22005,Building Rents,30040728,24/05/2022,202206,615.4,Redacted Personal Information,Redacted Personal Information
"Housing, Highways and Transport",Revenue Budgets,Economy And Growth,Home Options & Hous Rel Supp,A0956,Bed & Breakfast,A22005,Building Rents,30040728,24/05/2022,202206,861.52,Redacted Personal Information,Redacted Personal Information
"Housing, Highways and Transport",Capital Spend,Economy And Growth,A18 Laceby To Ludborough,Y1689,A18 Laceby To Ludborugh,C01014,Other Capital Costs,10015800,27/05/2022,202206,"-32,368.67",1001144,WJ North Limited
"Housing, Highways and Transport",Capital Spend,Economy And Growth,A18 Laceby To Ludborough,Y1689,A18 Laceby To Ludborugh,C01014,Other Capital Costs,10015800,27/05/2022,202206,"-9,654.40",1001144,WJ North Limited
"Housing, Highways and Transport",Capital Spend,Economy And Growth,A18 Laceby To Ludborough,Y1689,A18 Laceby To Ludborugh,C01014,Other Capital Costs,10015800,27/05/2022,202206,"-3,299.43",1001144,WJ North Limited
"Housing, Highways and Transport",Capital Spend,Economy And Growth,A18 Laceby To Ludborough,Y1689,A18 Laceby To Ludborugh,C01014,Other Capital Costs,10015800,27/05/2022,202206,"-1,803.28",1001144,WJ North Limited
"Housing, Highways and Transport",Capital Spend,Economy And Growth,A18 Laceby To Ludborough,Y1689,A18 Laceby To Ludborugh,C01014,Other Capital Costs,30037736,27/05/2022,202206,"1,803.28",1001144,WJ North Limited
"Housing, Highways and Transport",Capital Spend,Economy And Growth,A18 Laceby To Ludborough,Y1689,A18 Laceby To Ludborugh,C01014,Other Capital Costs,30037736,27/05/2022,202206,"3,299.43",1001144,WJ North Limited
"Housing, Highways and Transport",Capital Spend,Economy And Growth,A18 Laceby To Ludborough,Y1689,A18 Laceby To Ludborugh,C01014,Other Capital Costs,30037736,27/05/2022,202206,"9,654.40",1001144,WJ North Limited
"Housing, Highways and Transport",Capital Spend,Economy And Growth,A18 Laceby To Ludborough,Y1689,A18 Laceby To Ludborugh,C01014,Other Capital Costs,30037736,27/05/2022,202206,"32,368.67",1001144,WJ North Limited
"Housing, Highways and Transport",Capital Spend,Economy And Growth,A18 Laceby To Ludborough,Y1689,A18 Laceby To Ludborugh,C01014,Other Capital Costs,30038445,27/05/2022,202206,"47,125.78",1001144,WJ North Limited
"Housing, Highways and Transport",Capital Spend,Economy And Growth,A18 Laceby To Ludborough,Y1689,A18 Laceby To Ludborugh,C01014,Other Capital Costs,30041318,27/05/2022,202206,"47,125.78",1001144,WJ North Limited
"Housing, Highways and Transport",Revenue Budgets,Economy And Growth,Transport Policy,A1275,Phone And Ride,A33005,Public Transport - Non Staff,30038039,28/05/2022,202206,"18,568.83",101404,Stagecoach Services
"Housing, Highways and Transport",Revenue Budgets,Economy And Growth,Facilities Management,A0981,Facilities Management,A27010,Contract Cleaning,30043467,31/05/2022,202206,"2,147.30",149644,Kingdom Cleaning Limited
"Housing, Highways and Transport",Revenue Budgets,Economy And Growth,Facilities Management,A0981,Facilities Management,A27010,Contract Cleaning,30043467,31/05/2022,202206,"43,608.00",149644,Kingdom Cleaning Limited
"Housing, Highways and Transport",Revenue Budgets,Economy And Growth,Transport Policy,A1803,DfT Active Travel Fund,A44942,Promotions and Events,30037859,17/06/2022,202206,610,101147,Systematic Print Management Ltd
"Housing, Highways and Transport",Revenue Budgets,Economy And Growth,Transport Policy,A1803,DfT Active Travel Fund,A44942,Promotions and Events,30037860,17/06/2022,202206,610,101147,Systematic Print Management Ltd
"Housing, Highways and Transport",Capital Spend,Economy And Growth,Hps-Disabled Fac. Grants,Y0436,Disab Facil Grant Mandatory,C01012,Payment of Grants/Advances,30019575,22/06/2022,202206,"2,866.87",101317,Dolphin Mobility East Midlands Ltd
"Housing, Highways and Transport",Capital Spend,Economy And Growth,Grimsby - Immingham Ext Cycleway,Y1832,Grimsby-Immingham Ext Cycleway,C01009,"New Construction, conversion & renovation",30030177,22/06/2022,202206,"89,017.99",100841,J Mccann & Co Ltd
"Housing, Highways and Transport",Capital Spend,Economy And Growth,Grant Street Car Park,Y1858,Grant St Car Park,C01014,Other Capital Costs,30020819,27/06/2022,202206,"3,740.00",146256,Premier Surveys Limited
"Housing, Highways and Transport",Capital Spend,Economy And Growth,Grimsby - Immingham Ext Cycleway,Y1832,Grimsby-Immingham Ext Cycleway,C01009,"New Construction, conversion & renovation",30027888,29/06/2022,202206,"14,693.00",128602,Oneway Tm Limited
"Housing, Highways and Transport",Capital Spend,Economy And Growth,Grimsby - Immingham Ext Cycleway,Y1832,Grimsby-Immingham Ext Cycleway,C01009,"New Construction, conversion & renovation",30027900,29/06/2022,202206,"24,290.00",128602,Oneway Tm Limited
"Housing, Highways and Transport",Revenue Budgets,Economy And Growth,Facilities Management,A0981,Facilities Management,A27010,Contract Cleaning,30042095,30/06/2022,202206,"2,147.30",149644,Kingdom Cleaning Limited
"Housing, Highways and Transport",Revenue Budgets,Economy And Growth,Facilities Management,A0981,Facilities Management,A27010,Contract Cleaning,30042095,30/06/2022,202206,"2,147.30",149644,Kingdom Cleaning Limited
"Housing, Highways and Transport",Revenue Budgets,Economy And Growth,Facilities Management,A0981,Facilities Management,A27010,Contract Cleaning,30042095,30/06/2022,202206,"2,147.30",149644,Kingdom Cleaning Limited
"Housing, Highways and Transport",Revenue Budgets,Economy And Growth,Facilities Management,A0981,Facilities Management,A27010,Contract Cleaning,30042095,30/06/2022,202206,"39,313.40",149644,Kingdom Cleaning Limited
"Housing, Highways and Transport",Capital Spend,Economy And Growth,Hps-Disabled Fac. Grants,Y1855,DFG - Strategic Housing,C01012,Payment of Grants/Advances,30032823,01/07/2022,202206,"11,040.00",100908,North East Lincs Carelink
"Housing, Highways and Transport",Capital Spend,Economy And Growth,Hps-Disabled Fac. Grants,Y1855,DFG - Strategic Housing,C01009,"New Construction, conversion & renovation",30044122,05/07/2022,202206,"13,814.49",1001038,Northern Lincolnshire and Goole NHS Foundation Trust
"Housing, Highways and Transport",Capital Spend,Economy And Growth,Backlog Maintenance,Y1440,Nfhc Backlog Maint,C01009,"New Construction, conversion & renovation",30039246,10/07/2022,202206,"1,330.00",100786,Kes Building Maintenance Limited
"Housing, Highways and Transport",Revenue Budgets,Economy And Growth,Commercial Estate,A1204,Spencer St Factory Units,A21005,Electricity,30044505,13/07/2022,202206,252.86,1000587,British Gas Trading Limited
"Housing, Highways and Transport",Capital Spend,Economy And Growth,Grimsby - Immingham Ext Cycleway,Y1832,Grimsby-Immingham Ext Cycleway,C01009,"New Construction, conversion & renovation",30027902,18/07/2022,202206,"27,943.00",128602,Oneway Tm Limited
"Housing, Highways and Transport",Capital Spend,Economy And Growth,Hps-Disabled Fac. Grants,Y0436,Disab Facil Grant Mandatory,C01012,Payment of Grants/Advances,30038393,19/07/2022,202206,"11,212.17",100632,E S Rudkin Ltd
"Housing, Highways and Transport",Capital Spend,Economy And Growth,Property Rationalisation Prog,Y1495,Municipal Offices,C01009,"New Construction, conversion & renovation",30036280,20/07/2022,202206,"91,107.76",101510,Eton-Lincs Limited
"Housing, Highways and Transport",Capital Spend,Economy And Growth,Local Transport Plan Schemes,Y0201,Ltp3 Monitoring,C01014,Other Capital Costs,30041379,22/07/2022,202206,"30,196.43",133267,Equans Services Ltd
"Housing, Highways and Transport",Capital Spend,Economy And Growth,Backlog Maintenance,Y1453,Health & Safe Emergency Work,C01011,External Professional Fees,30042183,22/07/2022,202206,500,133267,Equans Services Ltd
"Housing, Highways and Transport",Revenue Budgets,Economy And Growth,Transport Policy,A1275,Phone And Ride,A33005,Public Transport - Non Staff,30038036,23/07/2022,202206,"19,693.45",101404,Stagecoach Services
"Housing, Highways and Transport",Capital Spend,Economy And Growth,Local Transport Plan Schemes,Y0387,Ltp Principal Roads,C01009,"New Construction, conversion & renovation",30034352,24/07/2022,202206,"195,221.74",125951,EC Surfacing Ltd
"Housing, Highways and Transport",Capital Spend,Economy And Growth,Local Transport Plan Schemes,Y0260,Involve Inform Encourage,C01014,Other Capital Costs,30028761,26/07/2022,202206,556,1001951,Room 9 Media Ltd
"Housing, Highways and Transport",Revenue Budgets,Economy And Growth,Home Options & Hous Rel Supp,A0955,Crisis Accomodation,A22020,Rental Property Service Charge,30037164,26/07/2022,202206,476.4,103831,P & L Discount Furniture Ltd
"Housing, Highways and Transport",Revenue Budgets,Economy And Growth,Home Options & Hous Rel Supp,A0953,Home Options,A56000,Other Establishments,30037158,27/07/2022,202206,960,150642,G2v Recruitment Group Ltd
"Housing, Highways and Transport",Capital Spend,Economy And Growth,Local Transport Plan Schemes,Y0405,Speed Management,C01009,"New Construction, conversion & renovation",30030229,28/07/2022,202206,"8,215.75",100841,J Mccann & Co Ltd
"Housing, Highways and Transport",Revenue Budgets,Economy And Growth,Transport Policy,A1803,DfT Active Travel Fund,A44942,Promotions and Events,30030144,31/07/2022,202206,675,141974,Reach Publishing Services Limited
"Housing, Highways and Transport",Revenue Budgets,Economy And Growth,Commercial Estate,A1175,Europarc Innovation Centre,A27015,Refuse Collection,30032488,31/07/2022,202206,310.66,101433,Ellgia Limited
"Housing, Highways and Transport",Revenue Budgets,Economy And Growth,Commercial Estate,A1178,King Edward St Ent. Centre,A27015,Refuse Collection,30033675,31/07/2022,202206,693.62,101433,Ellgia Limited
"Housing, Highways and Transport",Revenue Budgets,Economy And Growth,Commercial Estate,A1180,Wilton Road Ent Centre,A27015,Refuse Collection,30033679,31/07/2022,202206,516.74,101433,Ellgia Limited
"Housing, Highways and Transport",Revenue Budgets,Economy And Growth,Facilities Management,A0981,Facilities Management,A27010,Contract Cleaning,30042081,31/07/2022,202206,"2,147.30",149644,Kingdom Cleaning Limited
"Housing, Highways and Transport",Revenue Budgets,Economy And Growth,Facilities Management,A0981,Facilities Management,A27010,Contract Cleaning,30042081,31/07/2022,202206,"43,608.00",149644,Kingdom Cleaning Limited
"Housing, Highways and Transport",Revenue Budgets,Economy And Growth,Facilities Management,A1059,Doughty Road Depot,A21015,Heating Oil,30042325,01/08/2022,202206,"25,868.54",138198,Your Nrg
"Housing, Highways and Transport",Capital Spend,Economy And Growth,Hps-Disabled Fac. Grants,Y0436,Disab Facil Grant Mandatory,C01012,Payment of Grants/Advances,30032459,02/08/2022,202206,"10,377.46",146603,Tspro Ltd
"Housing, Highways and Transport",Revenue Budgets,Economy And Growth,Highways Dso,A1231,Highways Dso,A30015,Vehicle Fuel,30042315,02/08/2022,202206,"25,721.78",138198,Your Nrg
"Housing, Highways and Transport",Capital Spend,Economy And Growth,Local Transport Plan Schemes,Y0387,Ltp Principal Roads,C01009,"New Construction, conversion & renovation",30040384,04/08/2022,202206,"19,835.00",128602,Oneway Tm Limited
"Housing, Highways and Transport",Revenue Budgets,Economy And Growth,Facilities Management,A0981,Facilities Management,A27010,Contract Cleaning,30034789,09/08/2022,202206,"1,778.79",100554,Phs Group Ltd
"Housing, Highways and Transport",Revenue Budgets,Economy And Growth,Home Options & Hous Rel Supp,A0956,Bed & Breakfast,A22005,Building Rents,30039620,09/08/2022,202206,540,Redacted Personal Information,Redacted Personal Information
"Housing, Highways and Transport",Revenue Budgets,Economy And Growth,Home Options & Hous Rel Supp,A0956,Bed & Breakfast,A22005,Building Rents,30039620,09/08/2022,202206,"1,350.00",Redacted Personal Information,Redacted Personal Information
"Housing, Highways and Transport",Revenue Budgets,Economy And Growth,Home Options & Hous Rel Supp,A0956,Bed & Breakfast,A22005,Building Rents,30039624,09/08/2022,202206,450,Redacted Personal Information,Redacted Personal Information
"Housing, Highways and Transport",Revenue Budgets,Economy And Growth,Home Options & Hous Rel Supp,A0956,Bed & Breakfast,A22005,Building Rents,30039624,09/08/2022,202206,"1,620.00",Redacted Personal Information,Redacted Personal Information
"Housing, Highways and Transport",Revenue Budgets,Economy And Growth,Home Options & Hous Rel Supp,A0956,Bed & Breakfast,A22005,Building Rents,30039628,09/08/2022,202206,630,Redacted Personal Information,Redacted Personal Information
"Housing, Highways and Transport",Revenue Budgets,Economy And Growth,Home Options & Hous Rel Supp,A0956,Bed & Breakfast,A22005,Building Rents,30039628,09/08/2022,202206,810,Redacted Personal Information,Redacted Personal Information
"Housing, Highways and Transport",Revenue Budgets,Economy And Growth,Home Options & Hous Rel Supp,A0956,Bed & Breakfast,A22005,Building Rents,30039628,09/08/2022,202206,"1,170.00",Redacted Personal Information,Redacted Personal Information
"Housing, Highways and Transport",Revenue Budgets,Economy And Growth,Home Options & Hous Rel Supp,A0956,Bed & Breakfast,A22005,Building Rents,30039633,09/08/2022,202206,540,Redacted Personal Information,Redacted Personal Information
"Housing, Highways and Transport",Revenue Budgets,Economy And Growth,Home Options & Hous Rel Supp,A0956,Bed & Breakfast,A22005,Building Rents,30039636,09/08/2022,202206,990,Redacted Personal Information,Redacted Personal Information
"Housing, Highways and Transport",Revenue Budgets,Economy And Growth,Home Options & Hous Rel Supp,A0956,Bed & Breakfast,A22005,Building Rents,30039668,09/08/2022,202206,"1,950.00",Redacted Personal Information,Redacted Personal Information
"Housing, Highways and Transport",Revenue Budgets,Economy And Growth,Home Options & Hous Rel Supp,A0956,Bed & Breakfast,A22005,Building Rents,30039670,09/08/2022,202206,"2,015.00",Redacted Personal Information,Redacted Personal Information
"Housing, Highways and Transport",Revenue Budgets,Economy And Growth,Home Options & Hous Rel Supp,A0956,Bed & Breakfast,A22005,Building Rents,30039679,09/08/2022,202206,"1,170.00",Redacted Personal Information,Redacted Personal Information
"Housing, Highways and Transport",Revenue Budgets,Economy And Growth,Home Options & Hous Rel Supp,A0956,Bed & Breakfast,A22005,Building Rents,30039682,09/08/2022,202206,"2,340.00",Redacted Personal Information,Redacted Personal Information
"Housing, Highways and Transport",Revenue Budgets,Economy And Growth,Home Options & Hous Rel Supp,A0956,Bed & Breakfast,A22005,Building Rents,30039707,09/08/2022,202206,"2,015.00",Redacted Personal Information,Redacted Personal Information
"Housing, Highways and Transport",Revenue Budgets,Economy And Growth,Home Options & Hous Rel Supp,A0956,Bed & Breakfast,A22005,Building Rents,30039717,09/08/2022,202206,"1,305.00",Redacted Personal Information,Redacted Personal Information
"Housing, Highways and Transport",Revenue Budgets,Economy And Growth,Home Options & Hous Rel Supp,A0956,Bed & Breakfast,A22005,Building Rents,30039722,09/08/2022,202206,"1,350.00",Redacted Personal Information,Redacted Personal Information
"Housing, Highways and Transport",Revenue Budgets,Economy And Growth,Home Options & Hous Rel Supp,A0956,Bed & Breakfast,A22005,Building Rents,30039723,09/08/2022,202206,630,Redacted Personal Information,Redacted Personal Information
"Housing, Highways and Transport",Revenue Budgets,Economy And Growth,Home Options & Hous Rel Supp,A0956,Bed & Breakfast,A22005,Building Rents,30039725,09/08/2022,202206,845,Redacted Personal Information,Redacted Personal Information
"Housing, Highways and Transport",Revenue Budgets,Economy And Growth,Home Options & Hous Rel Supp,A0956,Bed & Breakfast,A22005,Building Rents,30039730,09/08/2022,202206,"1,885.00",Redacted Personal Information,Redacted Personal Information
"Housing, Highways and Transport",Revenue Budgets,Economy And Growth,Home Options & Hous Rel Supp,A0956,Bed & Breakfast,A22005,Building Rents,30039732,09/08/2022,202206,"1,710.00",Redacted Personal Information,Redacted Personal Information
"Housing, Highways and Transport",Revenue Budgets,Economy And Growth,Home Options & Hous Rel Supp,A0956,Bed & Breakfast,A22005,Building Rents,30039734,09/08/2022,202206,"1,950.00",Redacted Personal Information,Redacted Personal Information
"Housing, Highways and Transport",Revenue Budgets,Economy And Growth,Home Options & Hous Rel Supp,A0956,Bed & Breakfast,A22005,Building Rents,30039739,09/08/2022,202206,"1,395.00",Redacted Personal Information,Redacted Personal Information
"Housing, Highways and Transport",Revenue Budgets,Economy And Growth,Home Options & Hous Rel Supp,A0956,Bed & Breakfast,A22005,Building Rents,30039741,09/08/2022,202206,810,Redacted Personal Information,Redacted Personal Information
"Housing, Highways and Transport",Revenue Budgets,Economy And Growth,Home Options & Hous Rel Supp,A0956,Bed & Breakfast,A22005,Building Rents,30039743,09/08/2022,202206,"2,015.00",Redacted Personal Information,Redacted Personal Information
"Housing, Highways and Transport",Revenue Budgets,Economy And Growth,Home Options & Hous Rel Supp,A0956,Bed & Breakfast,A22005,Building Rents,30039744,09/08/2022,202206,"1,885.00",Redacted Personal Information,Redacted Personal Information
"Housing, Highways and Transport",Revenue Budgets,Economy And Growth,Home Options & Hous Rel Supp,A0956,Bed & Breakfast,A22005,Building Rents,30039745,09/08/2022,202206,"1,395.00",Redacted Personal Information,Redacted Personal Information
"Housing, Highways and Transport",Revenue Budgets,Economy And Growth,Home Options & Hous Rel Supp,A0956,Bed & Breakfast,A22005,Building Rents,30039839,09/08/2022,202206,"2,790.00",Redacted Personal Information,Redacted Personal Information
"Housing, Highways and Transport",Revenue Budgets,Economy And Growth,Home Options & Hous Rel Supp,A0956,Bed & Breakfast,A22005,Building Rents,30039844,09/08/2022,202206,"1,395.00",Redacted Personal Information,Redacted Personal Information
"Housing, Highways and Transport",Revenue Budgets,Economy And Growth,Home Options & Hous Rel Supp,A0956,Bed & Breakfast,A22005,Building Rents,30039846,09/08/2022,202206,"4,185.00",Redacted Personal Information,Redacted Personal Information
"Housing, Highways and Transport",Revenue Budgets,Economy And Growth,Home Options & Hous Rel Supp,A0956,Bed & Breakfast,A22005,Building Rents,30039849,09/08/2022,202206,"2,015.00",Redacted Personal Information,Redacted Personal Information
"Housing, Highways and Transport",Revenue Budgets,Economy And Growth,Home Options & Hous Rel Supp,A0956,Bed & Breakfast,A22005,Building Rents,30039851,09/08/2022,202206,450,Redacted Personal Information,Redacted Personal Information
"Housing, Highways and Transport",Revenue Budgets,Economy And Growth,Home Options & Hous Rel Supp,A0956,Bed & Breakfast,A22005,Building Rents,30039856,09/08/2022,202206,"1,395.00",Redacted Personal Information,Redacted Personal Information
"Housing, Highways and Transport",Revenue Budgets,Economy And Growth,Home Options & Hous Rel Supp,A0956,Bed & Breakfast,A22005,Building Rents,30039861,09/08/2022,202206,675,Redacted Personal Information,Redacted Personal Information
"Housing, Highways and Transport",Revenue Budgets,Economy And Growth,Home Options & Hous Rel Supp,A0956,Bed & Breakfast,A22005,Building Rents,30039883,09/08/2022,202206,"1,350.00",Redacted Personal Information,Redacted Personal Information
"Housing, Highways and Transport",Revenue Budgets,Economy And Growth,Home Options & Hous Rel Supp,A0956,Bed & Breakfast,A22005,Building Rents,30039887,09/08/2022,202206,270,Redacted Personal Information,Redacted Personal Information
"Housing, Highways and Transport",Revenue Budgets,Economy And Growth,Home Options & Hous Rel Supp,A0956,Bed & Breakfast,A22005,Building Rents,30039887,09/08/2022,202206,900,Redacted Personal Information,Redacted Personal Information
"Housing, Highways and Transport",Revenue Budgets,Economy And Growth,Home Options & Hous Rel Supp,A0956,Bed & Breakfast,A22005,Building Rents,30039897,09/08/2022,202206,"2,700.00",Redacted Personal Information,Redacted Personal Information
"Housing, Highways and Transport",Revenue Budgets,Economy And Growth,Home Options & Hous Rel Supp,A0956,Bed & Breakfast,A22005,Building Rents,30039910,09/08/2022,202206,"2,790.00",Redacted Personal Information,Redacted Personal Information
"Housing, Highways and Transport",Revenue Budgets,Economy And Growth,Home Options & Hous Rel Supp,A0956,Bed & Breakfast,A22005,Building Rents,30039919,09/08/2022,202206,"2,520.00",Redacted Personal Information,Redacted Personal Information
"Housing, Highways and Transport",Revenue Budgets,Economy And Growth,Home Options & Hous Rel Supp,A0956,Bed & Breakfast,A22005,Building Rents,30039921,09/08/2022,202206,"1,620.00",Redacted Personal Information,Redacted Personal Information
"Housing, Highways and Transport",Capital Spend,Economy And Growth,Backlog Maintenance,Y1453,Health & Safe Emergency Work,C01009,"New Construction, conversion & renovation",30043997,09/08/2022,202206,"1,280.00",1001752,Construction Services Direct Ltd
"Housing, Highways and Transport",Revenue Budgets,Economy And Growth,Facilities Management,A0323,Riverside Cc Premises,A27015,Refuse Collection,30044384,14/08/2022,202206,653.12,101433,Ellgia Limited
"Housing, Highways and Transport",Revenue Budgets,Economy And Growth,Facilities Management,A0297,Nbpcc Premises,A27015,Refuse Collection,30044536,14/08/2022,202206,653.12,101433,Ellgia Limited
"Housing, Highways and Transport",Revenue Budgets,Economy And Growth,Facilities Management,A0299,East Marsh Cc Premises,A27015,Refuse Collection,30044538,14/08/2022,202206,326.56,101433,Ellgia Limited
"Housing, Highways and Transport",Revenue Budgets,Economy And Growth,Facilities Management,A0320,Immingham Cc Premises,A27015,Refuse Collection,30044895,14/08/2022,202206,314.47,101433,Ellgia Limited
"Housing, Highways and Transport",Revenue Budgets,Economy And Growth,Street Lighting,A1262,Street Lighting Non-Principal,A40035,PAT Testing,30033884,15/08/2022,202206,"4,487.28",100841,J Mccann & Co Ltd
"Housing, Highways and Transport",Revenue Budgets,Economy And Growth,Street Lighting,A1261,Street Lighting Principal,A44130,Street Lighting,30033884,15/08/2022,202206,"17,946.07",100841,J Mccann & Co Ltd
"Housing, Highways and Transport",Revenue Budgets,Economy And Growth,Street Lighting,A1262,Street Lighting Non-Principal,A44130,Street Lighting,30033884,15/08/2022,202206,"20,239.32",100841,J Mccann & Co Ltd
"Housing, Highways and Transport",Revenue Budgets,Economy And Growth,Street Lighting,A1262,Street Lighting Non-Principal,A44131,Traffic Maintenance,30033884,15/08/2022,202206,633.3,100841,J Mccann & Co Ltd
"Housing, Highways and Transport",Revenue Budgets,Economy And Growth,Street Lighting,A1261,Street Lighting Principal,A44131,Traffic Maintenance,30033884,15/08/2022,202206,"2,803.90",100841,J Mccann & Co Ltd
"Housing, Highways and Transport",Revenue Budgets,Economy And Growth,Street Lighting,A1262,Street Lighting Non-Principal,A44131,Traffic Maintenance,30033884,15/08/2022,202206,"8,719.51",100841,J Mccann & Co Ltd
"Housing, Highways and Transport",Revenue Budgets,Economy And Growth,Street Lighting,A1261,Street Lighting Principal,A56000,Other Establishments,30033884,15/08/2022,202206,845.32,100841,J Mccann & Co Ltd
"Housing, Highways and Transport",Revenue Budgets,Economy And Growth,Street Lighting,A1262,Street Lighting Non-Principal,A56000,Other Establishments,30033884,15/08/2022,202206,"2,578.85",100841,J Mccann & Co Ltd
"Housing, Highways and Transport",Revenue Budgets,Economy And Growth,Supporting People,A0762,Housing Related Support,A47005,"Grants, Contributions & Donations",30037547,15/08/2022,202206,"20,000.00",106725,Harbour Place Day Centre
"Housing, Highways and Transport",Revenue Budgets,Economy And Growth,Home Options & Hous Rel Supp,A0953,Home Options,A56000,Other Establishments,30037566,15/08/2022,202206,"2,247.13",Redacted Personal Information,Redacted Personal Information
"Housing, Highways and Transport",Revenue Budgets,Economy And Growth,Home Options & Hous Rel Supp,A0953,Home Options,A56000,Other Establishments,30037567,15/08/2022,202206,"1,874.13",Redacted Personal Information,Redacted Personal Information
"Housing, Highways and Transport",Revenue Budgets,Economy And Growth,Building Control,A0966,Dangerous Structures,A49105,Other Supplies & Services,30039186,15/08/2022,202206,"21,611.20",128602,Oneway Tm Limited
"Housing, Highways and Transport",Capital Spend,Economy And Growth,Hps-Disabled Fac. Grants,Y0436,Disab Facil Grant Mandatory,C01012,Payment of Grants/Advances,30041395,15/08/2022,202206,"1,599.00",112666,Obam Lift Services Ltd
"Housing, Highways and Transport",Capital Spend,Economy And Growth,Hps-Disabled Fac. Grants,Y1855,DFG - Strategic Housing,C01009,"New Construction, conversion & renovation",30043152,16/08/2022,202206,"4,604.83",1001038,Northern Lincolnshire and Goole NHS Foundation Trust
"Housing, Highways and Transport",Revenue Budgets,Economy And Growth,Commercial Estate,A1204,Spencer St Factory Units,A21005,Electricity,30044677,16/08/2022,202206,-511.99,1000587,British Gas Trading Limited
"Housing, Highways and Transport",Capital Spend,Economy And Growth,Backlog Maintenance,Y1640,Gy Leisure Backlog Maint,C01011,External Professional Fees,30041962,17/08/2022,202206,"6,000.00",133267,Equans Services Ltd
"Housing, Highways and Transport",Capital Spend,Economy And Growth,Local Transport Plan Schemes,Y0201,Ltp3 Monitoring,C01014,Other Capital Costs,30044008,17/08/2022,202206,"30,196.43",133267,Equans Services Ltd
"Housing, Highways and Transport",Capital Spend,Economy And Growth,Local Transport Plan Schemes,Y0260,Involve Inform Encourage,C01009,"New Construction, conversion & renovation",30036515,18/08/2022,202206,"6,597.01",1001881,Riggotts
"Housing, Highways and Transport",Revenue Budgets,Economy And Growth,Home Options & Hous Rel Supp,A0956,Bed & Breakfast,A22005,Building Rents,30037597,18/08/2022,202206,375,Redacted Personal Information,Redacted Personal Information
"Housing, Highways and Transport",Revenue Budgets,Economy And Growth,Home Options & Hous Rel Supp,A0953,Home Options,A56000,Other Establishments,30038147,18/08/2022,202206,420,Redacted Personal Information,Redacted Personal Information
"Housing, Highways and Transport",Revenue Budgets,Economy And Growth,Strategic Housing,A1714,Estates Regeneration Income,A45040,IT Software Purchase,30040587,18/08/2022,202206,800,122103,Humberside Materials Laboratory Ltd
"Housing, Highways and Transport",Capital Spend,Economy And Growth,Hps-Disabled Fac. Grants,Y0436,Disab Facil Grant Mandatory,C01012,Payment of Grants/Advances,30041665,18/08/2022,202206,"11,841.24",120159,Able 4 Enterprise Ltd
"Housing, Highways and Transport",Capital Spend,Economy And Growth,Green Homes LAD Phase 2,Y1838,Green Homes LAD Phase 2,C01012,Payment of Grants/Advances,30035481,19/08/2022,202206,"2,574.00",138575,Yes Energy Solutions
"Housing, Highways and Transport",Capital Spend,Economy And Growth,Green Homes LAD Phase 2,Y1838,Green Homes LAD Phase 2,C01014,Other Capital Costs,30035481,19/08/2022,202206,360,138575,Yes Energy Solutions
"Housing, Highways and Transport",Capital Spend,Economy And Growth,Local Transport Plan Schemes,Y0260,Involve Inform Encourage,C01014,Other Capital Costs,30037686,19/08/2022,202206,"4,165.00",129985,Almega Promotional Gifts Ltd
"Housing, Highways and Transport",Revenue Budgets,Economy And Growth,Transport Policy,A1803,DfT Active Travel Fund,A47006,Contributions - Communities,30043463,19/08/2022,202206,350,101779,Lock It Safe Ltd
"Housing, Highways and Transport",Revenue Budgets,Economy And Growth,Transport Policy,A1803,DfT Active Travel Fund,A47006,Contributions - Communities,30043463,19/08/2022,202206,"5,635.00",101779,Lock It Safe Ltd
"Housing, Highways and Transport",Revenue Budgets,Economy And Growth,Facilities Management,A0316,West Marsh Cc Premises,A27015,Refuse Collection,30044116,19/08/2022,202206,775.06,100515,Biffa Waste Services Ltd
"Housing, Highways and Transport",Revenue Budgets,Economy And Growth,Transport Policy,A1275,Phone And Ride,A33005,Public Transport - Non Staff,30038034,20/08/2022,202206,"19,710.25",101404,Stagecoach Services
"Housing, Highways and Transport",Revenue Budgets,Economy And Growth,Transport Policy,A1275,Phone And Ride,A33005,Public Transport - Non Staff,30038041,20/08/2022,202206,"2,730.42",101404,Stagecoach Services
"Housing, Highways and Transport",Capital Spend,Economy And Growth,Backlog Maintenance,Y1445,Gilbey Rd Depot Backlog Maint,C01009,"New Construction, conversion & renovation",30038759,22/08/2022,202206,879.08,105081,Mobile Mini Uk Ltd
"Housing, Highways and Transport",Capital Spend,Economy And Growth,Hps-Disabled Fac. Grants,Y0436,Disab Facil Grant Mandatory,C01012,Payment of Grants/Advances,30040932,22/08/2022,202206,"4,363.00",100849,Closomat Ltd
"Housing, Highways and Transport",Revenue Budgets,Economy And Growth,Operational Management,A1252,Highway Maint Principal,A44131,Traffic Maintenance,30036204,24/08/2022,202206,"1,067.70",1002406,Watts Urethane Products Ltd
"Housing, Highways and Transport",Capital Spend,Economy And Growth,Hps-Disabled Fac. Grants,Y0436,Disab Facil Grant Mandatory,C01012,Payment of Grants/Advances,30036207,24/08/2022,202206,-307.24,146603,Tspro Ltd
"Housing, Highways and Transport",Revenue Budgets,Economy And Growth,Home Options & Hous Rel Supp,A0955,Crisis Accomodation,A22020,Rental Property Service Charge,30037853,24/08/2022,202206,924.5,100894,North East Lincolnshire Council
"Housing, Highways and Transport",Capital Spend,Economy And Growth,Local Transport Plan Schemes,Y0387,Ltp Principal Roads,C01009,"New Construction, conversion & renovation",30036313,25/08/2022,202206,"2,075.35",100579,Specialist Surfacing Limited
"Housing, Highways and Transport",Capital Spend,Economy And Growth,Hps-Disabled Fac. Grants,Y0436,Disab Facil Grant Mandatory,C01012,Payment of Grants/Advances,30039353,25/08/2022,202206,"3,185.77",101317,Dolphin Mobility East Midlands Ltd
"Housing, Highways and Transport",Capital Spend,Economy And Growth,Grimsby - Immingham Ext Cycleway,Y1832,Grimsby-Immingham Ext Cycleway,C01009,"New Construction, conversion & renovation",30044036,25/08/2022,202206,"3,494.60",100579,Specialist Surfacing Limited
"Housing, Highways and Transport",Capital Spend,Economy And Growth,Hps-Disabled Fac. Grants,Y0436,Disab Facil Grant Mandatory,C01012,Payment of Grants/Advances,30039928,26/08/2022,202206,"18,388.91",120159,Able 4 Enterprise Ltd
"Housing, Highways and Transport",Revenue Budgets,Economy And Growth,Home Options & Hous Rel Supp,A0955,Crisis Accomodation,A22020,Rental Property Service Charge,30040594,26/08/2022,202206,"1,215.06",100894,North East Lincolnshire Council
"Housing, Highways and Transport",Revenue Budgets,Economy And Growth,Traffic Management,A1266,Traffic Management Works,A44005,Publicity Materials,30036627,28/08/2022,202206,339.39,141974,Reach Publishing Services Limited
"Housing, Highways and Transport",Revenue Budgets,Economy And Growth,Home Options & Hous Rel Supp,A0956,Bed & Breakfast,A22005,Building Rents,30037581,29/08/2022,202206,420,Redacted Personal Information,Redacted Personal Information
"Housing, Highways and Transport",Revenue Budgets,Economy And Growth,Home Options & Hous Rel Supp,A0956,Bed & Breakfast,A22005,Building Rents,30037583,29/08/2022,202206,350,Redacted Personal Information,Redacted Personal Information
"Housing, Highways and Transport",Revenue Budgets,Economy And Growth,Home Options & Hous Rel Supp,A0956,Bed & Breakfast,A22005,Building Rents,30037585,29/08/2022,202206,560,Redacted Personal Information,Redacted Personal Information
"Housing, Highways and Transport",Revenue Budgets,Economy And Growth,Home Options & Hous Rel Supp,A0956,Bed & Breakfast,A22005,Building Rents,30037594,29/08/2022,202206,675,Redacted Personal Information,Redacted Personal Information
"Housing, Highways and Transport",Revenue Budgets,Economy And Growth,Home Options & Hous Rel Supp,A0956,Bed & Breakfast,A22005,Building Rents,30037608,29/08/2022,202206,420,Redacted Personal Information,Redacted Personal Information
"Housing, Highways and Transport",Revenue Budgets,Economy And Growth,Home Options & Hous Rel Supp,A0956,Bed & Breakfast,A22005,Building Rents,30037610,29/08/2022,202206,630,Redacted Personal Information,Redacted Personal Information
"Housing, Highways and Transport",Capital Spend,Economy And Growth,Local Transport Plan Schemes,Y0021,Real Time Info,C01014,Other Capital Costs,30037251,30/08/2022,202206,"31,788.88",124772,R2p Uk Systems Ltd
"Housing, Highways and Transport",Revenue Budgets,Economy And Growth,Home Options & Hous Rel Supp,A0956,Bed & Breakfast,A22005,Building Rents,30037582,30/08/2022,202206,400,Redacted Personal Information,Redacted Personal Information
"Housing, Highways and Transport",Capital Spend,Economy And Growth,Local Transport Plan Schemes,Y0022,Local Road Safety Improvements,C01009,"New Construction, conversion & renovation",30043159,30/08/2022,202206,"63,756.50",125951,EC Surfacing Ltd
"Housing, Highways and Transport",Capital Spend,Economy And Growth,Property Rationalisation Prog,Y1548,Various - Prop Rationalisation,C01009,"New Construction, conversion & renovation",30044265,30/08/2022,202206,"9,774.35",100786,Kes Building Maintenance Limited
"Housing, Highways and Transport",Revenue Budgets,Economy And Growth,Home Options & Hous Rel Supp,A0953,Home Options,A56000,Other Establishments,30036768,31/08/2022,202206,832.25,Redacted Personal Information,Redacted Personal Information
"Housing, Highways and Transport",Capital Spend,Economy And Growth,Local Transport Plan Schemes,Y0002,Cycle Route,C01009,"New Construction, conversion & renovation",30037083,31/08/2022,202206,"10,547.30",100841,J Mccann & Co Ltd
"Housing, Highways and Transport",Revenue Budgets,Economy And Growth,Home Options & Hous Rel Supp,A0953,Home Options,A56000,Other Establishments,30037088,31/08/2022,202206,"1,200.00",150642,G2v Recruitment Group Ltd
"Housing, Highways and Transport",Capital Spend,Economy And Growth,Local Transport Plan Schemes,Y0260,Involve Inform Encourage,C01009,"New Construction, conversion & renovation",30037153,31/08/2022,202206,"6,784.01",100841,J Mccann & Co Ltd
"Housing, Highways and Transport",Capital Spend,Economy And Growth,Corporation Rd Bridge Refurb,Y1803,Corporation Rd Bridge Refurb,C01011,External Professional Fees,30037915,31/08/2022,202206,"1,200.00",141974,Reach Publishing Services Limited
"Housing, Highways and Transport",Revenue Budgets,Economy And Growth,Home Options & Hous Rel Supp,A0955,Crisis Accomodation,A22020,Rental Property Service Charge,30038680,31/08/2022,202206,738.2,Redacted Personal Information,Redacted Personal Information
"Housing, Highways and Transport",Revenue Budgets,Economy And Growth,Commercial Estate,A1175,Europarc Innovation Centre,A27015,Refuse Collection,30039782,31/08/2022,202206,373.25,101433,Ellgia Limited
"Housing, Highways and Transport",Revenue Budgets,Economy And Growth,Commercial Estate,A1180,Wilton Road Ent Centre,A27015,Refuse Collection,30039794,31/08/2022,202206,858,101433,Ellgia Limited
"Housing, Highways and Transport",Revenue Budgets,Economy And Growth,Home Options & Hous Rel Supp,A0953,Home Options,A56000,Other Establishments,30040590,31/08/2022,202206,498.1,100546,Links Taxis
"Housing, Highways and Transport",Revenue Budgets,Economy And Growth,Home Options & Hous Rel Supp,A0953,Home Options,A56000,Other Establishments,30040646,31/08/2022,202206,331.2,1000125,Actsure Ltd t/a Fastcabs
"Housing, Highways and Transport",Revenue Budgets,Economy And Growth,Home Options & Hous Rel Supp,A0956,Bed & Breakfast,A22005,Building Rents,30040699,31/08/2022,202206,637.68,Redacted Personal Information,Redacted Personal Information
"Housing, Highways and Transport",Revenue Budgets,Economy And Growth,Home Options & Hous Rel Supp,A0956,Bed & Breakfast,A22005,Building Rents,30040755,31/08/2022,202206,956.52,Redacted Personal Information,Redacted Personal Information
"Housing, Highways and Transport",Revenue Budgets,Economy And Growth,Facilities Management,A0981,Facilities Management,A27010,Contract Cleaning,30042086,31/08/2022,202206,"2,147.30",149644,Kingdom Cleaning Limited
"Housing, Highways and Transport",Revenue Budgets,Economy And Growth,Facilities Management,A0981,Facilities Management,A27010,Contract Cleaning,30042086,31/08/2022,202206,"43,608.00",149644,Kingdom Cleaning Limited
"Housing, Highways and Transport",Revenue Budgets,Economy And Growth,Home Options & Hous Rel Supp,A0963,Home Choice Lincs,A45040,IT Software Purchase,30042877,31/08/2022,202206,"2,625.00",103029,Civica Uk Limited
"Housing, Highways and Transport",Revenue Budgets,Economy And Growth,Commercial Estate,A1195,Kiln Lane I.E.,A20011,Premises External Maintenance,30043778,31/08/2022,202206,"39,160.00",101924,Grade 3 Limited
"Housing, Highways and Transport",Capital Spend,Economy And Growth,Hps-Disabled Fac. Grants,Y0436,Disab Facil Grant Mandatory,C01012,Payment of Grants/Advances,30044834,31/08/2022,202206,"1,732.00",112666,Obam Lift Services Ltd
"Housing, Highways and Transport",Capital Spend,Economy And Growth,Local Transport Plan Schemes,Y0022,Local Road Safety Improvements,C01009,"New Construction, conversion & renovation",30037548,01/09/2022,202206,"13,876.00",128602,Oneway Tm Limited
"Housing, Highways and Transport",Revenue Budgets,Economy And Growth,Transport Policy,A1274,Transport,A57126,Concessionary Fares,30037552,01/09/2022,202206,"3,818.40",100980,Gy Clps & District Dial A Ride
"Housing, Highways and Transport",Revenue Budgets,Economy And Growth,Home Options & Hous Rel Supp,A0956,Bed & Breakfast,A22005,Building Rents,30037598,01/09/2022,202206,"1,380.00",Redacted Personal Information,Redacted Personal Information
"Housing, Highways and Transport",Revenue Budgets,Economy And Growth,Home Options & Hous Rel Supp,A0956,Bed & Breakfast,A22005,Building Rents,30037602,01/09/2022,202206,"1,050.00",Redacted Personal Information,Redacted Personal Information
"Housing, Highways and Transport",Revenue Budgets,Economy And Growth,Home Options & Hous Rel Supp,A0956,Bed & Breakfast,A22005,Building Rents,30037603,01/09/2022,202206,"1,050.00",Redacted Personal Information,Redacted Personal Information
"Housing, Highways and Transport",Capital Spend,Economy And Growth,Hps-Disabled Fac. Grants,Y0436,Disab Facil Grant Mandatory,C01012,Payment of Grants/Advances,30037813,01/09/2022,202206,"17,982.35",133267,Equans Services Ltd
"Housing, Highways and Transport",Capital Spend,Economy And Growth,Hps-Disabled Fac. Grants,Y1855,DFG - Strategic Housing,C01012,Payment of Grants/Advances,30037965,01/09/2022,202206,"14,105.00",100908,North East Lincs Carelink
"Housing, Highways and Transport",Revenue Budgets,Economy And Growth,Facilities Management,A0316,West Marsh Cc Premises,A20005,"Property Repairs, Maintenance & Alterations",30038513,01/09/2022,202206,419.35,133267,Equans Services Ltd
"Housing, Highways and Transport",Revenue Budgets,Economy And Growth,Facilities Management,A0318,Broadway Cc Premises,A20005,"Property Repairs, Maintenance & Alterations",30038516,01/09/2022,202206,364.62,133267,Equans Services Ltd
"Housing, Highways and Transport",Revenue Budgets,Economy And Growth,Facilities Management,A0322,Queensway Cc Premises,A20005,"Property Repairs, Maintenance & Alterations",30038521,01/09/2022,202206,429.97,133267,Equans Services Ltd
"Housing, Highways and Transport",Revenue Budgets,Economy And Growth,Facilities Management,A0299,East Marsh Cc Premises,A20005,"Property Repairs, Maintenance & Alterations",30038522,01/09/2022,202206,733.66,133267,Equans Services Ltd
"Housing, Highways and Transport",Revenue Budgets,Economy And Growth,Facilities Management,A0297,Nbpcc Premises,A20005,"Property Repairs, Maintenance & Alterations",30038524,01/09/2022,202206,818.81,133267,Equans Services Ltd
"Housing, Highways and Transport",Revenue Budgets,Economy And Growth,Facilities Management,A0317,Central Cc Premises,A20005,"Property Repairs, Maintenance & Alterations",30038530,01/09/2022,202206,"1,628.35",133267,Equans Services Ltd
"Housing, Highways and Transport",Capital Spend,Economy And Growth,Housing Assist Grants And Loan,Y0513,Empty Homes Grant,C01005,Purchase of Land & Buildings,30039081,01/09/2022,202206,"1,472.00",133267,Equans Services Ltd
"Housing, Highways and Transport",Capital Spend,Economy And Growth,Housing Assist Grants And Loan,Y0513,Empty Homes Grant,C01005,Purchase of Land & Buildings,30039082,01/09/2022,202206,"1,472.00",133267,Equans Services Ltd
"Housing, Highways and Transport",Capital Spend,Economy And Growth,Backlog Maintenance,Y1669,Auditorium Backlog Maint,C01009,"New Construction, conversion & renovation",30039802,01/09/2022,202206,"28,211.00",102044,Lincs Electrical Services Ltd
"Housing, Highways and Transport",Capital Spend,Economy And Growth,Backlog Maintenance,Y1640,Gy Leisure Backlog Maint,C01009,"New Construction, conversion & renovation",30041972,01/09/2022,202206,"1,000.00",133267,Equans Services Ltd
"Housing, Highways and Transport",Capital Spend,Economy And Growth,Backlog Maintenance,Y1451,Alex Doc Bus Cent Backlog Main,C01011,External Professional Fees,30042088,01/09/2022,202206,"1,000.00",133267,Equans Services Ltd
"Housing, Highways and Transport",Capital Spend,Economy And Growth,Backlog Maintenance,Y1669,Auditorium Backlog Maint,C01011,External Professional Fees,30042181,01/09/2022,202206,500,133267,Equans Services Ltd
"Housing, Highways and Transport",Capital Spend,Economy And Growth,Backlog Maintenance,Y1669,Auditorium Backlog Maint,C01011,External Professional Fees,30042182,01/09/2022,202206,500,133267,Equans Services Ltd
"Housing, Highways and Transport",Capital Spend,Economy And Growth,Backlog Maintenance,Y1640,Gy Leisure Backlog Maint,C01011,External Professional Fees,30042184,01/09/2022,202206,"5,000.00",133267,Equans Services Ltd
"Housing, Highways and Transport",Capital Spend,Economy And Growth,Backlog Maintenance,Y1453,Health & Safe Emergency Work,C01011,External Professional Fees,30042185,01/09/2022,202206,500,133267,Equans Services Ltd
"Housing, Highways and Transport",Revenue Budgets,Economy And Growth,Facilities Management,A1059,Doughty Road Depot,A21015,Heating Oil,30042238,01/09/2022,202206,"2,200.40",138198,Your Nrg
"Housing, Highways and Transport",Capital Spend,Economy And Growth,Backlog Maintenance,Y1440,Nfhc Backlog Maint,C01011,External Professional Fees,30043754,01/09/2022,202206,"1,000.00",133267,Equans Services Ltd
"Housing, Highways and Transport",Capital Spend,Economy And Growth,Backlog Maintenance,Y1669,Auditorium Backlog Maint,C01011,External Professional Fees,30043758,01/09/2022,202206,"1,000.00",133267,Equans Services Ltd
"Housing, Highways and Transport",Capital Spend,Economy And Growth,Backlog Maintenance,Y1456,Doughty Centre Backlog Maint,C01011,External Professional Fees,30043763,01/09/2022,202206,"1,000.00",133267,Equans Services Ltd
"Housing, Highways and Transport",Revenue Budgets,Economy And Growth,Home Options & Hous Rel Supp,A0955,Crisis Accomodation,A22005,Building Rents,30037607,02/09/2022,202206,"4,598.40",Redacted Personal Information,Redacted Personal Information
"Housing, Highways and Transport",Revenue Budgets,Economy And Growth,Home Options & Hous Rel Supp,A0955,Crisis Accomodation,A22005,Building Rents,30038835,02/09/2022,202206,448.76,Redacted Personal Information,Redacted Personal Information
"Housing, Highways and Transport",Revenue Budgets,Economy And Growth,In Scope Contract,A0985,Contract Fee Building Control,A57115,Payments to Private Contractors,30039968,02/09/2022,202206,"16,976.97",133267,Equans Services Ltd
"Housing, Highways and Transport",Revenue Budgets,Economy And Growth,In Scope Contract,A1527,Cont Fee Building Surveyors,A57115,Payments to Private Contractors,30039968,02/09/2022,202206,"109,696.63",133267,Equans Services Ltd
"Housing, Highways and Transport",Revenue Budgets,Economy And Growth,In Scope Contract,A1435,Contract Fee Strategic Housing,A57115,Payments to Private Contractors,30039968,02/09/2022,202206,"222,829.36",133267,Equans Services Ltd
"Housing, Highways and Transport",Revenue Budgets,Economy And Growth,In Scope Contract,A0643,Contract Fee Development Cont,A57115,Payments to Private Contractors,30039968,02/09/2022,202206,"277,138.85",133267,Equans Services Ltd
"Housing, Highways and Transport",Revenue Budgets,Economy And Growth,In Scope Contract,A0975,Contract Fee Asset Management,A57115,Payments to Private Contractors,30039968,02/09/2022,202206,"919,635.53",133267,Equans Services Ltd
"Housing, Highways and Transport",Revenue Budgets,Economy And Growth,In Scope Contract,A0977,Contract Fee Hways/Trans/Plan,A57115,Payments to Private Contractors,30039968,02/09/2022,202206,"1,464,353.97",133267,Equans Services Ltd
"Housing, Highways and Transport",Revenue Budgets,Economy And Growth,Traffic Management,A1266,Traffic Management Works,A44005,Publicity Materials,30039074,04/09/2022,202206,268.16,141974,Reach Publishing Services Limited
"Housing, Highways and Transport",Capital Spend,Economy And Growth,Local Transport Plan Schemes,Y0038,Maintenance Of Structures,C01009,"New Construction, conversion & renovation",30038394,05/09/2022,202206,525,1002614,Japanese Knotweed Solutions Ltd
"Housing, Highways and Transport",Revenue Budgets,Economy And Growth,Home Options & Hous Rel Supp,A0956,Bed & Breakfast,A22005,Building Rents,30041867,05/09/2022,202206,560,Redacted Personal Information,Redacted Personal Information
"Housing, Highways and Transport",Revenue Budgets,Economy And Growth,Home Options & Hous Rel Supp,A0956,Bed & Breakfast,A22005,Building Rents,30041877,05/09/2022,202206,420,Redacted Personal Information,Redacted Personal Information
"Housing, Highways and Transport",Revenue Budgets,Economy And Growth,Home Options & Hous Rel Supp,A0956,Bed & Breakfast,A22005,Building Rents,30041916,05/09/2022,202206,630,Redacted Personal Information,Redacted Personal Information
"Housing, Highways and Transport",Revenue Budgets,Economy And Growth,Home Options & Hous Rel Supp,A0956,Bed & Breakfast,A22005,Building Rents,30041932,05/09/2022,202206,420,Redacted Personal Information,Redacted Personal Information
"Housing, Highways and Transport",Capital Spend,Economy And Growth,Hps-Disabled Fac. Grants,Y1855,DFG - Strategic Housing,C01009,"New Construction, conversion & renovation",30043157,05/09/2022,202206,"4,604.83",1001038,Northern Lincolnshire and Goole NHS Foundation Trust
"Housing, Highways and Transport",Revenue Budgets,Economy And Growth,Home Options & Hous Rel Supp,A0953,Home Options,A56000,Other Establishments,30038845,06/09/2022,202206,926,Redacted Personal Information,Redacted Personal Information
"Housing, Highways and Transport",Revenue Budgets,Economy And Growth,Car Parks,A1219,Car Parks Works,A49105,Other Supplies & Services,30039543,06/09/2022,202206,"4,879.32",134124,Flowbird Smart City Uk Limited
"Housing, Highways and Transport",Revenue Budgets,Economy And Growth,Facilities Management,A1722,New Oxford House,A22005,Building Rents,30039796,06/09/2022,202206,"30,000.00",140205,Purple Emperor Ltd
"Housing, Highways and Transport",Revenue Budgets,Economy And Growth,Highways Dso,A1231,Highways Dso,A30015,Vehicle Fuel,30040185,06/09/2022,202206,"25,332.82",138198,Your Nrg
"Housing, Highways and Transport",Capital Spend,Economy And Growth,Heritage Assets At Risk,Y1714,Holme Hill School (Edc),C01009,"New Construction, conversion & renovation",30039798,07/09/2022,202206,845.9,142378,Cgc Ecology Ltd
"Housing, Highways and Transport",Revenue Budgets,Economy And Growth,Home Options & Hous Rel Supp,A0953,Home Options,A56000,Other Establishments,30039895,07/09/2022,202206,945,150642,G2v Recruitment Group Ltd
"Housing, Highways and Transport",Revenue Budgets,Economy And Growth,Home Options & Hous Rel Supp,A0955,Crisis Accomodation,A22020,Rental Property Service Charge,30041178,07/09/2022,202206,284.38,100508,Anglian Water
"Housing, Highways and Transport",Revenue Budgets,Economy And Growth,Commercial Estate,A1186,Grimsby Market,A27020,Cleaning Materials,30039934,08/09/2022,202206,320.53,100815,Peter Hogarth & Sons Ltd
"Housing, Highways and Transport",Revenue Budgets,Economy And Growth,Commercial Estate,A1204,Spencer St Factory Units,A21005,Electricity,30040177,08/09/2022,202206,-652.66,148119,E.On Next
"Housing, Highways and Transport",Capital Spend,Economy And Growth,Hps-Disabled Fac. Grants,Y0436,Disab Facil Grant Mandatory,C01012,Payment of Grants/Advances,30040305,08/09/2022,202206,"1,948.60",146603,Tspro Ltd
"Housing, Highways and Transport",Revenue Budgets,Economy And Growth,Facilities Management,A0321,Highgate Cc Premises,A20005,"Property Repairs, Maintenance & Alterations",30043083,08/09/2022,202206,422.4,118749,Thrunscoe Primary And Nursery Academy
"Housing, Highways and Transport",Revenue Budgets,Economy And Growth,Commercial Estate,A1204,Spencer St Factory Units,A21005,Electricity,30044525,08/09/2022,202206,879.09,148119,E.On Next
"Housing, Highways and Transport",Revenue Budgets,Economy And Growth,Home Options & Hous Rel Supp,A0953,Home Options,A56000,Other Establishments,30039262,09/09/2022,202206,303.33,Redacted Personal Information,Redacted Personal Information
"Housing, Highways and Transport",Revenue Budgets,Economy And Growth,Transport Policy,A1275,Phone And Ride,A45045,IT Software Maintenance,30039322,09/09/2022,202206,"9,238.02",101970,Trapeze Group Uk Ltd
"Housing, Highways and Transport",Revenue Budgets,Economy And Growth,Home Options & Hous Rel Supp,A0955,Crisis Accomodation,A22020,Rental Property Service Charge,30041164,09/09/2022,202206,800,Redacted Personal Information,Redacted Personal Information
"Housing, Highways and Transport",Revenue Budgets,Economy And Growth,Home Options & Hous Rel Supp,A0956,Bed & Breakfast,A22005,Building Rents,30041940,09/09/2022,202206,880,Redacted Personal Information,Redacted Personal Information
"Housing, Highways and Transport",Revenue Budgets,Economy And Growth,Facilities Management,A0322,Queensway Cc Premises,A27010,Contract Cleaning,30043082,09/09/2022,202206,"1,038.88",146901,Bidvest Noonan (Uk) Ltd
"Housing, Highways and Transport",Revenue Budgets,Economy And Growth,Commercial Estate,A1179,South Quay Ent. Centre,A22005,Building Rents,30043145,09/09/2022,202206,"2,192.47",100834,Associated British Ports
"Housing, Highways and Transport",Revenue Budgets,Economy And Growth,Commercial Estate,A1206,South Quay Food Units,A22005,Building Rents,30043154,09/09/2022,202206,"3,289.73",100834,Associated British Ports
"Housing, Highways and Transport",Revenue Budgets,Economy And Growth,Supporting People,A0762,Housing Related Support,A47005,"Grants, Contributions & Donations",30041148,12/09/2022,202206,"4,469.00",1002339,NHS Humber and North Yorkshire ICB
"Housing, Highways and Transport",Capital Spend,Economy And Growth,Local Transport Plan Schemes,Y0389,Ltp Unclassified Roads,C01009,"New Construction, conversion & renovation",30043777,12/09/2022,202206,702,122103,Humberside Materials Laboratory Ltd
"Housing, Highways and Transport",Capital Spend,Economy And Growth,Local Transport Plan Schemes,Y0389,Ltp Unclassified Roads,C01009,"New Construction, conversion & renovation",30043781,12/09/2022,202206,702,122103,Humberside Materials Laboratory Ltd
"Housing, Highways and Transport",Capital Spend,Economy And Growth,Local Transport Plan Schemes,Y0389,Ltp Unclassified Roads,C01009,"New Construction, conversion & renovation",30043786,12/09/2022,202206,"1,546.00",122103,Humberside Materials Laboratory Ltd
"Housing, Highways and Transport",Capital Spend,Economy And Growth,Local Transport Plan Schemes,Y0389,Ltp Unclassified Roads,C01009,"New Construction, conversion & renovation",30043788,12/09/2022,202206,702,122103,Humberside Materials Laboratory Ltd
"Housing, Highways and Transport",Capital Spend,Economy And Growth,Local Transport Plan Schemes,Y0389,Ltp Unclassified Roads,C01009,"New Construction, conversion & renovation",30044311,12/09/2022,202206,599,122103,Humberside Materials Laboratory Ltd
"Housing, Highways and Transport",Capital Spend,Economy And Growth,Local Transport Plan Schemes,Y0389,Ltp Unclassified Roads,C01009,"New Construction, conversion & renovation",30044323,12/09/2022,202206,702,122103,Humberside Materials Laboratory Ltd
"Housing, Highways and Transport",Capital Spend,Economy And Growth,Local Transport Plan Schemes,Y0389,Ltp Unclassified Roads,C01009,"New Construction, conversion & renovation",30044326,12/09/2022,202206,737,122103,Humberside Materials Laboratory Ltd
"Housing, Highways and Transport",Capital Spend,Economy And Growth,Local Transport Plan Schemes,Y0389,Ltp Unclassified Roads,C01009,"New Construction, conversion & renovation",30044329,12/09/2022,202206,343,122103,Humberside Materials Laboratory Ltd
"Housing, Highways and Transport",Capital Spend,Economy And Growth,Local Transport Plan Schemes,Y0389,Ltp Unclassified Roads,C01009,"New Construction, conversion & renovation",30044338,12/09/2022,202206,792,122103,Humberside Materials Laboratory Ltd
"Housing, Highways and Transport",Revenue Budgets,Economy And Growth,Street Lighting,A0678,Illuminations,A20005,"Property Repairs, Maintenance & Alterations",30040577,13/09/2022,202206,"13,856.28",100841,J Mccann & Co Ltd
"Housing, Highways and Transport",Revenue Budgets,Economy And Growth,Street Lighting,A1262,Street Lighting Non-Principal,A40035,PAT Testing,30040577,13/09/2022,202206,"5,573.98",100841,J Mccann & Co Ltd
"Housing, Highways and Transport",Revenue Budgets,Economy And Growth,Street Lighting,A1262,Street Lighting Non-Principal,A44130,Street Lighting,30040577,13/09/2022,202206,"4,342.22",100841,J Mccann & Co Ltd
"Housing, Highways and Transport",Revenue Budgets,Economy And Growth,Street Lighting,A1261,Street Lighting Principal,A44130,Street Lighting,30040577,13/09/2022,202206,"21,327.51",100841,J Mccann & Co Ltd
"Housing, Highways and Transport",Revenue Budgets,Economy And Growth,Street Lighting,A1262,Street Lighting Non-Principal,A44131,Traffic Maintenance,30040577,13/09/2022,202206,"2,428.66",100841,J Mccann & Co Ltd
"Housing, Highways and Transport",Revenue Budgets,Economy And Growth,Street Lighting,A1261,Street Lighting Principal,A44131,Traffic Maintenance,30040577,13/09/2022,202206,"4,119.28",100841,J Mccann & Co Ltd
"Housing, Highways and Transport",Revenue Budgets,Economy And Growth,Street Lighting,A1261,Street Lighting Principal,A44131,Traffic Maintenance,30040577,13/09/2022,202206,"4,291.21",100841,J Mccann & Co Ltd
"Housing, Highways and Transport",Revenue Budgets,Economy And Growth,Street Lighting,A1262,Street Lighting Non-Principal,A44131,Traffic Maintenance,30040577,13/09/2022,202206,"9,440.31",100841,J Mccann & Co Ltd
"Housing, Highways and Transport",Revenue Budgets,Economy And Growth,Street Lighting,A1259,Eng Cons-Street Lighting,A56000,Other Establishments,30040577,13/09/2022,202206,"1,243.88",100841,J Mccann & Co Ltd
"Housing, Highways and Transport",Revenue Budgets,Economy And Growth,Street Lighting,A1262,Street Lighting Non-Principal,A44130,Street Lighting,30040600,13/09/2022,202206,"2,133.39",100841,J Mccann & Co Ltd
"Housing, Highways and Transport",Revenue Budgets,Economy And Growth,Street Lighting,A1259,Eng Cons-Street Lighting,A56000,Other Establishments,30040600,13/09/2022,202206,656.39,100841,J Mccann & Co Ltd
"Housing, Highways and Transport",Revenue Budgets,Economy And Growth,Strategic Housing,A1714,Estates Regeneration Income,A44968,Legal & Conveyancing Charges,30040704,13/09/2022,202206,892,109470,Wilkin Chapman Llp Solicitors
"Housing, Highways and Transport",Capital Spend,Economy And Growth,Green Homes LAD Phase 2,Y1838,Green Homes LAD Phase 2,C01014,Other Capital Costs,30040748,13/09/2022,202206,360,138575,Yes Energy Solutions
"Housing, Highways and Transport",Capital Spend,Economy And Growth,Green Homes LAD Phase 2,Y1838,Green Homes LAD Phase 2,C01012,Payment of Grants/Advances,30040749,13/09/2022,202206,"1,959.29",138575,Yes Energy Solutions
"Housing, Highways and Transport",Capital Spend,Economy And Growth,Green Homes LAD Phase 2,Y1838,Green Homes LAD Phase 2,C01012,Payment of Grants/Advances,30040749,13/09/2022,202206,"11,965.71",138575,Yes Energy Solutions
"Housing, Highways and Transport",Capital Spend,Economy And Growth,Green Homes LAD Phase 2,Y1838,Green Homes LAD Phase 2,C01014,Other Capital Costs,30040750,13/09/2022,202206,360,138575,Yes Energy Solutions
"Housing, Highways and Transport",Capital Spend,Economy And Growth,Green Homes LAD Phase 2,Y1838,Green Homes LAD Phase 2,C01014,Other Capital Costs,30040752,13/09/2022,202206,360,138575,Yes Energy Solutions
"Housing, Highways and Transport",Capital Spend,Economy And Growth,Green Homes LAD Phase 2,Y1838,Green Homes LAD Phase 2,C01014,Other Capital Costs,30040753,13/09/2022,202206,360,138575,Yes Energy Solutions
"Housing, Highways and Transport",Capital Spend,Economy And Growth,Green Homes LAD Phase 2,Y1838,Green Homes LAD Phase 2,C01014,Other Capital Costs,30040760,13/09/2022,202206,360,138575,Yes Energy Solutions
"Housing, Highways and Transport",Capital Spend,Economy And Growth,Green Homes LAD Phase 2,Y1838,Green Homes LAD Phase 2,C01014,Other Capital Costs,30040762,13/09/2022,202206,360,138575,Yes Energy Solutions
"Housing, Highways and Transport",Capital Spend,Economy And Growth,Green Homes LAD Phase 2,Y1838,Green Homes LAD Phase 2,C01014,Other Capital Costs,30040767,13/09/2022,202206,360,138575,Yes Energy Solutions
"Housing, Highways and Transport",Capital Spend,Economy And Growth,Green Homes LAD Phase 2,Y1838,Green Homes LAD Phase 2,C01014,Other Capital Costs,30040773,13/09/2022,202206,360,138575,Yes Energy Solutions
"Housing, Highways and Transport",Revenue Budgets,Economy And Growth,Home Options & Hous Rel Supp,A0953,Home Options,A56000,Other Establishments,30040868,13/09/2022,202206,750,Redacted Personal Information,Redacted Personal Information
"Housing, Highways and Transport",Revenue Budgets,Economy And Growth,Facilities Management,A0981,Facilities Management,A27010,Contract Cleaning,30042078,13/09/2022,202206,"-2,147.30",149644,Kingdom Cleaning Limited
"Housing, Highways and Transport",Revenue Budgets,Economy And Growth,Facilities Management,A0981,Facilities Management,A27010,Contract Cleaning,30042083,13/09/2022,202206,"-2,147.30",149644,Kingdom Cleaning Limited
"Housing, Highways and Transport",Revenue Budgets,Economy And Growth,Facilities Management,A0981,Facilities Management,A27010,Contract Cleaning,30042085,13/09/2022,202206,"-2,147.30",149644,Kingdom Cleaning Limited
"Housing, Highways and Transport",Revenue Budgets,Economy And Growth,Facilities Management,A0981,Facilities Management,A27010,Contract Cleaning,30042090,13/09/2022,202206,"-2,147.30",149644,Kingdom Cleaning Limited
"Housing, Highways and Transport",Revenue Budgets,Economy And Growth,Facilities Management,A0981,Facilities Management,A27010,Contract Cleaning,30042093,13/09/2022,202206,"-2,147.30",149644,Kingdom Cleaning Limited
"Housing, Highways and Transport",Revenue Budgets,Economy And Growth,Home Options & Hous Rel Supp,A0956,Bed & Breakfast,A22005,Building Rents,30042244,13/09/2022,202206,900,Redacted Personal Information,Redacted Personal Information
"Housing, Highways and Transport",Revenue Budgets,Economy And Growth,Home Options & Hous Rel Supp,A0955,Crisis Accomodation,A22020,Rental Property Service Charge,30041939,14/09/2022,202206,286.1,108375,Sse (Southern Electric)
"Housing, Highways and Transport",Revenue Budgets,Economy And Growth,Home Options & Hous Rel Supp,A0956,Bed & Breakfast,A22005,Building Rents,30042201,14/09/2022,202206,900,Redacted Personal Information,Redacted Personal Information
"Housing, Highways and Transport",Revenue Budgets,Economy And Growth,Facilities Management,A0321,Highgate Cc Premises,A20005,"Property Repairs, Maintenance & Alterations",30043087,14/09/2022,202206,390,118749,Thrunscoe Primary And Nursery Academy
"Housing, Highways and Transport",Revenue Budgets,Economy And Growth,Facilities Management,A0321,Highgate Cc Premises,A27010,Contract Cleaning,30043087,14/09/2022,202206,255.83,118749,Thrunscoe Primary And Nursery Academy
"Housing, Highways and Transport",Capital Spend,Economy And Growth,Hps-Disabled Fac. Grants,Y0436,Disab Facil Grant Mandatory,C01012,Payment of Grants/Advances,30044689,14/09/2022,202206,"4,495.00",112666,Obam Lift Services Ltd
"Housing, Highways and Transport",Revenue Budgets,Economy And Growth,Home Options & Hous Rel Supp,A0953,Home Options,A56000,Other Establishments,30041661,15/09/2022,202206,377.2,Redacted Personal Information,Redacted Personal Information
"Housing, Highways and Transport",Revenue Budgets,Economy And Growth,Home Options & Hous Rel Supp,A0956,Bed & Breakfast,A22005,Building Rents,30042302,15/09/2022,202206,566.67,Redacted Personal Information,Redacted Personal Information
"Housing, Highways and Transport",Revenue Budgets,Economy And Growth,Home Options & Hous Rel Supp,A0956,Bed & Breakfast,A22005,Building Rents,30042306,15/09/2022,202206,"1,200.00",Redacted Personal Information,Redacted Personal Information
"Housing, Highways and Transport",Revenue Budgets,Economy And Growth,Home Options & Hous Rel Supp,A0956,Bed & Breakfast,A22005,Building Rents,30042309,15/09/2022,202206,"1,033.33",Redacted Personal Information,Redacted Personal Information
"Housing, Highways and Transport",Revenue Budgets,Economy And Growth,Home Options & Hous Rel Supp,A0956,Bed & Breakfast,A22005,Building Rents,30042312,15/09/2022,202206,666.67,Redacted Personal Information,Redacted Personal Information
"Housing, Highways and Transport",Revenue Budgets,Economy And Growth,Home Options & Hous Rel Supp,A0956,Bed & Breakfast,A22005,Building Rents,30042313,15/09/2022,202206,300,Redacted Personal Information,Redacted Personal Information
"Housing, Highways and Transport",Revenue Budgets,Economy And Growth,Home Options & Hous Rel Supp,A0956,Bed & Breakfast,A22005,Building Rents,30042328,15/09/2022,202206,"1,666.67",Redacted Personal Information,Redacted Personal Information
"Housing, Highways and Transport",Revenue Budgets,Economy And Growth,Home Options & Hous Rel Supp,A0956,Bed & Breakfast,A22005,Building Rents,30042334,15/09/2022,202206,566.67,Redacted Personal Information,Redacted Personal Information
"Housing, Highways and Transport",Capital Spend,Economy And Growth,Gy and Imm Flood Innovation Funding,Y1853,Gy & Imm Flood Innov Funding,C01009,"New Construction, conversion & renovation",30041926,16/09/2022,202206,"10,500.00",100579,Specialist Surfacing Limited
"Housing, Highways and Transport",Capital Spend,Economy And Growth,Backlog Maintenance,Y1453,Health & Safe Emergency Work,C01009,"New Construction, conversion & renovation",30042245,16/09/2022,202206,625,104090,E Bacon & Co Ltd
"Housing, Highways and Transport",Revenue Budgets,Economy And Growth,Supporting People,A1663,Syrian Refugees Resettlement,A56000,Other Establishments,30043827,20/09/2022,202206,320,1001565,Coast2Coast Transport Ltd
"Housing, Highways and Transport",Revenue Budgets,Economy And Growth,Home Options & Hous Rel Supp,A0955,Crisis Accomodation,A22020,Rental Property Service Charge,30045357,20/09/2022,202206,335.51,100508,Anglian Water
"Housing, Highways and Transport",Capital Spend,Economy And Growth,Local Transport Plan Schemes,Y0002,Cycle Route,C01014,Other Capital Costs,30042394,21/09/2022,202206,378,128602,Oneway Tm Limited
"Housing, Highways and Transport",Revenue Budgets,Economy And Growth,Supporting People,A1663,Syrian Refugees Resettlement,A56000,Other Establishments,30042403,21/09/2022,202206,"2,026.00",144120,Learning4life-Gy-Cic
"Housing, Highways and Transport",Revenue Budgets,Economy And Growth,Home Options & Hous Rel Supp,A0953,Home Options,A56000,Other Establishments,30043071,21/09/2022,202206,"1,192.50",150642,G2v Recruitment Group Ltd
"Housing, Highways and Transport",Revenue Budgets,Economy And Growth,Commercial Estate,A1180,Wilton Road Ent Centre,A24005,Water Services,42169146,21/09/2022,202206,-345.26,125923,Anglian Water Services Ltd
"Housing, Highways and Transport",Revenue Budgets,Economy And Growth,Commercial Estate,A1178,King Edward St Ent. Centre,A24005,Water Services,42169146,21/09/2022,202206,-260.26,125923,Anglian Water Services Ltd
"Housing, Highways and Transport",Revenue Budgets,Economy And Growth,Facilities Management,A1101,Boating Lake Car Park Toilets,A24005,Water Services,42169146,21/09/2022,202206,273.01,125923,Anglian Water Services Ltd
"Housing, Highways and Transport",Revenue Budgets,Economy And Growth,Facilities Management,A1102,Pier Gardens And Waterfall,A24005,Water Services,42169146,21/09/2022,202206,282.69,125923,Anglian Water Services Ltd
"Housing, Highways and Transport",Revenue Budgets,Economy And Growth,Facilities Management,A0299,East Marsh Cc Premises,A24005,Water Services,42169146,21/09/2022,202206,294.96,125923,Anglian Water Services Ltd
"Housing, Highways and Transport",Revenue Budgets,Economy And Growth,Commercial Estate,A1173,Weelsby,A24005,Water Services,42169146,21/09/2022,202206,300.04,125923,Anglian Water Services Ltd
"Housing, Highways and Transport",Revenue Budgets,Economy And Growth,Facilities Management,A1032,Clee Youth Centre,A24005,Water Services,42169146,21/09/2022,202206,338.85,125923,Anglian Water Services Ltd
"Housing, Highways and Transport",Revenue Budgets,Economy And Growth,Facilities Management,A1109,St Peters Avenue Toilets,A24005,Water Services,42169146,21/09/2022,202206,357.09,125923,Anglian Water Services Ltd
"Housing, Highways and Transport",Revenue Budgets,Economy And Growth,Facilities Management,A1114,Duke Of York Pavilions,A24005,Water Services,42169146,21/09/2022,202206,367.24,125923,Anglian Water Services Ltd
"Housing, Highways and Transport",Revenue Budgets,Economy And Growth,Facilities Management,A1094,King Georg V Fields Taylors Av,A24005,Water Services,42169146,21/09/2022,202206,450.56,125923,Anglian Water Services Ltd
"Housing, Highways and Transport",Revenue Budgets,Economy And Growth,Facilities Management,A1111,Gilbey Road Depot,A24005,Water Services,42169146,21/09/2022,202206,493.98,125923,Anglian Water Services Ltd
"Housing, Highways and Transport",Revenue Budgets,Economy And Growth,Commercial Estate,A1171,Saltings,A24005,Water Services,42169146,21/09/2022,202206,510.82,125923,Anglian Water Services Ltd
"Housing, Highways and Transport",Revenue Budgets,Economy And Growth,Facilities Management,A0996,Municipal Offices,A24005,Water Services,42169146,21/09/2022,202206,577.31,125923,Anglian Water Services Ltd
"Housing, Highways and Transport",Revenue Budgets,Economy And Growth,Facilities Management,A1394,Poplar Road Depot,A24005,Water Services,42169146,21/09/2022,202206,606.89,125923,Anglian Water Services Ltd
"Housing, Highways and Transport",Revenue Budgets,Economy And Growth,Commercial Estate,A1182,Humber Seafood Institute Bldng,A24005,Water Services,42169146,21/09/2022,202206,651.71,125923,Anglian Water Services Ltd
"Housing, Highways and Transport",Revenue Budgets,Economy And Growth,Commercial Estate,A1191,Cleethorpes Showground,A24005,Water Services,42169146,21/09/2022,202206,675.51,125923,Anglian Water Services Ltd
"Housing, Highways and Transport",Revenue Budgets,Economy And Growth,Facilities Management,A0995,Cleethorpes Civic Offices,A24005,Water Services,42169146,21/09/2022,202206,726.11,125923,Anglian Water Services Ltd
"Housing, Highways and Transport",Revenue Budgets,Economy And Growth,Facilities Management,A1097,Sussex Recreation Ground,A24005,Water Services,42169146,21/09/2022,202206,955.47,125923,Anglian Water Services Ltd
"Housing, Highways and Transport",Revenue Budgets,Economy And Growth,Facilities Management,A1120,William Molson Centre,A24005,Water Services,42169146,21/09/2022,202206,"1,433.39",125923,Anglian Water Services Ltd
"Housing, Highways and Transport",Revenue Budgets,Economy And Growth,Facilities Management,A1090,Sidney Park,A24005,Water Services,42169146,21/09/2022,202206,"1,931.39",125923,Anglian Water Services Ltd
"Housing, Highways and Transport",Revenue Budgets,Economy And Growth,Facilities Management,A1764,Lac Education Facility,A24005,Water Services,42169146,21/09/2022,202206,"2,505.58",125923,Anglian Water Services Ltd
"Housing, Highways and Transport",Revenue Budgets,Economy And Growth,Facilities Management,A1059,Doughty Road Depot,A24005,Water Services,42169146,21/09/2022,202206,"3,644.62",125923,Anglian Water Services Ltd
"Housing, Highways and Transport",Capital Spend,Economy And Growth,Housing Assist Grants And Loan,Y0511,Housing Assistance,C01012,Payment of Grants/Advances,30044148,22/09/2022,202206,"6,900.00",146757,East Marsh Construction Cic
"Housing, Highways and Transport",Revenue Budgets,Economy And Growth,Home Options & Hous Rel Supp,A0955,Crisis Accomodation,A22005,Building Rents,30044266,22/09/2022,202206,448.76,Redacted Personal Information,Redacted Personal Information
"Housing, Highways and Transport",Revenue Budgets,Economy And Growth,Home Options & Hous Rel Supp,A0956,Bed & Breakfast,A22005,Building Rents,30044845,22/09/2022,202206,450,Redacted Personal Information,Redacted Personal Information
"Housing, Highways and Transport",Revenue Budgets,Economy And Growth,Supporting People,A1831,DA Safe Accommodation Duty,A47005,"Grants, Contributions & Donations",30045224,22/09/2022,202206,"21,802.00",100326,Womens Aid
"Housing, Highways and Transport",Revenue Budgets,Economy And Growth,Supporting People,A1831,DA Safe Accommodation Duty,A47005,"Grants, Contributions & Donations",30045225,22/09/2022,202206,"21,800.00",100326,Womens Aid
"Housing, Highways and Transport",Revenue Budgets,Economy And Growth,Supporting People,A1831,DA Safe Accommodation Duty,A47005,"Grants, Contributions & Donations",30045226,22/09/2022,202206,"21,800.00",100326,Womens Aid
"Housing, Highways and Transport",Capital Spend,Economy And Growth,Hps-Disabled Fac. Grants,Y1793,Equipment Store,C01006,Purchase of Vehicles & Plant,30043085,23/09/2022,202206,-500,126914,Joerns Healthcare Ltd
"Housing, Highways and Transport",Revenue Budgets,Economy And Growth,Home Options & Hous Rel Supp,A0953,Home Options,A56000,Other Establishments,30044232,23/09/2022,202206,750,Redacted Personal Information,Redacted Personal Information
"Housing, Highways and Transport",Capital Spend,Economy And Growth,Hps-Disabled Fac. Grants,Y0436,Disab Facil Grant Mandatory,C01012,Payment of Grants/Advances,30045691,23/09/2022,202206,"4,445.44",133267,Equans Services Ltd
"Housing, Highways and Transport",Revenue Budgets,Economy And Growth,Commercial Estate,A1211,Seafront Properties,A44037,Inspection Fees,30045688,26/09/2022,202206,350,149245,Gc Reports Ltd
"Housing, Highways and Transport",Revenue Budgets,Economy And Growth,Supporting People,A1663,Syrian Refugees Resettlement,A56000,Other Establishments,30044580,27/09/2022,202206,"2,600.00",1003037,Letsand Grimsby
"Housing, Highways and Transport",Revenue Budgets,Economy And Growth,Home Options & Hous Rel Supp,A0956,Bed & Breakfast,A22005,Building Rents,30044600,27/09/2022,202206,900,Redacted Personal Information,Redacted Personal Information
"Housing, Highways and Transport",Revenue Budgets,Economy And Growth,Home Options & Hous Rel Supp,A0956,Bed & Breakfast,A22005,Building Rents,30044618,27/09/2022,202206,"1,120.00",Redacted Personal Information,Redacted Personal Information
"Housing, Highways and Transport",Revenue Budgets,Economy And Growth,Home Options & Hous Rel Supp,A0956,Bed & Breakfast,A22005,Building Rents,30044626,27/09/2022,202206,420,Redacted Personal Information,Redacted Personal Information
"Housing, Highways and Transport",Revenue Budgets,Economy And Growth,Home Options & Hous Rel Supp,A0956,Bed & Breakfast,A22005,Building Rents,30044627,27/09/2022,202206,630,Redacted Personal Information,Redacted Personal Information
"Housing, Highways and Transport",Revenue Budgets,Economy And Growth,Home Options & Hous Rel Supp,A0953,Home Options,A56000,Other Establishments,30044680,27/09/2022,202206,920,Redacted Personal Information,Redacted Personal Information
"Housing, Highways and Transport",Revenue Budgets,Economy And Growth,Street Lighting,A1262,Street Lighting Non-Principal,A21025,Street Lighting - Energy Costs,42169144,27/09/2022,202206,"43,221.94",103611,Total Energies Gas & Power Ltd
"Housing, Highways and Transport",Revenue Budgets,Economy And Growth,Highways Dso,A1231,Highways Dso,A21005,Electricity,42169145,27/09/2022,202206,259.2,103611,Total Energies Gas & Power Ltd
"Housing, Highways and Transport",Revenue Budgets,Economy And Growth,Facilities Management,A1088,Peoples Park,A21005,Electricity,42169145,27/09/2022,202206,269.8,103611,Total Energies Gas & Power Ltd
"Housing, Highways and Transport",Revenue Budgets,Economy And Growth,Facilities Management,A1394,Poplar Road Depot,A21005,Electricity,42169145,27/09/2022,202206,283.26,103611,Total Energies Gas & Power Ltd
"Housing, Highways and Transport",Revenue Budgets,Economy And Growth,Facilities Management,A0318,Broadway Cc Premises,A21005,Electricity,42169145,27/09/2022,202206,328.25,103611,Total Energies Gas & Power Ltd
"Housing, Highways and Transport",Revenue Budgets,Economy And Growth,Facilities Management,A1102,Pier Gardens And Waterfall,A21005,Electricity,42169145,27/09/2022,202206,345.96,103611,Total Energies Gas & Power Ltd
"Housing, Highways and Transport",Revenue Budgets,Economy And Growth,Facilities Management,A0998,The Knoll,A21005,Electricity,42169145,27/09/2022,202206,370.09,103611,Total Energies Gas & Power Ltd
"Housing, Highways and Transport",Revenue Budgets,Economy And Growth,Facilities Management,A1028,495 Cromwell/Cromwell House Ch,A21005,Electricity,42169145,27/09/2022,202206,371.49,103611,Total Energies Gas & Power Ltd
"Housing, Highways and Transport",Revenue Budgets,Economy And Growth,Facilities Management,A1044,Cleethorpes Library,A21005,Electricity,42169145,27/09/2022,202206,392.74,103611,Total Energies Gas & Power Ltd
"Housing, Highways and Transport",Revenue Budgets,Economy And Growth,Facilities Management,A1088,Peoples Park,A21005,Electricity,42169145,27/09/2022,202206,408.27,103611,Total Energies Gas & Power Ltd
"Housing, Highways and Transport",Revenue Budgets,Economy And Growth,Facilities Management,A0343,Leas Extened Services,A21005,Electricity,42169145,27/09/2022,202206,432.56,103611,Total Energies Gas & Power Ltd
"Housing, Highways and Transport",Revenue Budgets,Economy And Growth,Facilities Management,A0990,Unit 5/6 Pyewipe Place,A21005,Electricity,42169145,27/09/2022,202206,473.2,103611,Total Energies Gas & Power Ltd
"Housing, Highways and Transport",Revenue Budgets,Economy And Growth,Commercial Estate,A1185,Alexandra Dock Business Units,A21005,Electricity,42169145,27/09/2022,202206,550.98,103611,Total Energies Gas & Power Ltd
"Housing, Highways and Transport",Revenue Budgets,Economy And Growth,Facilities Management,A0299,East Marsh Cc Premises,A21005,Electricity,42169145,27/09/2022,202206,600.38,103611,Total Energies Gas & Power Ltd
"Housing, Highways and Transport",Revenue Budgets,Economy And Growth,Facilities Management,A0297,Nbpcc Premises,A21005,Electricity,42169145,27/09/2022,202206,637.75,103611,Total Energies Gas & Power Ltd
"Housing, Highways and Transport",Revenue Budgets,Economy And Growth,Facilities Management,A0979,Heritage Centre Building,A21005,Electricity,42169145,27/09/2022,202206,695.19,103611,Total Energies Gas & Power Ltd
"Housing, Highways and Transport",Revenue Budgets,Economy And Growth,Facilities Management,A0993,Grimsby Town Hall,A21005,Electricity,42169145,27/09/2022,202206,699.73,103611,Total Energies Gas & Power Ltd
"Housing, Highways and Transport",Revenue Budgets,Economy And Growth,Commercial Estate,A1191,Cleethorpes Showground,A21005,Electricity,42169145,27/09/2022,202206,717.86,103611,Total Energies Gas & Power Ltd
"Housing, Highways and Transport",Revenue Budgets,Economy And Growth,Facilities Management,A1032,Clee Youth Centre,A21005,Electricity,42169145,27/09/2022,202206,739.14,103611,Total Energies Gas & Power Ltd
"Housing, Highways and Transport",Revenue Budgets,Economy And Growth,Facilities Management,A1120,William Molson Centre,A21005,Electricity,42169145,27/09/2022,202206,740.31,103611,Total Energies Gas & Power Ltd
"Housing, Highways and Transport",Revenue Budgets,Economy And Growth,Commercial Estate,A1178,King Edward St Ent. Centre,A21005,Electricity,42169145,27/09/2022,202206,975.41,103611,Total Energies Gas & Power Ltd
"Housing, Highways and Transport",Revenue Budgets,Economy And Growth,Commercial Estate,A1180,Wilton Road Ent Centre,A21005,Electricity,42169145,27/09/2022,202206,"1,066.60",103611,Total Energies Gas & Power Ltd
"Housing, Highways and Transport",Revenue Budgets,Economy And Growth,Facilities Management,A1722,New Oxford House,A21005,Electricity,42169145,27/09/2022,202206,"1,340.82",103611,Total Energies Gas & Power Ltd
"Housing, Highways and Transport",Revenue Budgets,Economy And Growth,Car Parks,A1219,Car Parks Works,A21005,Electricity,42169145,27/09/2022,202206,"1,476.92",103611,Total Energies Gas & Power Ltd
"Housing, Highways and Transport",Revenue Budgets,Economy And Growth,Commercial Estate,A1186,Grimsby Market,A21005,Electricity,42169145,27/09/2022,202206,"1,540.77",103611,Total Energies Gas & Power Ltd
"Housing, Highways and Transport",Revenue Budgets,Economy And Growth,Commercial Estate,A1175,Europarc Innovation Centre,A21005,Electricity,42169145,27/09/2022,202206,"1,545.78",103611,Total Energies Gas & Power Ltd
"Housing, Highways and Transport",Revenue Budgets,Economy And Growth,Commercial Estate,A1176,Poplar Road Fact Units,A21005,Electricity,42169145,27/09/2022,202206,"1,745.08",103611,Total Energies Gas & Power Ltd
"Housing, Highways and Transport",Revenue Budgets,Economy And Growth,Facilities Management,A1043,Grimsby Library,A21005,Electricity,42169145,27/09/2022,202206,"1,952.27",103611,Total Energies Gas & Power Ltd
"Housing, Highways and Transport",Revenue Budgets,Economy And Growth,Facilities Management,A1111,Gilbey Road Depot,A21005,Electricity,42169145,27/09/2022,202206,"2,049.53",103611,Total Energies Gas & Power Ltd
"Housing, Highways and Transport",Revenue Budgets,Economy And Growth,Facilities Management,A0996,Municipal Offices,A21005,Electricity,42169145,27/09/2022,202206,"2,825.73",103611,Total Energies Gas & Power Ltd
"Housing, Highways and Transport",Revenue Budgets,Economy And Growth,Commercial Estate,A1186,Grimsby Market,A21005,Electricity,42169145,27/09/2022,202206,"3,136.05",103611,Total Energies Gas & Power Ltd
"Housing, Highways and Transport",Revenue Budgets,Economy And Growth,Facilities Management,A1059,Doughty Road Depot,A21005,Electricity,42169145,27/09/2022,202206,"3,241.06",103611,Total Energies Gas & Power Ltd
"Housing, Highways and Transport",Revenue Budgets,Economy And Growth,Commercial Estate,A1668,Cartergate,A21005,Electricity,42169145,27/09/2022,202206,"4,075.03",103611,Total Energies Gas & Power Ltd
"Housing, Highways and Transport",Revenue Budgets,Economy And Growth,Facilities Management,A0995,Cleethorpes Civic Offices,A21005,Electricity,42169145,27/09/2022,202206,"5,540.98",103611,Total Energies Gas & Power Ltd
"Housing, Highways and Transport",Revenue Budgets,Economy And Growth,Commercial Estate,A1182,Humber Seafood Institute Bldng,A21005,Electricity,42169145,27/09/2022,202206,"11,839.93",103611,Total Energies Gas & Power Ltd
"Housing, Highways and Transport",Revenue Budgets,Economy And Growth,SHIIP Pioneer Business Park,A1823,SHIIP Ecological Mitigation,A21005,Electricity,42169145,27/09/2022,202206,"12,103.26",103611,Total Energies Gas & Power Ltd
"Housing, Highways and Transport",Revenue Budgets,Economy And Growth,Facilities Management,A0979,Heritage Centre Building,A21010,Gas,42169367,27/09/2022,202206,296.68,103611,Total Energies Gas & Power Ltd
"Housing, Highways and Transport",Revenue Budgets,Economy And Growth,Facilities Management,A0995,Cleethorpes Civic Offices,A21010,Gas,42169367,27/09/2022,202206,303.49,103611,Total Energies Gas & Power Ltd
"Housing, Highways and Transport",Revenue Budgets,Economy And Growth,Facilities Management,A0993,Grimsby Town Hall,A21010,Gas,42169367,27/09/2022,202206,309.84,103611,Total Energies Gas & Power Ltd
"Housing, Highways and Transport",Revenue Budgets,Economy And Growth,Facilities Management,A0297,Nbpcc Premises,A21010,Gas,42169367,27/09/2022,202206,341.11,103611,Total Energies Gas & Power Ltd
"Housing, Highways and Transport",Revenue Budgets,Economy And Growth,Facilities Management,A0996,Municipal Offices,A21010,Gas,42169367,27/09/2022,202206,347.63,103611,Total Energies Gas & Power Ltd
"Housing, Highways and Transport",Revenue Budgets,Economy And Growth,Commercial Estate,A1175,Europarc Innovation Centre,A21010,Gas,42169367,27/09/2022,202206,357.74,103611,Total Energies Gas & Power Ltd
"Housing, Highways and Transport",Revenue Budgets,Economy And Growth,Facilities Management,A0343,Leas Extened Services,A21010,Gas,42169367,27/09/2022,202206,527.92,103611,Total Energies Gas & Power Ltd
"Housing, Highways and Transport",Revenue Budgets,Economy And Growth,Commercial Estate,A1182,Humber Seafood Institute Bldng,A21010,Gas,42169367,27/09/2022,202206,631.16,103611,Total Energies Gas & Power Ltd
"Housing, Highways and Transport",Revenue Budgets,Economy And Growth,Facilities Management,A1028,495 Cromwell/Cromwell House Ch,A21010,Gas,42169367,27/09/2022,202206,686.22,103611,Total Energies Gas & Power Ltd
"Housing, Highways and Transport",Revenue Budgets,Economy And Growth,Home Options & Hous Rel Supp,A0955,Crisis Accomodation,A22005,Building Rents,30045045,28/09/2022,202206,"2,318.40",Redacted Personal Information,Redacted Personal Information
"Housing, Highways and Transport",Capital Spend,Economy And Growth,Willingham / Peaks Drainage,Y1700,Willingham / Peaks Drainage,C01011,External Professional Fees,30045139,28/09/2022,202206,"3,952.26",148500,Whitehouse Construction Co Ltd
"Law, Governance and Assets",Revenue Budgets,Resources,Legal Services,A0473,Ccare Legal,A44968,Legal & Conveyancing Charges,30038273,19/05/2022,202206,952,147197,Crown Chambers
"Law, Governance and Assets",Revenue Budgets,Resources,Coroners,A0229,Coroners Court,A47010,Subscriptions (non staff),30044611,27/06/2022,202206,495,1003073,Coroners Society of England & Wales
"Law, Governance and Assets",Revenue Budgets,Resources,Legal Services,A0473,Ccare Legal,A49105,Other Supplies & Services,30044178,29/06/2022,202206,279.2,106512,Aztec Translations
"Law, Governance and Assets",Revenue Budgets,Resources,Legal Services,A0473,Ccare Legal,A44968,Legal & Conveyancing Charges,30037500,10/07/2022,202206,560,1000146,Aaqib Javed
"Law, Governance and Assets",Revenue Budgets,Resources,Legal Services,A0473,Ccare Legal,A44968,Legal & Conveyancing Charges,30037522,20/07/2022,202206,630,140404,Rebecca Miller
"Law, Governance and Assets",Revenue Budgets,Resources,Legal Services,A0473,Ccare Legal,A44042,Alternative Provision,30039738,21/07/2022,202206,300,1002652,Miss Laura Twist
"Law, Governance and Assets",Revenue Budgets,Resources,Legal Services,A0473,Ccare Legal,A49105,Other Supplies & Services,30041975,21/07/2022,202206,300,1002840,hutchison 3G
"Law, Governance and Assets",Revenue Budgets,Resources,Legal Services,A0473,Ccare Legal,A49105,Other Supplies & Services,30044150,22/07/2022,202206,359.28,147547,Hmcts
"Law, Governance and Assets",Revenue Budgets,Resources,Legal Services,A0473,Ccare Legal,A44968,Legal & Conveyancing Charges,30032962,26/07/2022,202206,564,147197,Crown Chambers
"Law, Governance and Assets",Revenue Budgets,Resources,Legal Services,A0473,Ccare Legal,A49105,Other Supplies & Services,30042724,29/07/2022,202206,"21,388.00",145979,Montagu Evans Llp
"Law, Governance and Assets",Revenue Budgets,Resources,Legal Services,A0473,Ccare Legal,A49105,Other Supplies & Services,30044177,29/07/2022,202206,"5,764.50",106512,Aztec Translations
"Law, Governance and Assets",Revenue Budgets,Resources,Legal Services,A0473,Ccare Legal,A44968,Legal & Conveyancing Charges,30039704,01/08/2022,202206,690,147197,Crown Chambers
"Law, Governance and Assets",Revenue Budgets,Resources,Legal Services,A0473,Ccare Legal,A44968,Legal & Conveyancing Charges,30037501,02/08/2022,202206,"1,320.00",139686,Miss Joanne F Jenkins
"Law, Governance and Assets",Revenue Budgets,Resources,Legal Services,A0473,Ccare Legal,A44968,Legal & Conveyancing Charges,30037690,02/08/2022,202206,"1,290.00",139686,Miss Joanne F Jenkins
"Law, Governance and Assets",Revenue Budgets,Resources,Legal Services,A0473,Ccare Legal,A44968,Legal & Conveyancing Charges,30037477,03/08/2022,202206,403.57,124337,Forensic Testing Service
"Law, Governance and Assets",Revenue Budgets,Resources,Legal Services,A0473,Ccare Legal,A44968,Legal & Conveyancing Charges,30037479,03/08/2022,202206,464.05,124337,Forensic Testing Service
"Law, Governance and Assets",Revenue Budgets,Resources,Legal Services,A0473,Ccare Legal,A44968,Legal & Conveyancing Charges,30037438,04/08/2022,202206,"3,480.00",147197,Crown Chambers
"Law, Governance and Assets",Revenue Budgets,Resources,Legal Services,A0473,Ccare Legal,A44968,Legal & Conveyancing Charges,30037474,04/08/2022,202206,"1,770.00",147197,Crown Chambers
"Law, Governance and Assets",Revenue Budgets,Resources,Legal Services,A0473,Ccare Legal,A49105,Other Supplies & Services,30037434,05/08/2022,202206,"1,064.00",125634,Lextox Drug & Alcohol Testing
"Law, Governance and Assets",Revenue Budgets,Resources,Legal Services,A0473,Ccare Legal,A44968,Legal & Conveyancing Charges,30037498,11/08/2022,202206,"1,477.50",139686,Miss Joanne F Jenkins
"Law, Governance and Assets",Revenue Budgets,Resources,Legal Services,A0473,Ccare Legal,A44042,Alternative Provision,30037968,11/08/2022,202206,337.66,1002621,Lincolnshire investigations
"Law, Governance and Assets",Revenue Budgets,Resources,Legal Services,A0473,Ccare Legal,A44968,Legal & Conveyancing Charges,30039791,11/08/2022,202206,920,1000873,Marie Harbin
"Law, Governance and Assets",Revenue Budgets,Resources,Legal Services,A0473,Ccare Legal,A49105,Other Supplies & Services,30037478,15/08/2022,202206,284,125634,Lextox Drug & Alcohol Testing
"Law, Governance and Assets",Revenue Budgets,Resources,Legal Services,A0473,Ccare Legal,A44968,Legal & Conveyancing Charges,30037496,18/08/2022,202206,396.66,146697,Miss Philippa Pudney
"Law, Governance and Assets",Revenue Budgets,Resources,Legal Services,A0473,Ccare Legal,A49105,Other Supplies & Services,30037518,18/08/2022,202206,493.6,106320,Carter Brown The Expert Service
"Law, Governance and Assets",Revenue Budgets,Resources,Legal Services,A0473,Ccare Legal,A44042,Alternative Provision,30037970,18/08/2022,202206,420,1000545,Brett Davies
"Law, Governance and Assets",Revenue Budgets,Resources,Legal Services,A0473,Ccare Legal,A44968,Legal & Conveyancing Charges,30037499,22/08/2022,202206,840,1002401,Holly Bates
"Law, Governance and Assets",Revenue Budgets,Resources,Legal Services,A0473,Ccare Legal,A49105,Other Supplies & Services,30037523,22/08/2022,202206,571.05,124337,Forensic Testing Service
"Law, Governance and Assets",Revenue Budgets,Resources,Legal Services,A0473,Ccare Legal,A49105,Other Supplies & Services,30037475,24/08/2022,202206,405,143990,Dr Suraj Shenoy
"Law, Governance and Assets",Revenue Budgets,Resources,Legal Services,A0473,Ccare Legal,A44968,Legal & Conveyancing Charges,30037503,24/08/2022,202206,540,147197,Crown Chambers
"Law, Governance and Assets",Revenue Budgets,Resources,Legal Services,A0473,Ccare Legal,A49105,Other Supplies & Services,30037516,24/08/2022,202206,725.87,124337,Forensic Testing Service
"Law, Governance and Assets",Revenue Budgets,Resources,Legal Services,A0473,Ccare Legal,A44968,Legal & Conveyancing Charges,30037553,24/08/2022,202206,"18,000.00",147197,Crown Chambers
"Law, Governance and Assets",Revenue Budgets,Resources,Legal Services,A0473,Ccare Legal,A44968,Legal & Conveyancing Charges,30039630,24/08/2022,202206,588,147197,Crown Chambers
"Law, Governance and Assets",Revenue Budgets,Resources,Legal Services,A0473,Ccare Legal,A44968,Legal & Conveyancing Charges,30039631,24/08/2022,202206,795,139686,Miss Joanne F Jenkins
"Law, Governance and Assets",Revenue Budgets,Resources,Legal Services,A0473,Ccare Legal,A44968,Legal & Conveyancing Charges,30039632,24/08/2022,202206,572,147197,Crown Chambers
"Law, Governance and Assets",Revenue Budgets,Resources,Legal Services,A0473,Ccare Legal,A44968,Legal & Conveyancing Charges,30039635,24/08/2022,202206,540,147197,Crown Chambers
"Law, Governance and Assets",Revenue Budgets,Resources,Legal Services,A0473,Ccare Legal,A44968,Legal & Conveyancing Charges,30039671,24/08/2022,202206,441,147197,Crown Chambers
"Law, Governance and Assets",Revenue Budgets,Resources,Legal Services,A0473,Ccare Legal,A44968,Legal & Conveyancing Charges,30039677,24/08/2022,202206,300,147197,Crown Chambers
"Law, Governance and Assets",Revenue Budgets,Resources,Legal Services,A0473,Ccare Legal,A44968,Legal & Conveyancing Charges,30039680,24/08/2022,202206,420,147197,Crown Chambers
"Law, Governance and Assets",Revenue Budgets,Resources,Legal Services,A0473,Ccare Legal,A44968,Legal & Conveyancing Charges,30039684,24/08/2022,202206,462,147197,Crown Chambers
"Law, Governance and Assets",Revenue Budgets,Resources,Legal Services,A0473,Ccare Legal,A44968,Legal & Conveyancing Charges,30039689,24/08/2022,202206,540,147197,Crown Chambers
"Law, Governance and Assets",Revenue Budgets,Resources,Legal Services,A0473,Ccare Legal,A44968,Legal & Conveyancing Charges,30039695,24/08/2022,202206,540,147197,Crown Chambers
"Law, Governance and Assets",Revenue Budgets,Resources,Legal Services,A0473,Ccare Legal,A44968,Legal & Conveyancing Charges,30039700,24/08/2022,202206,"1,233.60",147197,Crown Chambers
"Law, Governance and Assets",Revenue Budgets,Resources,Legal Services,A0473,Ccare Legal,A44968,Legal & Conveyancing Charges,30039702,24/08/2022,202206,623.2,147197,Crown Chambers
"Law, Governance and Assets",Revenue Budgets,Resources,Legal Services,A0473,Ccare Legal,A44968,Legal & Conveyancing Charges,30039709,24/08/2022,202206,462,147197,Crown Chambers
"Law, Governance and Assets",Revenue Budgets,Resources,Legal Services,A0473,Ccare Legal,A44968,Legal & Conveyancing Charges,30039718,24/08/2022,202206,327,147197,Crown Chambers
"Law, Governance and Assets",Revenue Budgets,Resources,Legal Services,A0473,Ccare Legal,A44968,Legal & Conveyancing Charges,30039727,24/08/2022,202206,564,147197,Crown Chambers
"Law, Governance and Assets",Revenue Budgets,Resources,Legal Services,A0473,Ccare Legal,A44968,Legal & Conveyancing Charges,30039736,24/08/2022,202206,"1,668.00",147197,Crown Chambers
"Law, Governance and Assets",Revenue Budgets,Resources,Legal Services,A0473,Ccare Legal,A44968,Legal & Conveyancing Charges,30039740,24/08/2022,202206,420,147197,Crown Chambers
"Law, Governance and Assets",Revenue Budgets,Resources,Legal Services,A0473,Ccare Legal,A44968,Legal & Conveyancing Charges,30039742,24/08/2022,202206,504,147197,Crown Chambers
"Law, Governance and Assets",Revenue Budgets,Resources,Legal Services,A0473,Ccare Legal,A44968,Legal & Conveyancing Charges,30043685,24/08/2022,202206,540,147197,Crown Chambers
"Law, Governance and Assets",Revenue Budgets,Resources,Coroners,A0229,Coroners Court,A61177,Conveyance Bodies,30038744,25/08/2022,202206,540,103343,Mashfords
"Law, Governance and Assets",Revenue Budgets,Resources,Legal Services,A0473,Ccare Legal,A49105,Other Supplies & Services,30039672,26/08/2022,202206,"1,059.77",125634,Lextox Drug & Alcohol Testing
"Law, Governance and Assets",Revenue Budgets,Resources,Legal Services,A0473,Ccare Legal,A49105,Other Supplies & Services,30039699,30/08/2022,202206,342.5,1000523,Hubs & Co
"Law, Governance and Assets",Revenue Budgets,Resources,Coroners,A0229,Coroners Court,A61176,Post Mortems,30038793,31/08/2022,202206,"3,200.00",Redacted Personal Information,Redacted Personal Information
"Law, Governance and Assets",Revenue Budgets,Resources,Coroners,A0229,Coroners Court,A22010,Hire of Rooms,30038798,31/08/2022,202206,352.5,101604,Cleethorpes Charter Trustees
"Law, Governance and Assets",Revenue Budgets,Resources,Legal Services,A0473,Ccare Legal,A49105,Other Supplies & Services,30039673,31/08/2022,202206,391.25,125634,Lextox Drug & Alcohol Testing
"Law, Governance and Assets",Revenue Budgets,Resources,Legal Services,A0473,Ccare Legal,A44968,Legal & Conveyancing Charges,30039685,31/08/2022,202206,540,147197,Crown Chambers
"Law, Governance and Assets",Revenue Budgets,Resources,Legal Services,A0473,Ccare Legal,A44968,Legal & Conveyancing Charges,30039650,01/09/2022,202206,420,147197,Crown Chambers
"Law, Governance and Assets",Revenue Budgets,Resources,Legal Services,A0473,Ccare Legal,A49105,Other Supplies & Services,30041971,01/09/2022,202206,"1,855.60",129570,Advanced Child Care Assessments Ltd
"Law, Governance and Assets",Revenue Budgets,Resources,Coroners,A0229,Coroners Court,A61176,Post Mortems,30038689,02/09/2022,202206,"4,011.90",Redacted Personal Information,Redacted Personal Information
"Law, Governance and Assets",Revenue Budgets,Resources,Coroners,A0229,Coroners Court,A61176,Post Mortems,30038800,02/09/2022,202206,312,111074,N Lincs & Goole Hospitals Nhs Foundation Trus
"Law, Governance and Assets",Revenue Budgets,Resources,Legal Services,A0473,Ccare Legal,A49105,Other Supplies & Services,30039654,02/09/2022,202206,585.73,136501,Reflective Minds Ltd
"Law, Governance and Assets",Revenue Budgets,Resources,Legal Services,A0473,Ccare Legal,A44968,Legal & Conveyancing Charges,30039661,02/09/2022,202206,420,147197,Crown Chambers
"Law, Governance and Assets",Revenue Budgets,Resources,Coroners,A0229,Coroners Court,A61176,Post Mortems,30038124,06/09/2022,202206,"1,400.00",Redacted Personal Information,Redacted Personal Information
"Law, Governance and Assets",Revenue Budgets,Resources,Legal Services,A0473,Ccare Legal,A44968,Legal & Conveyancing Charges,30041860,06/09/2022,202206,572,147197,Crown Chambers
"Law, Governance and Assets",Revenue Budgets,Resources,Legal Services,A0473,Ccare Legal,A44968,Legal & Conveyancing Charges,30041870,06/09/2022,202206,360,139686,Miss Joanne F Jenkins
"Law, Governance and Assets",Revenue Budgets,Resources,Legal Services,A0473,Ccare Legal,A49105,Other Supplies & Services,30041967,06/09/2022,202206,604.47,124337,Forensic Testing Service
"Law, Governance and Assets",Revenue Budgets,Resources,Legal Services,A0473,Ccare Legal,A44968,Legal & Conveyancing Charges,30044121,06/09/2022,202206,"8,020.00",147197,Crown Chambers
"Law, Governance and Assets",Revenue Budgets,Resources,Legal Services,A0473,Ccare Legal,A44968,Legal & Conveyancing Charges,30044149,06/09/2022,202206,795,123960,Mr Jonathan C Wilson
"Law, Governance and Assets",Revenue Budgets,Resources,Legal Services,A0225,Legal Consultancy,A11005,Agency Supply Staff,30040445,07/09/2022,202206,"1,260.00",150642,G2v Recruitment Group Ltd
"Law, Governance and Assets",Revenue Budgets,Resources,Legal Services,A0473,Ccare Legal,A44968,Legal & Conveyancing Charges,30044099,07/09/2022,202206,360,134849,Mr Alan Carnie
"Law, Governance and Assets",Revenue Budgets,Resources,Legal Services,A0473,Ccare Legal,A44968,Legal & Conveyancing Charges,30044144,07/09/2022,202206,930,139686,Miss Joanne F Jenkins
"Law, Governance and Assets",Revenue Budgets,Resources,Legal Services,A0473,Ccare Legal,A49105,Other Supplies & Services,30041863,09/09/2022,202206,496.84,146277,Psychology Experts Ltd
"Law, Governance and Assets",Revenue Budgets,Resources,Legal Services,A0473,Ccare Legal,A49105,Other Supplies & Services,30044153,13/09/2022,202206,540,143990,Dr Suraj Shenoy
"Law, Governance and Assets",Revenue Budgets,Resources,Legal Services,A0473,Ccare Legal,A45040,IT Software Purchase,30041137,14/09/2022,202206,428.44,101275,Trustmarque Solutions Ltd
"Law, Governance and Assets",Revenue Budgets,Resources,Legal Services,A0473,Ccare Legal,A45040,IT Software Purchase,30041138,14/09/2022,202206,428.44,101275,Trustmarque Solutions Ltd
"Law, Governance and Assets",Revenue Budgets,Resources,Legal Services,A0225,Legal Consultancy,A11005,Agency Supply Staff,30044688,21/09/2022,202206,"1,530.00",150642,G2v Recruitment Group Ltd
"Law, Governance and Assets",Revenue Budgets,Resources,Coroners,A0229,Coroners Court,A61176,Post Mortems,30043772,22/09/2022,202206,"2,226.90",Redacted Personal Information,Redacted Personal Information
Other Corp Budgets - Financing,Revenue Budgets,Other Corporate Budgets,Borrowing Costs,A1301,Misc Interest Bank Charges Etc,A49105,Other Supplies & Services,30038037,02/08/2022,202206,"1,246.58",142829,Tradition UK Ltd
Other Corp Budgets - Financing,Revenue Budgets,Other Corporate Budgets,Borrowing Costs,A1301,Misc Interest Bank Charges Etc,A47010,Subscriptions (non staff),30037925,01/09/2022,202206,650,125043,Pslive Ltd
"Policy, Strategy and Resources",Revenue Budgets,Resources,I.C.T,A0206,Corporate Software Infrastructure,A45025,Communications,30040373,06/04/2022,202206,"125,982.10",144852,Redcentric Solutions Ltd
"Policy, Strategy and Resources",Revenue Budgets,Resources,I.C.T,A0210,Ict Traded,A45005,IT Hardware Purchase,30043148,06/05/2022,202206,332.5,1000046,Colena Ltd (trading as Heliguy)
"Policy, Strategy and Resources",Revenue Budgets,Resources,I.C.T,A0210,Ict Traded,A45005,IT Hardware Purchase,30043148,06/05/2022,202206,"2,550.00",1000046,Colena Ltd (trading as Heliguy)
"Policy, Strategy and Resources",Revenue Budgets,Resources,I.C.T,A0210,Ict Traded,A45005,IT Hardware Purchase,30043148,06/05/2022,202206,"4,566.67",1000046,Colena Ltd (trading as Heliguy)
"Policy, Strategy and Resources",Revenue Budgets,Resources,People and Culture,A0790,Disclosure Check Pmts,A16025,Recruitment Expenses,30039069,09/05/2022,202206,778,148286,Ucheck
"Policy, Strategy and Resources",Revenue Budgets,Resources,Chief Exec & Support,A0234,Development Fund,A47006,Contributions - Communities,30022699,06/07/2022,202206,500,100811,W R Cullum
"Policy, Strategy and Resources",Revenue Budgets,Resources,People and Culture,A0814,Corporate Training & Devel,A16015,Staff Training Expenses,30028091,22/07/2022,202206,"1,200.00",141443,Modal Training Ltd
"Policy, Strategy and Resources",Revenue Budgets,Resources,Bus Support & Customer Serv,A0214,Business Support Unit (Sbs),A33005,Public Transport - Non Staff,30032476,31/07/2022,202206,-331.6,127476,Click Travel
"Policy, Strategy and Resources",Revenue Budgets,Resources,I.C.T,A0204,Corporate Network Infrastructure,A45020,Telephones,30037167,08/08/2022,202206,"2,796.29",108104,Gamma Business Communications Ltd
"Policy, Strategy and Resources",Revenue Budgets,Resources,People and Culture,A1536,P&C - Occup Health & Safety,A47010,Subscriptions (non staff),30038527,15/08/2022,202206,"1,000.00",132439,Wellbeing Solutions Management
"Policy, Strategy and Resources",Revenue Budgets,Resources,I.C.T,A0206,Corporate Software Infrastructure,A45040,IT Software Purchase,30036156,22/08/2022,202206,"11,676.00",107604,Webaspx
"Policy, Strategy and Resources",Capital Spend,Resources,Ict Refresh,Y1638,Ict Refresh/Refurb,C01009,"New Construction, conversion & renovation",30036295,23/08/2022,202206,320,141310,Total Computer Networks Ltd
"Policy, Strategy and Resources",Revenue Budgets,Resources,I.C.T,A0204,Corporate Network Infrastructure,A61167,Mobile Phones,30042872,24/08/2022,202206,"5,282.00",101324,Vodafone Limited
"Policy, Strategy and Resources",Revenue Budgets,Resources,I.C.T,A0206,Corporate Software Infrastructure,A45040,IT Software Purchase,30036472,26/08/2022,202206,"2,085.30",100753,Phoenix Software Ltd
"Policy, Strategy and Resources",Revenue Budgets,Resources,Chief Exec & Support,A0234,Development Fund,A33005,Public Transport - Non Staff,30039553,27/08/2022,202206,347.92,100557,Ready Rent A Car
"Policy, Strategy and Resources",Revenue Budgets,Resources,Bus Support & Customer Serv,A0214,Business Support Unit (Sbs),A43020,General Office Expenses,30038447,29/08/2022,202206,266.36,150518,Ot Group Ltd
"Policy, Strategy and Resources",Revenue Budgets,Resources,Communications And Marketing,A0747,Customer Care,A40070,Stock Materials,30036615,30/08/2022,202206,411.68,142370,Valtech Ltd
"Policy, Strategy and Resources",Revenue Budgets,Resources,I.C.T,A0206,Corporate Software Infrastructure,A45045,IT Software Maintenance,30036937,30/08/2022,202206,"1,500.00",104929,Astun Technology Ltd
"Policy, Strategy and Resources",Revenue Budgets,Resources,I.C.T,A0206,Corporate Software Infrastructure,A45045,IT Software Maintenance,30036937,30/08/2022,202206,"17,500.00",104929,Astun Technology Ltd
"Policy, Strategy and Resources",Revenue Budgets,Resources,Chief Exec & Support,A0232,Stronger Community Fund,A47006,Contributions - Communities,30037364,30/08/2022,202206,"1,000.00",1002723,Stroke Links CIC
"Policy, Strategy and Resources",Revenue Budgets,Resources,Chief Exec & Support,A0232,Stronger Community Fund,A47007,Contributions - Third Sector,30037371,30/08/2022,202206,400,1002649,Cleethorpes Golf Club (1894) Ltd
"Policy, Strategy and Resources",Revenue Budgets,Resources,Chief Finance Officer,A0195,Chief Finance Officer,A44065,Consultancy Services,30037729,30/08/2022,202206,987.5,1000814,Anthony Winn Business Consultant
"Policy, Strategy and Resources",Capital Spend,Resources,System Investment,Y1661,Integrated Hr & Payroll System,C01006,Purchase of Vehicles & Plant,30040907,30/08/2022,202206,"5,000.00",102633,Mhr International Uk Ltd
"Policy, Strategy and Resources",Revenue Budgets,Resources,I.C.T,A0204,Corporate Network Infrastructure,A61167,Mobile Phones,30037117,31/08/2022,202206,"5,750.00",141310,Total Computer Networks Ltd
"Policy, Strategy and Resources",Revenue Budgets,Resources,Chief Finance Officer,A0195,Chief Finance Officer,A44065,Consultancy Services,30037776,31/08/2022,202206,"1,360.00",137191,Ian Girdley
"Policy, Strategy and Resources",Revenue Budgets,Resources,I.C.T,A0206,Corporate Software Infrastructure,A45040,IT Software Purchase,30037863,31/08/2022,202206,"1,433.27",146054,Esri (Uk) Ltd
"Policy, Strategy and Resources",Revenue Budgets,Resources,Communications And Marketing,A0747,Customer Care,A58015,Other Agencies/Contractors,30038517,31/08/2022,202206,591.84,100952,G4s Cash Services (Uk) Limited
"Policy, Strategy and Resources",Revenue Budgets,Resources,Shared Print Hub,A0211,Print Unit,A40090,Equipment Hire,30039878,31/08/2022,202206,"7,449.09",101652,Agilico Workplace Technologies (North) Ltd
"Policy, Strategy and Resources",Revenue Budgets,Resources,Shared Print Hub,A0211,Print Unit,A43010,Printing,30039878,31/08/2022,202206,"1,258.55",101652,Agilico Workplace Technologies (North) Ltd
"Policy, Strategy and Resources",Revenue Budgets,Resources,Shared Print Hub,A0211,Print Unit,A40090,Equipment Hire,30039892,31/08/2022,202206,"2,020.86",101652,Agilico Workplace Technologies (North) Ltd
"Policy, Strategy and Resources",Revenue Budgets,Resources,Shared Print Hub,A0211,Print Unit,A43010,Printing,30039892,31/08/2022,202206,433.31,101652,Agilico Workplace Technologies (North) Ltd
"Policy, Strategy and Resources",Revenue Budgets,Resources,Bus Support & Customer Serv,A0214,Business Support Unit (Sbs),A33005,Public Transport - Non Staff,30040584,31/08/2022,202206,"6,914.45",127476,Click Travel
"Policy, Strategy and Resources",Revenue Budgets,Resources,Bus Support & Customer Serv,A0214,Business Support Unit (Sbs),A33005,Public Transport - Non Staff,30040584,31/08/2022,202206,"7,984.39",127476,Click Travel
"Policy, Strategy and Resources",Revenue Budgets,Resources,Communications And Marketing,A0747,Customer Care,A42020,Medical Supplies,30041260,31/08/2022,202206,-324,105269,Physio-Works
"Policy, Strategy and Resources",Revenue Budgets,Resources,"Strategy, Policy & Performance",A1867,Transformation,A11005,Agency Supply Staff,30042195,31/08/2022,202206,900,150642,G2v Recruitment Group Ltd
"Policy, Strategy and Resources",Revenue Budgets,Resources,People and Culture,A1537,P&C - Governance & Workforce,A17005,Staff Advertising,30043074,31/08/2022,202206,"3,750.00",105566,Ma Education Ltd
"Policy, Strategy and Resources",Revenue Budgets,Resources,Chief Finance Officer,A0195,Chief Finance Officer,A44065,Consultancy Services,30044012,31/08/2022,202206,"1,708.00",134910,Sarah Rock
"Policy, Strategy and Resources",Capital Spend,Resources,Ict Refresh,Y1638,Ict Refresh/Refurb,C01009,"New Construction, conversion & renovation",30037683,01/09/2022,202206,640,141310,Total Computer Networks Ltd
"Policy, Strategy and Resources",Revenue Budgets,Resources,People and Culture,A1800,DWP Kickstart Scheme,A16015,Staff Training Expenses,30037937,01/09/2022,202206,324.16,122549,E-Factor Group Ltd
"Policy, Strategy and Resources",Revenue Budgets,Resources,I.C.T,A0204,Corporate Network Infrastructure,A61167,Mobile Phones,30041338,01/09/2022,202206,-937.5,107612,Virgin Media
"Policy, Strategy and Resources",Revenue Budgets,Resources,I.C.T,A0204,Corporate Network Infrastructure,A61167,Mobile Phones,30041338,01/09/2022,202206,"1,093.75",107612,Virgin Media
"Policy, Strategy and Resources",Revenue Budgets,Resources,People and Culture,A0814,Corporate Training & Devel,A16015,Staff Training Expenses,30037730,02/09/2022,202206,"1,416.64",Redacted  ,Redacted Personal Information
"Policy, Strategy and Resources",Revenue Budgets,Resources,People and Culture,A0814,Corporate Training & Devel,A16015,Staff Training Expenses,30037733,02/09/2022,202206,"1,416.64",Redacted  ,Redacted Personal Information
"Policy, Strategy and Resources",Revenue Budgets,Resources,Bus Support & Customer Serv,A1442,Postal Services,A45015,Postages,30038289,04/09/2022,202206,439.72,135925,Whistl Uk Ltd
"Policy, Strategy and Resources",Revenue Budgets,Resources,Bus Support & Customer Serv,A1442,Postal Services,A45015,Postages,30038303,04/09/2022,202206,"1,110.66",135925,Whistl Uk Ltd
"Policy, Strategy and Resources",Revenue Budgets,Resources,People and Culture,A0790,Disclosure Check Pmts,A11005,Agency Supply Staff,30040094,04/09/2022,202206,"67,797.92",145197,Comensura Ltd
"Policy, Strategy and Resources",Revenue Budgets,Resources,Bus Support & Customer Serv,A1442,Postal Services,A45015,Postages,30040124,05/09/2022,202206,446.28,101082,Royal Mail Group Plc
"Policy, Strategy and Resources",Revenue Budgets,Resources,People and Culture,A1675,Apprenticeship Levy,A91135,Other Reimbusements & Contibutions,30043146,06/09/2022,202206,294.68,Redacted  ,Redacted Personal Information
"Policy, Strategy and Resources",Revenue Budgets,Resources,Chief Exec & Support,A0232,Stronger Community Fund,A47007,Contributions - Third Sector,30040087,08/09/2022,202206,"2,000.00",1002847,Humberston Village Council
"Policy, Strategy and Resources",Revenue Budgets,Resources,I.C.T,A0204,Corporate Network Infrastructure,A45020,Telephones,30043094,08/09/2022,202206,"2,862.30",108104,Gamma Business Communications Ltd
"Policy, Strategy and Resources",Revenue Budgets,Resources,Chief Exec & Support,A0234,Development Fund,A47006,Contributions - Communities,30040926,09/09/2022,202206,"1,806.25",100389,Lincolnshire County Council
"Policy, Strategy and Resources",Revenue Budgets,Resources,I.C.T,A0206,Corporate Software Infrastructure,A45045,IT Software Maintenance,30040972,09/09/2022,202206,"4,711.45",100696,Oracle Corporation Uk Ltd
"Policy, Strategy and Resources",Capital Spend,Resources,Ict Refresh,Y1638,Ict Refresh/Refurb,C01009,"New Construction, conversion & renovation",30041359,09/09/2022,202206,"1,200.00",141310,Total Computer Networks Ltd
"Policy, Strategy and Resources",Revenue Budgets,Resources,Bus Support & Customer Serv,A1442,Postal Services,A45015,Postages,30040497,11/09/2022,202206,"2,639.92",135925,Whistl Uk Ltd
"Policy, Strategy and Resources",Revenue Budgets,Resources,People and Culture,A0790,Disclosure Check Pmts,A11005,Agency Supply Staff,30043189,11/09/2022,202206,"59,595.88",145197,Comensura Ltd
"Policy, Strategy and Resources",Revenue Budgets,Resources,People and Culture,A0790,Disclosure Check Pmts,A16025,Recruitment Expenses,30043185,12/09/2022,202206,"-1,216.00",148286,Ucheck
"Policy, Strategy and Resources",Revenue Budgets,Resources,People and Culture,A0790,Disclosure Check Pmts,A16025,Recruitment Expenses,30043185,12/09/2022,202206,608,148286,Ucheck
"Policy, Strategy and Resources",Revenue Budgets,Resources,People and Culture,A0790,Disclosure Check Pmts,A16025,Recruitment Expenses,30043185,12/09/2022,202206,608,148286,Ucheck
"Policy, Strategy and Resources",Revenue Budgets,Resources,People and Culture,A0790,Disclosure Check Pmts,A16025,Recruitment Expenses,30043185,12/09/2022,202206,608,148286,Ucheck
"Policy, Strategy and Resources",Revenue Budgets,Resources,I.C.T,A0206,Corporate Software Infrastructure,A45045,IT Software Maintenance,30040692,13/09/2022,202206,"2,214.45",101275,Trustmarque Solutions Ltd
"Policy, Strategy and Resources",Revenue Budgets,Resources,I.C.T,A0206,Corporate Software Infrastructure,A45045,IT Software Maintenance,30040692,13/09/2022,202206,"10,855.62",101275,Trustmarque Solutions Ltd
"Policy, Strategy and Resources",Revenue Budgets,Resources,I.C.T,A0204,Corporate Network Infrastructure,A61167,Mobile Phones,30041321,13/09/2022,202206,"5,750.00",141310,Total Computer Networks Ltd
"Policy, Strategy and Resources",Revenue Budgets,Resources,People and Culture,A0814,Corporate Training & Devel,A16015,Staff Training Expenses,30041218,15/09/2022,202206,260,1002838,Westminster Forum Projects
"Policy, Strategy and Resources",Revenue Budgets,Resources,People and Culture,A1536,P&C - Occup Health & Safety,A47010,Subscriptions (non staff),30041935,15/09/2022,202206,520,135506,Christine Miles
"Policy, Strategy and Resources",Revenue Budgets,Resources,"Strategy, Policy & Performance",A1866,Business Practice and Performance,A47010,Subscriptions (non staff),30042194,16/09/2022,202206,"2,900.00",103593,The Information Commissioner
"Policy, Strategy and Resources",Revenue Budgets,Resources,I.C.T,A0206,Corporate Software Infrastructure,A45045,IT Software Maintenance,30043555,16/09/2022,202206,293.75,102633,Mhr International Uk Ltd
"Policy, Strategy and Resources",Revenue Budgets,Resources,Shared Print Hub,A0211,Print Unit,A56000,Other Establishments,30043698,16/09/2022,202206,375,101147,Systematic Print Management Ltd
"Policy, Strategy and Resources",Revenue Budgets,Resources,Bus Support & Customer Serv,A1442,Postal Services,A45015,Postages,30042243,18/09/2022,202206,"2,766.36",135925,Whistl Uk Ltd
"Policy, Strategy and Resources",Revenue Budgets,Resources,People and Culture,A0790,Disclosure Check Pmts,A11005,Agency Supply Staff,30043187,18/09/2022,202206,"65,570.53",145197,Comensura Ltd
"Policy, Strategy and Resources",Revenue Budgets,Resources,Bus Support & Customer Serv,A1442,Postal Services,A45015,Postages,30042239,19/09/2022,202206,360,101082,Royal Mail Group Plc
"Policy, Strategy and Resources",Revenue Budgets,Resources,People and Culture,A0790,Disclosure Check Pmts,A16025,Recruitment Expenses,30043178,19/09/2022,202206,530,148286,Ucheck
"Policy, Strategy and Resources",Revenue Budgets,Resources,People and Culture,A1850,OD - Gap Year Students,A16015,Staff Training Expenses,30042318,20/09/2022,202206,326.4,109018,The Colour Works International Ltd
"Policy, Strategy and Resources",Revenue Budgets,Resources,Shared Print Hub,A0211,Print Unit,A40090,Equipment Hire,30042839,20/09/2022,202206,"2,385.98",100572,Xerox Finance
"Policy, Strategy and Resources",Revenue Budgets,Resources,"Strategy, Policy & Performance",A1867,Transformation,A11005,Agency Supply Staff,30043075,21/09/2022,202206,960,150642,G2v Recruitment Group Ltd
"Policy, Strategy and Resources",Revenue Budgets,Resources,"Strategy, Policy & Performance",A1866,Business Practice and Performance,A45040,IT Software Purchase,30043942,23/09/2022,202206,428.44,101275,Trustmarque Solutions Ltd
"Policy, Strategy and Resources",Revenue Budgets,Resources,Bus Support & Customer Serv,A0214,Business Support Unit (Sbs),A43020,General Office Expenses,30044236,23/09/2022,202206,472.07,150518,Ot Group Ltd
"Policy, Strategy and Resources",Revenue Budgets,Resources,Bus Support & Customer Serv,A1442,Postal Services,A45015,Postages,30044184,25/09/2022,202206,"1,371.82",135925,Whistl Uk Ltd
"Policy, Strategy and Resources",Revenue Budgets,Resources,Communications And Marketing,A0747,Customer Care,A40070,Stock Materials,30045042,26/09/2022,202206,345.96,142370,Valtech Ltd
"Policy, Strategy and Resources",Revenue Budgets,Resources,Communications And Marketing,A0747,Customer Care,A40070,Stock Materials,30045244,27/09/2022,202206,795.97,142186,Allied Publicity Services (Manchester Ltd)
Public Health,Revenue Budgets,Public Health,Director Public Health,A1785,Grounds - Covid Inf Control,A27010,Contract Cleaning,30037326,30/09/2021,202206,413.66,149644,Kingdom Cleaning Limited
Public Health,Revenue Budgets,Public Health,Director Public Health,A1785,Grounds - Covid Inf Control,A27010,Contract Cleaning,30037333,30/09/2021,202206,275.78,149644,Kingdom Cleaning Limited
Public Health,Revenue Budgets,Public Health,Sexual Health,A1556,Sexual Health,A56000,Other Establishments,30044620,01/03/2022,202206,"1,120.00",103900,Field House Medical Group
Public Health,Revenue Budgets,Public Health,Director Public Health,A1785,Grounds - Covid Inf Control,A45005,IT Hardware Purchase,30044583,08/03/2022,202206,570.24,147051,Ethical Recruitment Agency (Grimsby) Ltd
Public Health,Revenue Budgets,Public Health,Director Public Health,A1785,Grounds - Covid Inf Control,A45005,IT Hardware Purchase,30044572,29/03/2022,202206,546.02,147051,Ethical Recruitment Agency (Grimsby) Ltd
Public Health,Revenue Budgets,Public Health,Childrens Health,A0358,Childrens Public Health,A16015,Staff Training Expenses,30034362,07/06/2022,202206,"5,722.00",148612,University Hospitals Birmingham Nhs
Public Health,Revenue Budgets,Public Health,Sexual Health,A1556,Sexual Health,A56000,Other Establishments,30044616,01/08/2022,202206,560,103900,Field House Medical Group
Public Health,Revenue Budgets,Public Health,Sexual Health,A1556,Sexual Health,A56000,Other Establishments,30039538,03/08/2022,202206,270.05,104011,Asda Pharmacy
Public Health,Revenue Budgets,Public Health,Sexual Health,A1556,Sexual Health,A56000,Other Establishments,30039538,03/08/2022,202206,360,104011,Asda Pharmacy
Public Health,Revenue Budgets,Public Health,Director Public Health,A1785,Grounds - Covid Inf Control,A22010,Hire of Rooms,30045285,26/08/2022,202206,"2,595.88",131809,Grimsby Shopping Centre Ltd
Public Health,Revenue Budgets,Public Health,Sexual Health,A1556,Sexual Health,A57115,Payments to Private Contractors,30039027,01/09/2022,202206,"55,286.66",120538,Hcrg Care Services Ltd
Public Health,Revenue Budgets,Public Health,Sexual Health,A1556,Sexual Health,A56000,Other Establishments,30037605,02/09/2022,202206,440,111683,Littlefields Health Centre
Public Health,Revenue Budgets,Public Health,Sexual Health,A1556,Sexual Health,A56000,Other Establishments,30040696,02/09/2022,202206,660,107882,Woodford Medical Centre
Public Health,Revenue Budgets,Public Health,Sexual Health,A1556,Sexual Health,A56000,Other Establishments,30040648,05/09/2022,202206,840,107570,Scartho Medical Centre
Public Health,Revenue Budgets,Public Health,Wellbeing Service,A1608,Wellbeing Service,A49105,Other Supplies & Services,30039914,06/09/2022,202206,380,133708,E Cigarette Outlet (Uk) Ltd
Public Health,Revenue Budgets,Public Health,Sexual Health,A1556,Sexual Health,A56000,Other Establishments,30040092,06/09/2022,202206,280,104350,Pelham Medical Group
Public Health,Revenue Budgets,Public Health,Wellbeing Service,A1558,Health Checks,A56000,Other Establishments,30040097,08/09/2022,202206,905.48,104350,Pelham Medical Group
Public Health,Revenue Budgets,Public Health,Childrens Health,A0358,Childrens Public Health,A16020,Staff Professional Membership Fees,30042236,20/09/2022,202206,"2,706.00",135605,Institute Of Health Visiting
Public Health,Revenue Budgets,Public Health,Drug / Alcohol Action Service,A1555,Drug And Alcohol Action Team,A54000,Payments to Government departments,30044414,20/09/2022,202206,"32,859.75",127751,Nhsbsa (Nhs Business Services Authority)
Public Health,Revenue Budgets,Public Health,Director Public Health,A0915,Director Of Public Health,A47010,Subscriptions (non staff),30045111,29/09/2022,202206,"9,300.87",100541,Kingston Upon Hull City Council
Regeneration,Revenue Budgets,Economy And Growth,Leisure,A1680,Grimsby Leisure Centre,A21005,Electricity,30040220,31/07/2021,202206,402.56,148817,Biu Limited
Regeneration,Revenue Budgets,Economy And Growth,Leisure,A1684,Grimsby Auditorium,A21005,Electricity,30037150,06/10/2021,202206,375,102096,Siemens Plc
Regeneration,Revenue Budgets,Economy And Growth,Museums & N F Heritage Centre,A0707,Heritage Centre & Museum,A46020,Hospitality,30037932,13/06/2022,202206,380.7,1000521,Axholme Brewing Company Limited
Regeneration,Capital Spend,Economy And Growth,Clee Hlf Townscape Heritage,Y1565,Clee Hlf Townscape Heritage,C01009,"New Construction, conversion & renovation",30040897,13/06/2022,202206,"14,419.04",148754,Control Panels And Installations Ltd
Regeneration,Capital Spend,Economy And Growth,Clee Hlf Townscape Heritage,Y1565,Clee Hlf Townscape Heritage,C01009,"New Construction, conversion & renovation",30044974,22/07/2022,202206,"16,689.68",1000507,Mrs Julia Parker
Regeneration,Revenue Budgets,Economy And Growth,Retained Function,A1843,E&G Capacity Funding,A44968,Legal & Conveyancing Charges,30040675,27/07/2022,202206,"1,164.80",149375,Freeths Llp
Regeneration,Capital Spend,Economy And Growth,Future High Street Fund,Y1842,Future High Street Fund,C01011,External Professional Fees,30040887,29/07/2022,202206,"10,000.00",145979,Montagu Evans Llp
Regeneration,Capital Spend,Economy And Growth,Clee Hlf Townscape Heritage,Y1565,Clee Hlf Townscape Heritage,C01009,"New Construction, conversion & renovation",30042898,08/08/2022,202206,"5,730.49",1000513,CAG Developments Ltd
Regeneration,Revenue Budgets,Economy And Growth,Retained Function,A0931,Retained Function Management,A11005,Agency Supply Staff,30033008,10/08/2022,202206,"2,600.00",150642,G2v Recruitment Group Ltd
Regeneration,Capital Spend,Economy And Growth,Future High Street Fund,Y1842,Future High Street Fund,C01011,External Professional Fees,30035919,12/08/2022,202206,"5,768.25",1002659,Collas Crill LLP
Regeneration,Capital Spend,Economy And Growth,Shiip Scheme,Y1630,Shiip Stallingb Strat Emp Site,C01014,Other Capital Costs,30037365,12/08/2022,202206,"145,276.17",103021,C R Reynolds (Construction) Ltd
Regeneration,Capital Spend,Economy And Growth,Shiip Scheme,Y1630,Shiip Stallingb Strat Emp Site,C01014,Other Capital Costs,30037367,12/08/2022,202206,"140,923.94",103021,C R Reynolds (Construction) Ltd
Regeneration,Capital Spend,Economy And Growth,Town Deal Investment,Y1752,West Haven Maltings,C01014,Other Capital Costs,30041146,13/08/2022,202206,652.62,105081,Mobile Mini Uk Ltd
Regeneration,Capital Spend,Economy And Growth,Shiip Scheme,Y1631,Shiip Strategic Mitigation,C01009,"New Construction, conversion & renovation",30041301,15/08/2022,202206,"140,478.33",1002200,J E Spence & Son Ltd
Regeneration,Revenue Budgets,Economy And Growth,Retained Function,A0931,Retained Function Management,A11005,Agency Supply Staff,30034828,17/08/2022,202206,"2,502.50",150642,G2v Recruitment Group Ltd
Regeneration,Revenue Budgets,Economy And Growth,Events,A0744,Arena,A20005,"Property Repairs, Maintenance & Alterations",30038150,17/08/2022,202206,502.66,133267,Equans Services Ltd
Regeneration,Revenue Budgets,Economy And Growth,Retained Function,A0931,Retained Function Management,A11005,Agency Supply Staff,30036192,24/08/2022,202206,"2,372.50",150642,G2v Recruitment Group Ltd
Regeneration,Capital Spend,Economy And Growth,Clee Hlf Townscape Heritage,Y1565,Clee Hlf Townscape Heritage,C01009,"New Construction, conversion & renovation",30038093,25/08/2022,202206,"1,667.28",Redacted Personal Information,Redacted Personal Information
Regeneration,Capital Spend,Economy And Growth,Future High Street Fund,Y1842,Future High Street Fund,C01011,External Professional Fees,30039932,25/08/2022,202206,"34,548.14",133565,Aecom Ltd
Regeneration,Capital Spend,Economy And Growth,Shiip Scheme,Y1630,Shiip Stallingb Strat Emp Site,C01011,External Professional Fees,30037253,30/08/2022,202206,"5,000.00",145979,Montagu Evans Llp
Regeneration,Capital Spend,Economy And Growth,Towns Fund,Y1859,Towns Fund Riverhead Square,C01009,"New Construction, conversion & renovation",30037857,30/08/2022,202206,"6,125.00",146212,Gcs Consulting Engineers Ltd
Regeneration,Capital Spend,Economy And Growth,Future High Street Fund,Y1842,Future High Street Fund,C01011,External Professional Fees,30041862,30/08/2022,202206,"1,288.20",149375,Freeths Llp
Regeneration,Capital Spend,Economy And Growth,Future High Street Fund,Y1842,Future High Street Fund,C01011,External Professional Fees,30041879,30/08/2022,202206,800.4,149375,Freeths Llp
Regeneration,Capital Spend,Economy And Growth,Future High Street Fund,Y1842,Future High Street Fund,C01011,External Professional Fees,30041883,30/08/2022,202206,625.2,149375,Freeths Llp
Regeneration,Capital Spend,Economy And Growth,Future High Street Fund,Y1842,Future High Street Fund,C01011,External Professional Fees,30041996,30/08/2022,202206,991.8,149375,Freeths Llp
Regeneration,Capital Spend,Economy And Growth,Shiip Scheme,Y1630,Shiip Stallingb Strat Emp Site,C01009,"New Construction, conversion & renovation",30037234,31/08/2022,202206,"42,971.29",108328,Northern Powergrid (Yorkshire) Plc
Regeneration,Capital Spend,Economy And Growth,Towns Fund,Y1863,Towns Fund Pub Realm Connectivity,C01011,External Professional Fees,30037414,31/08/2022,202206,"6,299.20",129056,Lda Design
Regeneration,Revenue Budgets,Economy And Growth,Retained Function,A0931,Retained Function Management,A44968,Legal & Conveyancing Charges,30038148,31/08/2022,202206,"3,948.00",1000137,Anthony Collins Solicitors LLP
Regeneration,Capital Spend,Economy And Growth,Future High Street Fund,Y1842,Future High Street Fund,C01011,External Professional Fees,30039089,31/08/2022,202206,"12,455.00",150696,Queensberry Real Estate (Uk) Ltd
Regeneration,Revenue Budgets,Economy And Growth,Retained Function,A0931,Retained Function Management,A11005,Agency Supply Staff,30041362,31/08/2022,202206,"6,820.00",100785,Solace In Business
Regeneration,Capital Spend,Economy And Growth,Future High Street Fund,Y1842,Future High Street Fund,C01011,External Professional Fees,30041876,31/08/2022,202206,"3,348.80",149375,Freeths Llp
Regeneration,Capital Spend,Economy And Growth,Future High Street Fund,Y1842,Future High Street Fund,C01011,External Professional Fees,30041881,31/08/2022,202206,520,149375,Freeths Llp
Regeneration,Capital Spend,Economy And Growth,Future High Street Fund,Y1842,Future High Street Fund,C01011,External Professional Fees,30041881,31/08/2022,202206,"2,035.20",149375,Freeths Llp
Regeneration,Revenue Budgets,Economy And Growth,Retained Function,A1759,Town Deal,A44065,Consultancy Services,30037218,01/09/2022,202206,"2,500.00",138884,Wnc Ltd
Regeneration,Revenue Budgets,Economy And Growth,Retained Function,A0931,Retained Function Management,A16025,Recruitment Expenses,30037862,01/09/2022,202206,"15,798.50",150642,G2v Recruitment Group Ltd
Regeneration,Capital Spend,Economy And Growth,Towns Fund,Y1859,Towns Fund Riverhead Square,C01011,External Professional Fees,30040916,01/09/2022,202206,"3,000.00",133267,Equans Services Ltd
Regeneration,Capital Spend,Economy And Growth,Catch Offshore,Y1583,Catch 4 Building,C01009,"New Construction, conversion & renovation",30042080,01/09/2022,202206,"1,400.00",133267,Equans Services Ltd
Regeneration,Capital Spend,Economy And Growth,Playing Pitch Reprovision,Y1710,Play Pitch Reprov Clee Fields,C01011,External Professional Fees,30043760,01/09/2022,202206,"15,000.00",133267,Equans Services Ltd
Regeneration,Revenue Budgets,Economy And Growth,Marketing And Promotion,A0737,Tourism Promotion - General,A56000,Other Establishments,30037808,02/09/2022,202206,"2,000.00",100389,Lincolnshire County Council
Regeneration,Revenue Budgets,Economy And Growth,Culture,A1756,Cdf - Open For Culture,A56000,Other Establishments,30037814,02/09/2022,202206,"1,250.00",131927,Magna Vitae Leisure Trust
Regeneration,Revenue Budgets,Economy And Growth,Leisure,A0736,Leis Fac Contract Client,A44065,Consultancy Services,30041530,05/09/2022,202206,"4,930.00",1002748,Max Associates (Holdings) Ltd
Regeneration,Revenue Budgets,Economy And Growth,Culture,A1756,Cdf - Open For Culture,A61141,Performers,30038990,06/09/2022,202206,"36,602.65",1000204,Emergency Exit Arts Ltd.
Regeneration,Revenue Budgets,Economy And Growth,Culture,A1792,NLHF AREA OF FOCUS GRANT,A47006,Contributions - Communities,30039558,07/09/2022,202206,"4,000.00",1002800,East Marsh Involve CIC
Regeneration,Revenue Budgets,Economy And Growth,Retained Function,A0931,Retained Function Management,A11005,Agency Supply Staff,30039853,07/09/2022,202206,"4,387.50",150642,G2v Recruitment Group Ltd
